﻿PAYMENT DATE,DEPARTMENT,SUPPLIER NAME,PAY GROUP,ACCOUNT DESCRIPTION,NET AMOUNT
09-DEC-2022,Adults & Communities (P),FOUNDATION CARE LTD T/A MANTON HALL&&SSAROE40333,S/S HOMES,5502-Residential,"£3,550.29"
09-DEC-2022,Adults & Communities (P),OLD VICARAGE&&SSARO3086,S/S HOMES,8406-Residential - NHS Income,"£2,657.28"
09-DEC-2022,Adults & Communities (P),OLD VICARAGE&&SSARO3086,S/S HOMES,8406-Residential - NHS Income,"£2,657.28"
09-DEC-2022,Adults & Communities (P),OLD VICARAGE&&SSARO3086,S/S HOMES,8406-Residential - NHS Income,£949.03
09-DEC-2022,Adults & Communities (P),OLD VICARAGE&&SSARO3086,S/S HOMES,8406-Residential - NHS Income,£854.13
09-DEC-2022,Adults & Communities (P),OLD VICARAGE&&SSARO3086,S/S HOMES,8406-Residential - NHS Income,"£2,657.28"
09-DEC-2022,Adults & Communities (P),OLD VICARAGE&&SSARO3086,S/S HOMES,8406-Residential - NHS Income,"£2,657.28"
09-DEC-2022,Adults & Communities (P),OLD VICARAGE&&SSARO3086,S/S HOMES,8406-Residential - NHS Income,"£2,657.28"
09-DEC-2022,Adults & Communities (P),OLD VICARAGE&&SSARO3086,S/S HOMES,8406-Residential - NHS Income,"£2,657.28"
09-DEC-2022,Adults & Communities (P),OLD VICARAGE&&SSARO3086,S/S HOMES,8406-Residential - NHS Income,"£2,562.38"
09-DEC-2022,Adults & Communities (P),OLD VICARAGE&&SSARO3086,S/S HOMES,8406-Residential - NHS Income,"£2,657.28"
09-DEC-2022,Adults & Communities (P),OLD VICARAGE&&SSARO3086,S/S HOMES,8406-Residential - NHS Income,"£2,657.28"
09-DEC-2022,Adults & Communities (P),OLD VICARAGE&&SSARO3086,S/S HOMES,8406-Residential - NHS Income,"£2,657.28"
09-DEC-2022,Adults & Communities (P),OLD VICARAGE&&SSARO3086,S/S HOMES,8406-Residential - NHS Income,"£2,657.28"
09-DEC-2022,Adults & Communities (P),OLD VICARAGE&&SSARO3086,S/S HOMES,8406-Residential - NHS Income,"£1,708.25"
09-DEC-2022,Adults & Communities (P),OLD VICARAGE&&SSARO3086,S/S HOMES,8406-Residential - NHS Income,"£1,803.15"
09-DEC-2022,Adults & Communities (P),OLD VICARAGE&&SSARO3086,S/S HOMES,8406-Residential - NHS Income,"£2,657.28"
09-DEC-2022,Adults & Communities (P),OLD VICARAGE&&SSARO3086,S/S HOMES,8406-Residential - NHS Income,"£2,657.28"
09-DEC-2022,Adults & Communities (P),OLD VICARAGE&&SSARO3086,S/S HOMES,8406-Residential - NHS Income,"£2,657.28"
09-DEC-2022,Adults & Communities (P),OLD VICARAGE&&SSARO3086,S/S HOMES,8406-Residential - NHS Income,"£2,657.28"
09-DEC-2022,Adults & Communities (P),OLD VICARAGE&&SSARO3086,S/S HOMES,8406-Residential - NHS Income,"£2,657.28"
09-DEC-2022,Adults & Communities (P),OLD VICARAGE&&SSARO3086,S/S HOMES,8406-Residential - NHS Income,"£2,467.47"
09-DEC-2022,Adults & Communities (P),OLD VICARAGE&&SSARO3086,S/S HOMES,8406-Residential - NHS Income,"£2,657.28"
13-DEC-2022,Environment & Transport (P),Your NRG Ltd,TRADE SUPPLIER,3104-Petrol / Oil / Types / Spares,"£15,237.00"
16-DEC-2022,Corporate Resources (CR) (P),Soft Touch Arts Ltd,TRADE SUPPLIER,4507-Consultants & Specialists,£804.00
16-DEC-2022,Corporate Resources (CR) (P),Stonewall Equality Ltd,TRADE SUPPLIER,1703-Training Expenses,"£1,600.00"
20-DEC-2022,Environment & Transport (P),Effect Digital Ltd,TRADE SUPPLIER,4109-Materials,£600.00
23-DEC-2022,Balance Sheet Cost Centres (P),Eversheds Sutherland (International) LLP,TRADE SUPPLIER,9641-Debtors Control,"£3,000.00"
06-DEC-2022,C&FS (P),APPLE TREE DAY NURSERY&&EYRS1507,EARLY YEARS,4908-Grants,£753.75
06-DEC-2022,C&FS (P),APPLE TREE DAY NURSERY&&EYRS1507,EARLY YEARS,4908-Grants,"£22,058.02"
09-DEC-2022,Environment & Transport (P),REDACTED PERSONAL DATA,NON TRADE,3303-Taxi Hire,"£1,904.00"
16-DEC-2022,C&FS (P),REDACTED PERSONAL DATA,GENERAL,5629-Transfer Payments Section 24,"£1,127.96"
23-DEC-2022,Adults & Communities (P),Dartington Hall Trust,NON TRADE,1703-Training Expenses,"£12,834.00"
23-DEC-2022,Public Health (P),Leicestershire Schools Badminton Association,NON TRADE,4908-Grants,£700.00
28-DEC-2022,Chief Executives (P),Senate House Chambers,TRADE SUPPLIER,4905-Legal Expenses,"£1,150.00"
01-DEC-2022,Adults & Communities (P),Age UK Leicestershire and Rutland,TRADE SUPPLIER,5411-Private Contractors - General,£539.88
01-DEC-2022,Environment & Transport (P),Aggregate Industries UK Ltd,SUBCONTRACTOR,4109-Materials,£586.50
01-DEC-2022,Public Health (P),Air IT Ltd,TRADE SUPPLIER,4602-IT Services,"£2,503.70"
01-DEC-2022,C&FS (P),Albert Village Primary School,GENERAL,5325-External SEN Providers Top Up Fee,£542.23
01-DEC-2022,Environment & Transport (P),Ali Taxis Ltd,TRADE INDIVIDUAL,3303-Taxi Hire,"£1,060.20"
01-DEC-2022,Environment & Transport (P),Ali Taxis Ltd,TRADE INDIVIDUAL,3303-Taxi Hire,"£1,284.30"
01-DEC-2022,Environment & Transport (P),Ali Taxis Ltd,TRADE INDIVIDUAL,3303-Taxi Hire,"£2,793.28"
01-DEC-2022,Environment & Transport (P),Ali Taxis Ltd,TRADE INDIVIDUAL,3303-Taxi Hire,"£2,278.88"
01-DEC-2022,Environment & Transport (P),Ali Taxis Ltd,TRADE INDIVIDUAL,3303-Taxi Hire,£873.00
01-DEC-2022,Environment & Transport (P),Ali Taxis Ltd,TRADE INDIVIDUAL,3201-Pooled Transport Recharge Inhouse,£850.00
01-DEC-2022,Environment & Transport (P),Ali Taxis Ltd,TRADE INDIVIDUAL,3201-Pooled Transport Recharge Inhouse,"£3,105.00"
01-DEC-2022,Environment & Transport (P),Ali Taxis Ltd,TRADE INDIVIDUAL,3303-Taxi Hire,"£1,587.00"
01-DEC-2022,Environment & Transport (P),Ali Taxis Ltd,TRADE INDIVIDUAL,3303-Taxi Hire,£998.20
01-DEC-2022,C&FS (P),All Saints CE Primary School Sapcote (Inspiring Primaries Academy Trust),GENERAL,5325-External SEN Providers Top Up Fee,"£10,130.68"
01-DEC-2022,Adults & Communities (P),REDACTED PERSONAL DATA,NON TRADE,4508-Medical Fees & Treatment,"£2,405.00"
01-DEC-2022,C&FS (P),Anstey Martin High Academy,GENERAL,5325-External SEN Providers Top Up Fee,"£3,691.70"
01-DEC-2022,Adults & Communities (P),Aquafield Training,TRADE SUPPLIER,4901-Other Expenditure,"£2,500.00"
01-DEC-2022,C&FS (P),Asfordby Captains Close Primary School Academy T/A Discovery Schools Academies Trust,GENERAL,5325-External SEN Providers Top Up Fee,"£5,217.84"
01-DEC-2022,C&FS (P),Asfordby Captains Close Primary School Academy T/A Discovery Schools Academies Trust,GENERAL,5325-External SEN Providers Top Up Fee,"£16,258.00"
01-DEC-2022,C&FS (P),Asfordby Hill Primary School Academy,GENERAL,5325-External SEN Providers Top Up Fee,"£4,468.79"
01-DEC-2022,C&FS (P),Asfordby Hill Primary School Academy,GENERAL,6101-Support Services,"£1,523.49"
01-DEC-2022,C&FS (P),Ashby Hastings Primary School,GENERAL,5325-External SEN Providers Top Up Fee,£626.44
01-DEC-2022,C&FS (P),Ashby Hill Top Primary School Academy,GENERAL,5325-External SEN Providers Top Up Fee,"£1,397.37"
01-DEC-2022,C&FS (P),Ashby School (LIFE Multi Academy Trust),GENERAL,5325-External SEN Providers Top Up Fee,"£11,981.93"
01-DEC-2022,C&FS (P),Ashby Willesley Primary School Academy,GENERAL,5325-External SEN Providers Top Up Fee,"£5,542.62"
01-DEC-2022,C&FS (P),Barlestone CE Primary School Academy,GENERAL,5325-External SEN Providers Top Up Fee,"£1,208.72"
01-DEC-2022,Corporate Resources (CR) (P),Barry Collings Entertainments,TRADE SUPPLIER,4901-Other Expenditure,"£2,000.00"
01-DEC-2022,C&FS (P),Barwell CE Academy,GENERAL,5325-External SEN Providers Top Up Fee,"£4,230.52"
01-DEC-2022,C&FS (P),Battling Brook Primary School Academy,GENERAL,5325-External SEN Providers Top Up Fee,"£10,371.28"
01-DEC-2022,C&FS (P),Beacon Academy,GENERAL,5325-External SEN Providers Top Up Fee,"£22,922.00"
01-DEC-2022,C&FS (P),Beacon Academy,GENERAL,5325-External SEN Providers Top Up Fee,"£12,823.08"
01-DEC-2022,C&FS (P),Beacon Academy,GENERAL,5324-External SEN Providers Place Fee,"£2,500.00"
01-DEC-2022,C&FS (P),Beacon Academy,GENERAL,6109-SEN Maintained Sch Top Up Fee,"£2,145.00"
01-DEC-2022,C&FS (P),Beauchamp Academy,GENERAL,5325-External SEN Providers Top Up Fee,"£9,851.68"
01-DEC-2022,C&FS (P),Beauchamp Academy,GENERAL,5325-External SEN Providers Top Up Fee,"£1,598.46"
01-DEC-2022,C&FS (P),BEAVER CHILDCARE LTD T/A CHARNWOOD  PRE SCHOOL & OUT OF SCHOOL CLUB&&EYRS2598042,GENERAL,4908-Grants,£896.00
01-DEC-2022,Corporate Resources (CR) (P),BFS Group Ltd T/A Bidfood,TRADE SUPPLIER,4504-Provisions Purchases,£505.84
01-DEC-2022,Corporate Resources (CR) (P),BFS Group Ltd T/A Bidfood,TRADE SUPPLIER,4504-Provisions Purchases,£778.85
01-DEC-2022,Corporate Resources (CR) (P),BFS Group Ltd T/A Bidfood,TRADE SUPPLIER,4504-Provisions Purchases,£866.33
01-DEC-2022,C&FS (P),Birkett House School Academy,GENERAL,6109-SEN Maintained Sch Top Up Fee,"£4,290.00"
01-DEC-2022,Environment & Transport (P),Blaby District Council,OTHER LOCAL AUTHORITIES,5211-Other Local Authorities,"£2,500.00"
01-DEC-2022,Corporate Resources (CR) (P),Blaby District Council,OTHER LOCAL AUTHORITIES,2311-Rates,"£3,306.00"
01-DEC-2022,C&FS (P),Blaby Stokes CE Primary School (Academy),GENERAL,6109-SEN Maintained Sch Top Up Fee,"£1,887.00"
01-DEC-2022,C&FS (P),Blaby Stokes CE Primary School (Academy),GENERAL,5325-External SEN Providers Top Up Fee,"£2,885.94"
01-DEC-2022,C&FS (P),Bosworth Academy (Life Multi Academy Trust),GENERAL,5325-External SEN Providers Top Up Fee,"£10,530.19"
01-DEC-2022,C&FS (P),Bottesford CE Primary School Academy,GENERAL,5325-External SEN Providers Top Up Fee,"£4,145.69"
01-DEC-2022,Environment & Transport (P),Boughton Engineering Ltd,TRADE SUPPLIER,3102-Vehicle & Plant Repairs & Maintenance,£811.23
01-DEC-2022,C&FS (P),Bradgate Education Partnership Seagrave Village Primary School,GENERAL,5325-External SEN Providers Top Up Fee,"£2,202.81"
01-DEC-2022,C&FS (P),Bradgate Education Partnership T/A Gaddesby Primary School,GENERAL,5325-External SEN Providers Top Up Fee,"£3,407.94"
01-DEC-2022,C&FS (P),Bradgate Education Partnership T/A Great Dalby Primary School,GENERAL,5325-External SEN Providers Top Up Fee,"£4,190.99"
01-DEC-2022,C&FS (P),Bradgate Education Partnership T/A Highgate Primary School,GENERAL,5325-External SEN Providers Top Up Fee,"£1,813.08"
01-DEC-2022,C&FS (P),Braunstone Ravenhurst CP School,GENERAL,6109-SEN Maintained Sch Top Up Fee,"£6,952.97"
01-DEC-2022,C&FS (P),Brocks Hill Primary School Academy,GENERAL,5325-External SEN Providers Top Up Fee,"£4,998.94"
01-DEC-2022,C&FS (P),Brookvale Groby Learning Trust (Groby Community College),GENERAL,5325-External SEN Providers Top Up Fee,"£20,162.01"
01-DEC-2022,C&FS (P),Broom Leys Primary School,GENERAL,5325-External SEN Providers Top Up Fee,"£7,441.34"
01-DEC-2022,C&FS (P),Broomfield Primary School (Academy),GENERAL,5325-External SEN Providers Top Up Fee,"£1,942.99"
01-DEC-2022,C&FS (P),Brownlow School Academy,GENERAL,5325-External SEN Providers Top Up Fee,"£7,901.87"
01-DEC-2022,Environment & Transport (P),BSI Assurance UK Ltd,TRADE SUPPLIER,4909-Subscriptions,"£5,432.00"
01-DEC-2022,Environment & Transport (P),BSPOKE Software Ltd,TRADE SUPPLIER,4602-IT Services,"£5,000.00"
01-DEC-2022,Environment & Transport (P),REDACTED PERSONAL DATA,NON TRADE,3303-Taxi Hire,"£1,800.00"
01-DEC-2022,Environment & Transport (P),REDACTED PERSONAL DATA,NON TRADE,3303-Taxi Hire,"£1,705.00"
01-DEC-2022,C&FS (P),Castle Rock High Academy,GENERAL,5325-External SEN Providers Top Up Fee,"£13,758.22"
01-DEC-2022,Corporate Resources (CR) (P),Castle Water Ltd,TRADE SUPPLIER,2331-Water Charges,"£25,819.11"
01-DEC-2022,C&FS (P),Cedars Academy Lionheart Academies Trust,GENERAL,5325-External SEN Providers Top Up Fee,"£11,783.03"
01-DEC-2022,C&FS (P),Cedars Academy Lionheart Academies Trust,GENERAL,5324-External SEN Providers Place Fee,"£7,083.33"
01-DEC-2022,C&FS (P),Cedars Academy Lionheart Academies Trust,GENERAL,5325-External SEN Providers Top Up Fee,"£3,761.00"
01-DEC-2022,C&FS (P),Cedars Academy Lionheart Academies Trust,GENERAL,5325-External SEN Providers Top Up Fee,"£3,423.54"
01-DEC-2022,C&FS (P),Christ Church & St Peters CE Primary School Academy,GENERAL,5325-External SEN Providers Top Up Fee,"£9,841.00"
01-DEC-2022,C&FS (P),Christ Church & St Peters CE Primary School Academy,GENERAL,5325-External SEN Providers Top Up Fee,"£5,529.62"
01-DEC-2022,C&FS (P),Church Hill CE Junior School,GENERAL,5325-External SEN Providers Top Up Fee,"£1,508.07"
01-DEC-2022,C&FS (P),Church Hill Infant School Academy,GENERAL,5325-External SEN Providers Top Up Fee,"£2,072.90"
01-DEC-2022,C&FS (P),Church Langton Primary School (Academy),GENERAL,5325-External SEN Providers Top Up Fee,"£3,437.52"
01-DEC-2022,C&FS (P),Claybrooke Primary School Academy,GENERAL,5325-External SEN Providers Top Up Fee,£864.18
01-DEC-2022,C&FS (P),Clubscomplete Ltd,GENERAL,4908-Grants,"£1,960.00"
01-DEC-2022,C&FS (P),Clubszone CZ Ltd,GENERAL,4908-Grants,"£4,200.00"
01-DEC-2022,C&FS (P),Cobden Primary School Academy,GENERAL,5325-External SEN Providers Top Up Fee,"£4,275.71"
01-DEC-2022,C&FS (P),Community Inclusive Trust,GENERAL,5325-External SEN Providers Top Up Fee,"£105,287.00"
01-DEC-2022,C&FS (P),Coram Childrens Legal Centre Ltd,TRADE SUPPLIER,4507-Consultants & Specialists,"£2,591.00"
01-DEC-2022,C&FS (P),Countesthorpe Leysland Community College (Life Multi Academy Trust),GENERAL,5325-External SEN Providers Top Up Fee,"£4,628.18"
01-DEC-2022,Environment & Transport (P),Crown Leicester Ltd,TRADE SUPPLIER,3303-Taxi Hire,"£2,654.00"
01-DEC-2022,Environment & Transport (P),Crown Leicester Ltd,TRADE SUPPLIER,3303-Taxi Hire,£774.00
01-DEC-2022,Environment & Transport (P),Crown Leicester Ltd,TRADE SUPPLIER,3303-Taxi Hire,"£2,116.50"
01-DEC-2022,Environment & Transport (P),Crown Leicester Ltd,TRADE SUPPLIER,3303-Taxi Hire,"£2,025.00"
01-DEC-2022,Environment & Transport (P),Crown Leicester Ltd,TRADE SUPPLIER,3303-Taxi Hire,"£2,668.00"
01-DEC-2022,Environment & Transport (P),Crown Leicester Ltd,TRADE SUPPLIER,3303-Taxi Hire,"£1,264.00"
01-DEC-2022,Environment & Transport (P),Crown Leicester Ltd,TRADE SUPPLIER,3303-Taxi Hire,"£1,943.00"
01-DEC-2022,Environment & Transport (P),Crown Leicester Ltd,TRADE SUPPLIER,3303-Taxi Hire,"£2,042.40"
01-DEC-2022,Environment & Transport (P),Crown Leicester Ltd,TRADE SUPPLIER,3303-Taxi Hire,"£3,260.25"
01-DEC-2022,Environment & Transport (P),Crown Leicester Ltd,TRADE SUPPLIER,3303-Taxi Hire,"£1,251.00"
01-DEC-2022,Environment & Transport (P),Crown Leicester Ltd,TRADE SUPPLIER,3303-Taxi Hire,£596.00
01-DEC-2022,Environment & Transport (P),Crown Leicester Ltd,TRADE SUPPLIER,3113-Home to Sch Trans Contract Buses Sec,"£2,800.00"
01-DEC-2022,Environment & Transport (P),Crown Leicester Ltd,TRADE SUPPLIER,3112-Home to Sch Trans Contract Buses Prim,"£2,544.00"
01-DEC-2022,Environment & Transport (P),Crown Leicester Ltd,TRADE SUPPLIER,3112-Home to Sch Trans Contract Buses Prim,"£2,384.00"
01-DEC-2022,Environment & Transport (P),Crown Leicester Ltd,TRADE SUPPLIER,3303-Taxi Hire,"£2,313.21"
01-DEC-2022,Environment & Transport (P),Crown Leicester Ltd,TRADE SUPPLIER,3303-Taxi Hire,"£2,557.60"
01-DEC-2022,Environment & Transport (P),Crown Leicester Ltd,TRADE SUPPLIER,3303-Taxi Hire,"£3,168.00"
01-DEC-2022,Environment & Transport (P),Crown Leicester Ltd,TRADE SUPPLIER,3303-Taxi Hire,"£1,736.00"
01-DEC-2022,Environment & Transport (P),Crown Leicester Ltd,TRADE SUPPLIER,3303-Taxi Hire,"£2,479.80"
01-DEC-2022,Environment & Transport (P),Crown Leicester Ltd,TRADE SUPPLIER,3303-Taxi Hire,"£2,224.60"
01-DEC-2022,Environment & Transport (P),Crown Leicester Ltd,TRADE SUPPLIER,3303-Taxi Hire,"£2,655.92"
01-DEC-2022,Balance Sheet Cost Centres (P),Crystal Purchasing Ltd T/A ICL UK (Sales) Ltd,TRADE SUPPLIER,9631-Inventories - General,"£7,588.08"
01-DEC-2022,Balance Sheet Cost Centres (P),Crystal Purchasing Ltd T/A ICL UK (Sales) Ltd,TRADE SUPPLIER,9631-Inventories - General,"£4,394.52"
01-DEC-2022,Environment & Transport (P),CSM Leicester,TRADE SUPPLIER,2101-R&M Buildings,£900.00
01-DEC-2022,Environment & Transport (P),Data Academy Ltd,TRADE SUPPLIER,1703-Training Expenses,"£1,485.00"
01-DEC-2022,Environment & Transport (P),Data Academy Ltd,TRADE SUPPLIER,1703-Training Expenses,£595.00
01-DEC-2022,C&FS (P),REDACTED PERSONAL DATA,GENERAL,5325-External SEN Providers Top Up Fee,"£5,454.98"
01-DEC-2022,C&FS (P),De Lisle College (St Thomas Aquinas Catholic Multi Academy Trust),GENERAL,5325-External SEN Providers Top Up Fee,"£8,909.86"
01-DEC-2022,C&FS (P),Desford CP School,GENERAL,6109-SEN Maintained Sch Top Up Fee,"£11,338.83"
01-DEC-2022,C&FS (P),Discovery Schools Academy Trust,GENERAL,4908-Grants,"£9,443.73"
01-DEC-2022,Environment & Transport (P),Dixons Coach & Travel Services,TRADE SUPPLIER,3113-Home to Sch Trans Contract Buses Sec,"£2,395.20"
01-DEC-2022,C&FS (P),Dorothy Goodman School Academy,GENERAL,5325-External SEN Providers Top Up Fee,"£113,817.00"
01-DEC-2022,Environment & Transport (P),Driving Talent Ltd,TRADE SUPPLIER,5443-Agency & Contracted Services,£680.79
01-DEC-2022,C&FS (P),East Midlands Education Trust T/A Castle Donington College,GENERAL,5325-External SEN Providers Top Up Fee,"£3,474.19"
01-DEC-2022,C&FS (P),East Midlands Education Trust T/A Limehurst Academy,GENERAL,5325-External SEN Providers Top Up Fee,"£15,392.27"
01-DEC-2022,C&FS (P),Eastfield Primary School Academy,GENERAL,5325-External SEN Providers Top Up Fee,"£7,257.98"
01-DEC-2022,Environment & Transport (P),Econ Engineering Ltd,TRADE SUPPLIER,3102-Vehicle & Plant Repairs & Maintenance,"£2,406.89"
01-DEC-2022,Environment & Transport (P),Econ Engineering Ltd,TRADE SUPPLIER,3102-Vehicle & Plant Repairs & Maintenance,"£2,044.01"
01-DEC-2022,Environment & Transport (P),Econ Engineering Ltd,TRADE SUPPLIER,3102-Vehicle & Plant Repairs & Maintenance,"£2,499.64"
01-DEC-2022,C&FS (P),Embrace Multi Academy Trust T/A Arnesby Church of England Primary School (ARN),GENERAL,5325-External SEN Providers Top Up Fee,"£3,196.90"
01-DEC-2022,C&FS (P),Embrace Multi Academy Trust T/A Brockington College Academy (BRO),GENERAL,5325-External SEN Providers Top Up Fee,"£19,754.21"
01-DEC-2022,C&FS (P),Embrace Multi Academy Trust T/A Croft C of E Primary School (CRO),GENERAL,5325-External SEN Providers Top Up Fee,"£3,684.90"
01-DEC-2022,C&FS (P),Embrace Multi Academy Trust T/A Huncote Community Primary School Academy Trust (HUN),GENERAL,5325-External SEN Providers Top Up Fee,"£3,340.36"
01-DEC-2022,C&FS (P),Embrace Multi Academy Trust T/A Manorfield Church of England Primary School (MAN),GENERAL,5325-External SEN Providers Top Up Fee,"£3,281.62"
01-DEC-2022,C&FS (P),Embrace Multi Academy Trust T/A Sherrier Church of England Primary School (SHE),GENERAL,5325-External SEN Providers Top Up Fee,"£3,131.68"
01-DEC-2022,C&FS (P),Enderby Danemill Primary School T/A Discovery Schools Academies Trust Ltd,GENERAL,5325-External SEN Providers Top Up Fee,"£11,841.98"
01-DEC-2022,Environment & Transport (P),Enterprise Flex E Rent,TRADE SUPPLIER,3301-Vehicle & Plant Hire,"£3,985.80"
01-DEC-2022,Balance Sheet Cost Centres (P),Exterior Lighting Solutions (UK) Ltd,TRADE SUPPLIER,9631-Inventories - General,£850.00
01-DEC-2022,Environment & Transport (P),Exterior Lighting Solutions (UK) Ltd,TRADE SUPPLIER,4901-Other Expenditure,£610.35
01-DEC-2022,C&FS (P),Fairfield Community Primary School Academy,GENERAL,5325-External SEN Providers Top Up Fee,"£2,072.90"
01-DEC-2022,C&FS (P),Farndon Fields Academy Ltd T/A Discovery Schools Academy Trust,GENERAL,5325-External SEN Providers Top Up Fee,"£6,258.23"
01-DEC-2022,C&FS (P),Fiesta Sports Coaching Ltd,GENERAL,4908-Grants,"£2,240.00"
01-DEC-2022,C&FS (P),Football & Fitness Clubs Ltd,GENERAL,4908-Grants,"£11,877.60"
01-DEC-2022,Environment & Transport (P),Ford & Slater of Leicester,TRADE SUPPLIER,3102-Vehicle & Plant Repairs & Maintenance,"£1,670.12"
01-DEC-2022,Environment & Transport (P),Ford & Slater of Leicester,TRADE SUPPLIER,3102-Vehicle & Plant Repairs & Maintenance,"£2,097.74"
01-DEC-2022,C&FS (P),Forest Way School Academy Trust,GENERAL,5325-External SEN Providers Top Up Fee,"£16,504.00"
01-DEC-2022,C&FS (P),Fossebrook Primary School T/A Discovery Schools Academies Trust,GENERAL,5325-External SEN Providers Top Up Fee,"£2,427.72"
01-DEC-2022,C&FS (P),Frisby CE Primary School Academy,GENERAL,5325-External SEN Providers Top Up Fee,"£2,257.75"
01-DEC-2022,Environment & Transport (P),Fuchs Lubricants (UK) Plc,TRADE SUPPLIER,3104-Petrol / Oil / Types / Spares,"£2,114.76"
01-DEC-2022,C&FS (P),Futures Trust (Hinckley Academy & John Cleveland Sixth Form Centre),GENERAL,5325-External SEN Providers Top Up Fee,"£12,672.73"
01-DEC-2022,Environment & Transport (P),Generation Cabs Ltd,TRADE SUPPLIER,3303-Taxi Hire,"£1,155.00"
01-DEC-2022,Environment & Transport (P),Generation Cabs Ltd,TRADE SUPPLIER,3303-Taxi Hire,"£3,380.00"
01-DEC-2022,Environment & Transport (P),Generation Cabs Ltd,TRADE SUPPLIER,3303-Taxi Hire,"£2,032.00"
01-DEC-2022,Environment & Transport (P),Generation Cabs Ltd,TRADE SUPPLIER,3303-Taxi Hire,"£1,960.00"
01-DEC-2022,Environment & Transport (P),Generation Cabs Ltd,TRADE SUPPLIER,3303-Taxi Hire,"£2,216.50"
01-DEC-2022,Environment & Transport (P),Generation Cabs Ltd,TRADE SUPPLIER,3303-Taxi Hire,"£2,398.40"
01-DEC-2022,Environment & Transport (P),Generation Cabs Ltd,TRADE SUPPLIER,3303-Taxi Hire,"£2,072.00"
01-DEC-2022,Environment & Transport (P),Generation Cabs Ltd,TRADE SUPPLIER,3303-Taxi Hire,"£1,264.00"
01-DEC-2022,Environment & Transport (P),Generation Cabs Ltd,TRADE SUPPLIER,3303-Taxi Hire,"£1,440.00"
01-DEC-2022,Environment & Transport (P),Generation Cabs Ltd,TRADE SUPPLIER,3303-Taxi Hire,"£1,560.00"
01-DEC-2022,Environment & Transport (P),Generation Cabs Ltd,TRADE SUPPLIER,3303-Taxi Hire,"£1,584.00"
01-DEC-2022,Environment & Transport (P),Generation Cabs Ltd,TRADE SUPPLIER,3303-Taxi Hire,"£2,528.00"
01-DEC-2022,Public Health (P),REDACTED PERSONAL DATA,TRADE SUPPLIER,4507-Consultants & Specialists,"£15,349.58"
01-DEC-2022,C&FS (P),Gilmorton Chandler CE Aided Primary School Academy,GENERAL,5325-External SEN Providers Top Up Fee,"£3,834.04"
01-DEC-2022,C&FS (P),Glebe House (Charnwood) Ltd     1,TRADE SUPPLIER,5429-Community/Domiciliary,£726.00
01-DEC-2022,C&FS (P),Glebe House (Charnwood) Ltd     1,TRADE SUPPLIER,5429-Community/Domiciliary,"£1,080.00"
01-DEC-2022,C&FS (P),Glen Hills Primary School Academy,GENERAL,5325-External SEN Providers Top Up Fee,"£4,203.26"
01-DEC-2022,C&FS (P),Glenfield Primary School Academy,GENERAL,5325-External SEN Providers Top Up Fee,"£8,243.00"
01-DEC-2022,C&FS (P),Glenfield Primary School Academy,GENERAL,5324-External SEN Providers Place Fee,"£1,000.00"
01-DEC-2022,C&FS (P),Glenfield Primary School Academy,GENERAL,5325-External SEN Providers Top Up Fee,"£4,615.12"
01-DEC-2022,C&FS (P),Glenmere Primary School Academy,GENERAL,5325-External SEN Providers Top Up Fee,"£1,234.71"
01-DEC-2022,C&FS (P),Great Bowden Academy,GENERAL,5325-External SEN Providers Top Up Fee,"£1,338.63"
01-DEC-2022,C&FS (P),Greystoke Primary School T/A Discovery Schools Academies Trust,GENERAL,5325-External SEN Providers Top Up Fee,"£9,837.18"
01-DEC-2022,Environment & Transport (P),GVN Cabs Ltd,TRADE SUPPLIER,3113-Home to Sch Trans Contract Buses Sec,"£1,883.36"
01-DEC-2022,Environment & Transport (P),GVN Cabs Ltd,TRADE SUPPLIER,3303-Taxi Hire,"£1,724.35"
01-DEC-2022,Environment & Transport (P),GVN Cabs Ltd,TRADE SUPPLIER,3303-Taxi Hire,"£2,875.36"
01-DEC-2022,Environment & Transport (P),GVN Cabs Ltd,TRADE SUPPLIER,3303-Taxi Hire,"£2,050.05"
01-DEC-2022,Environment & Transport (P),GVN Cabs Ltd,TRADE SUPPLIER,3303-Taxi Hire,"£2,059.68"
01-DEC-2022,Environment & Transport (P),GVN Cabs Ltd,TRADE SUPPLIER,3303-Taxi Hire,"£2,430.88"
01-DEC-2022,Environment & Transport (P),GVN Cabs Ltd,TRADE SUPPLIER,3303-Taxi Hire,"£2,126.85"
01-DEC-2022,Environment & Transport (P),GVN Cabs Ltd,TRADE SUPPLIER,3303-Taxi Hire,"£2,358.56"
01-DEC-2022,Environment & Transport (P),GVN Cabs Ltd,TRADE SUPPLIER,3303-Taxi Hire,"£1,920.00"
01-DEC-2022,Environment & Transport (P),GVN Cabs Ltd,TRADE SUPPLIER,3303-Taxi Hire,"£1,915.36"
01-DEC-2022,Environment & Transport (P),GVN Cabs Ltd,TRADE SUPPLIER,3303-Taxi Hire,"£2,263.95"
01-DEC-2022,C&FS (P),Hall Orchard CE Primary School Academy,GENERAL,5325-External SEN Providers Top Up Fee,"£2,810.29"
01-DEC-2022,C&FS (P),Hallam Fields Primary School,GENERAL,5325-External SEN Providers Top Up Fee,"£6,179.17"
01-DEC-2022,C&FS (P),Hastings High School Academy,GENERAL,5325-External SEN Providers Top Up Fee,"£11,580.56"
01-DEC-2022,C&FS (P),Heathfield Academy,GENERAL,5325-External SEN Providers Top Up Fee,"£1,759.28"
01-DEC-2022,C&FS (P),Highcliffe Primary School Academy,GENERAL,5325-External SEN Providers Top Up Fee,"£11,150.74"
01-DEC-2022,Environment & Transport (P),Highfields Associates Ltd,TRADE SUPPLIER,3303-Taxi Hire,"£2,005.44"
01-DEC-2022,Environment & Transport (P),Highfields Associates Ltd,TRADE SUPPLIER,3201-Pooled Transport Recharge Inhouse,£760.00
01-DEC-2022,Environment & Transport (P),Highfields Associates Ltd,TRADE SUPPLIER,3201-Pooled Transport Recharge Inhouse,£770.00
01-DEC-2022,Environment & Transport (P),Highfields Associates Ltd,TRADE SUPPLIER,3201-Pooled Transport Recharge Inhouse,"£1,919.82"
01-DEC-2022,Environment & Transport (P),Highfields Associates Ltd,TRADE SUPPLIER,3201-Pooled Transport Recharge Inhouse,£914.80
01-DEC-2022,C&FS (P),Hinckley Parks Primary School (Owls Academy Trust),GENERAL,5325-External SEN Providers Top Up Fee,"£8,941.15"
01-DEC-2022,C&FS (P),Hinckley Parks Primary School (Owls Academy Trust),GENERAL,5325-External SEN Providers Top Up Fee,"£11,333.00"
01-DEC-2022,C&FS (P),Humphrey Perkins School Academy,GENERAL,5325-External SEN Providers Top Up Fee,"£5,081.17"
01-DEC-2022,C&FS (P),Ibstock Community College Academy,GENERAL,5325-External SEN Providers Top Up Fee,"£12,422.20"
01-DEC-2022,C&FS (P),Incredible Kids Day Nursery,TRADE INDIVIDUAL,5443-Agency & Contracted Services,"£1,050.84"
01-DEC-2022,C&FS (P),IPAT St Marys CE Primary School Bitteswell (Inspiring Academy Trust),GENERAL,5325-External SEN Providers Top Up Fee,"£2,736.00"
01-DEC-2022,Environment & Transport (P),REDACTED PERSONAL DATA,NON TRADE,3113-Home to Sch Trans Contract Buses Sec,"£2,112.00"
01-DEC-2022,Environment & Transport (P),REDACTED PERSONAL DATA,NON TRADE,3201-Pooled Transport Recharge Inhouse,"£1,504.00"
01-DEC-2022,C&FS (P),Ivanhoe College,GENERAL,5325-External SEN Providers Top Up Fee,"£3,650.41"
01-DEC-2022,Environment & Transport (P),James Baxter Haulage Ltd,TRADE SUPPLIER,5422-Specialist Disposal Costs Wood,"£3,660.44"
01-DEC-2022,Environment & Transport (P),James Baxter Haulage Ltd,TRADE SUPPLIER,5416-Private Contractors Hardcore,"£1,163.70"
01-DEC-2022,Environment & Transport (P),James Baxter Haulage Ltd,TRADE SUPPLIER,5416-Private Contractors Hardcore,"£1,245.20"
01-DEC-2022,Environment & Transport (P),James Baxter Haulage Ltd,TRADE SUPPLIER,5411-Private Contractors - General,"£16,853.46"
01-DEC-2022,Environment & Transport (P),James Baxter Haulage Ltd,TRADE SUPPLIER,5411-Private Contractors - General,"£8,847.28"
01-DEC-2022,Environment & Transport (P),James Baxter Haulage Ltd,TRADE SUPPLIER,5411-Private Contractors - General,"£3,001.83"
01-DEC-2022,C&FS (P),John Ferneley College,GENERAL,5325-External SEN Providers Top Up Fee,"£18,883.55"
01-DEC-2022,C&FS (P),John Wycliffe Primary School (Inspiring Primaries Academy Trust),GENERAL,5325-External SEN Providers Top Up Fee,"£3,125.73"
01-DEC-2022,Chief Executives (P),KCH Barristers Ltd,TRADE SUPPLIER,4507-Consultants & Specialists,"£1,400.00"
01-DEC-2022,C&FS (P),Kibworth CE Primary School Academy T/A Discovery Schools Academy Trust,GENERAL,5325-External SEN Providers Top Up Fee,"£7,401.44"
01-DEC-2022,C&FS (P),Kingsway Primary School (Life Multi Academy Trust),GENERAL,5325-External SEN Providers Top Up Fee,"£1,813.08"
01-DEC-2022,C&FS (P),Kingsway Primary School (Life Multi Academy Trust),GENERAL,5325-External SEN Providers Top Up Fee,"£9,148.00"
01-DEC-2022,C&FS (P),Kirby Muxloe Primary School Academy,GENERAL,5325-External SEN Providers Top Up Fee,"£6,385.58"
01-DEC-2022,C&FS (P),Kisp Ltd,GENERAL,4908-Grants,"£2,695.00"
01-DEC-2022,C&FS (P),Lady Jane Grey Academy,GENERAL,5325-External SEN Providers Top Up Fee,"£4,301.70"
01-DEC-2022,C&FS (P),Langmoor Primary School,GENERAL,5325-External SEN Providers Top Up Fee,"£1,189.52"
01-DEC-2022,C&FS (P),Launde Primary School Academy Trust T/A Launde Primary School,GENERAL,5325-External SEN Providers Top Up Fee,"£2,547.35"
01-DEC-2022,Corporate Resources (CR) (P),LCC Central Imprest Account,GENERAL,4901-Other Expenditure,"£12,162.15"
01-DEC-2022,Adults & Communities (P),LCC Heritage Services Imprest A/C,GENERAL,4102-General Equipment - Purchase & Repairs,£699.09
01-DEC-2022,C&FS (P),LCC Nailstone Dove Bank Primary School A/C,GENERAL,6109-SEN Maintained Sch Top Up Fee,"£3,349.40"
01-DEC-2022,C&FS (P),LCC Oadby Woodland Grange Primary School A/C,GENERAL,6109-SEN Maintained Sch Top Up Fee,"£1,430.00"
01-DEC-2022,C&FS (P),LCC Oadby Woodland Grange Primary School A/C,GENERAL,5325-External SEN Providers Top Up Fee,"£7,687.24"
01-DEC-2022,C&FS (P),LCC West Gate School,TRADE SUPPLIER,5212-OLEA Recoupment,"£80,023.26"
01-DEC-2022,Schools Revenue Cost Centres (P),LCC Whitwick CE Primary School A/C,NON TRADE,4908-Grants,£807.00
01-DEC-2022,C&FS (P),Learn Academies Trust Husbands Bosworth CE Primary School,GENERAL,5325-External SEN Providers Top Up Fee,"£2,677.26"
01-DEC-2022,C&FS (P),Learn Academies Trust T/A Red Hill Field Primary School,GENERAL,5325-External SEN Providers Top Up Fee,"£8,317.44"
01-DEC-2022,C&FS (P),Learn Academies Trust T/A South Kilworth CE Primary School,GENERAL,5325-External SEN Providers Top Up Fee,"£1,988.18"
01-DEC-2022,C&FS (P),LEARN ACADEMY TRUST ST ANDREWS PRIMARY SCHOOL&&EYRS1386,GENERAL,5325-External SEN Providers Top Up Fee,"£1,338.63"
01-DEC-2022,Balance Sheet Cost Centres (P),Leicester City Council,OTHER LOCAL AUTHORITIES,9729-Suspense (Current Liability),"£19,068.14"
01-DEC-2022,Environment & Transport (P),Leicester City Council,OTHER LOCAL AUTHORITIES,5213-Payments to Leic City,"£345,979.69"
01-DEC-2022,Chief Executives (P),Lextox,TRADE SUPPLIER,4905-Legal Expenses,"£1,201.00"
01-DEC-2022,Chief Executives (P),Lextox,TRADE SUPPLIER,4905-Legal Expenses,£673.00
01-DEC-2022,C&FS (P),Little Hill Primary School Academy,GENERAL,5325-External SEN Providers Top Up Fee,"£5,261.43"
01-DEC-2022,C&FS (P),Loughborough CE Primary School Academy,GENERAL,5325-External SEN Providers Top Up Fee,"£2,870.33"
01-DEC-2022,C&FS (P),Loughborough Holywell Primary Academy,GENERAL,5325-External SEN Providers Top Up Fee,"£5,650.29"
01-DEC-2022,C&FS (P),Loughborough Holywell Primary Academy,GENERAL,6109-SEN Maintained Sch Top Up Fee,"£1,430.00"
01-DEC-2022,C&FS (P),Lubenham All Saints Primary School Academy,GENERAL,5325-External SEN Providers Top Up Fee,£604.36
01-DEC-2022,C&FS (P),Lutterworth College Academy,GENERAL,5325-External SEN Providers Top Up Fee,"£12,681.15"
01-DEC-2022,C&FS (P),Lutterworth High School Academy,GENERAL,5325-External SEN Providers Top Up Fee,"£15,880.94"
01-DEC-2022,C&FS (P),Market Harborough Church Of England Academy,GENERAL,5325-External SEN Providers Top Up Fee,"£3,675.46"
01-DEC-2022,Adults & Communities (P),MCS Care Services Ltd,NON TRADE,5443-Agency & Contracted Services,"£3,750.00"
01-DEC-2022,Capital - In Year Spend (P),MDS Heating & Plumbing Ltd,SUBCONTRACTOR,941D-L&B - Building Costs,£900.00
01-DEC-2022,Capital - In Year Spend (P),MDS Heating & Plumbing Ltd,SUBCONTRACTOR,941D-L&B - Building Costs,£909.00
01-DEC-2022,Capital - In Year Spend (P),MDS Heating & Plumbing Ltd,SUBCONTRACTOR,941D-L&B - Building Costs,£500.00
01-DEC-2022,C&FS (P),Mead Educational Trust T/A Kibworth Mead Academy,GENERAL,5325-External SEN Providers Top Up Fee,"£7,625.66"
01-DEC-2022,C&FS (P),Meadow Community Primary School,GENERAL,5325-External SEN Providers Top Up Fee,"£13,426.36"
01-DEC-2022,C&FS (P),Meadowdale Primary School Academy,GENERAL,5325-External SEN Providers Top Up Fee,"£8,120.09"
01-DEC-2022,C&FS (P),Measham C of E Primary School Academy Trust,GENERAL,5325-External SEN Providers Top Up Fee,"£2,439.52"
01-DEC-2022,Environment & Transport (P),Melton Borough Council,OTHER LOCAL AUTHORITIES,5211-Other Local Authorities,"£1,560.52"
01-DEC-2022,C&FS (P),Melton Mowbray Grove CP School Academy,GENERAL,5325-External SEN Providers Top Up Fee,"£6,593.85"
01-DEC-2022,Environment & Transport (P),Melton Mowbray Town Estate,OTHER LOCAL AUTHORITIES,2321-Rent & Room Hire,"£9,000.00"
01-DEC-2022,C&FS (P),Melton Swallowdale CP School Academy,GENERAL,5325-External SEN Providers Top Up Fee,"£4,315.24"
01-DEC-2022,C&FS (P),Melton Vale Sixth Form College,GENERAL,5325-External SEN Providers Top Up Fee,"£3,548.23"
01-DEC-2022,Adults & Communities (P),Menphys Ltd,TRADE SUPPLIER,2321-Rent & Room Hire,£675.00
01-DEC-2022,C&FS (P),Mercenfeld Primary School Academy,GENERAL,5325-External SEN Providers Top Up Fee,"£4,015.89"
01-DEC-2022,C&FS (P),Merton Primary Academy,GENERAL,5325-External SEN Providers Top Up Fee,"£2,937.08"
01-DEC-2022,C&FS (P),Millfield LEAD Academy,GENERAL,5325-External SEN Providers Top Up Fee,"£3,496.25"
01-DEC-2022,C&FS (P),Mountfields Lodge School Academy,GENERAL,5325-External SEN Providers Top Up Fee,"£7,472.61"
01-DEC-2022,Environment & Transport (P),Mountsorrel Taxis Ltd,TRADE SUPPLIER,3303-Taxi Hire,"£2,054.94"
01-DEC-2022,Environment & Transport (P),Mountsorrel Taxis Ltd,TRADE SUPPLIER,3303-Taxi Hire,"£1,898.40"
01-DEC-2022,Environment & Transport (P),Mountsorrel Taxis Ltd,TRADE SUPPLIER,3113-Home to Sch Trans Contract Buses Sec,"£1,215.84"
01-DEC-2022,Environment & Transport (P),Mountsorrel Taxis Ltd,TRADE SUPPLIER,3303-Taxi Hire,"£1,440.00"
01-DEC-2022,Environment & Transport (P),Mountsorrel Taxis Ltd,TRADE SUPPLIER,3303-Taxi Hire,"£1,948.77"
01-DEC-2022,C&FS (P),Mowbray Education Trust Ltd (Sherard Primary School),GENERAL,5325-External SEN Providers Top Up Fee,"£16,069.00"
01-DEC-2022,C&FS (P),Mowbray Education Trust Ltd (Sherard Primary School),GENERAL,5325-External SEN Providers Top Up Fee,"£8,186.85"
01-DEC-2022,C&FS (P),New Leaf Triangle CIC,TRADE SUPPLIER,5443-Agency & Contracted Services,£648.00
01-DEC-2022,C&FS (P),Newbridge High School Academy Trust,GENERAL,5325-External SEN Providers Top Up Fee,"£10,644.19"
01-DEC-2022,Environment & Transport (P),NMI Taxi Ltd,TRADE SUPPLIER,3303-Taxi Hire,£935.35
01-DEC-2022,Environment & Transport (P),NMI Taxi Ltd,TRADE SUPPLIER,3201-Pooled Transport Recharge Inhouse,£560.00
01-DEC-2022,Environment & Transport (P),NMI Taxi Ltd,TRADE SUPPLIER,3201-Pooled Transport Recharge Inhouse,"£1,457.00"
01-DEC-2022,Environment & Transport (P),NMI Taxi Ltd,TRADE SUPPLIER,3303-Taxi Hire,"£1,396.00"
01-DEC-2022,Environment & Transport (P),NMI Taxi Ltd,TRADE SUPPLIER,3303-Taxi Hire,"£1,240.00"
01-DEC-2022,Environment & Transport (P),NMI Taxi Ltd,TRADE SUPPLIER,3303-Taxi Hire,£519.50
01-DEC-2022,Environment & Transport (P),NMI Taxi Ltd,TRADE SUPPLIER,3303-Taxi Hire,£897.00
01-DEC-2022,Environment & Transport (P),NMI Taxi Ltd,TRADE SUPPLIER,3303-Taxi Hire,£922.13
01-DEC-2022,Environment & Transport (P),NMI Taxi Ltd,TRADE SUPPLIER,3303-Taxi Hire,"£1,426.00"
01-DEC-2022,Environment & Transport (P),NMI Taxi Ltd,TRADE SUPPLIER,3303-Taxi Hire,"£1,974.40"
01-DEC-2022,Environment & Transport (P),NMI Taxi Ltd,TRADE SUPPLIER,3303-Taxi Hire,£763.95
01-DEC-2022,Environment & Transport (P),NMI Taxi Ltd,TRADE SUPPLIER,3303-Taxi Hire,"£2,340.50"
01-DEC-2022,Environment & Transport (P),NMI Taxi Ltd,TRADE SUPPLIER,3303-Taxi Hire,"£4,864.75"
01-DEC-2022,Environment & Transport (P),NMI Taxi Ltd,TRADE SUPPLIER,3303-Taxi Hire,"£1,141.90"
01-DEC-2022,Environment & Transport (P),NMI Taxi Ltd,TRADE SUPPLIER,3303-Taxi Hire,"£2,569.60"
01-DEC-2022,Environment & Transport (P),NMI Taxi Ltd,TRADE SUPPLIER,3303-Taxi Hire,"£1,760.00"
01-DEC-2022,Environment & Transport (P),NMI Taxi Ltd,TRADE SUPPLIER,3303-Taxi Hire,"£2,254.40"
01-DEC-2022,Environment & Transport (P),NMI Taxi Ltd,TRADE SUPPLIER,3303-Taxi Hire,"£1,610.00"
01-DEC-2022,Environment & Transport (P),NMI Taxi Ltd,TRADE SUPPLIER,3303-Taxi Hire,"£2,464.00"
01-DEC-2022,Environment & Transport (P),NMI Taxi Ltd,TRADE SUPPLIER,3303-Taxi Hire,"£3,544.80"
01-DEC-2022,Environment & Transport (P),NMI Taxi Ltd,TRADE SUPPLIER,3303-Taxi Hire,"£2,100.00"
01-DEC-2022,Environment & Transport (P),NMI Taxi Ltd,TRADE SUPPLIER,3201-Pooled Transport Recharge Inhouse,"£2,740.50"
01-DEC-2022,Environment & Transport (P),NMI Taxi Ltd,TRADE SUPPLIER,3303-Taxi Hire,"£2,270.50"
01-DEC-2022,Environment & Transport (P),NMI Taxi Ltd,TRADE SUPPLIER,3303-Taxi Hire,"£1,821.60"
01-DEC-2022,Environment & Transport (P),NMI Taxi Ltd,TRADE SUPPLIER,3201-Pooled Transport Recharge Inhouse,"£1,949.78"
01-DEC-2022,Environment & Transport (P),NMI Taxi Ltd,TRADE SUPPLIER,3303-Taxi Hire,"£2,201.60"
01-DEC-2022,Environment & Transport (P),NMI Taxi Ltd,TRADE SUPPLIER,3303-Taxi Hire,"£2,776.00"
01-DEC-2022,Environment & Transport (P),NMI Taxi Ltd,TRADE SUPPLIER,3303-Taxi Hire,"£1,253.36"
01-DEC-2022,Environment & Transport (P),NMI Taxi Ltd,TRADE SUPPLIER,3303-Taxi Hire,"£2,624.00"
01-DEC-2022,Environment & Transport (P),NMI Taxi Ltd,TRADE SUPPLIER,3303-Taxi Hire,"£1,025.10"
01-DEC-2022,Environment & Transport (P),NMI Taxi Ltd,TRADE SUPPLIER,3112-Home to Sch Trans Contract Buses Prim,"£1,484.90"
01-DEC-2022,Environment & Transport (P),NMI Taxi Ltd,TRADE SUPPLIER,3201-Pooled Transport Recharge Inhouse,"£1,431.00"
01-DEC-2022,Environment & Transport (P),NMI Taxi Ltd,TRADE SUPPLIER,3201-Pooled Transport Recharge Inhouse,"£2,473.50"
01-DEC-2022,Environment & Transport (P),NMI Taxi Ltd,TRADE SUPPLIER,3201-Pooled Transport Recharge Inhouse,"£2,663.04"
01-DEC-2022,Environment & Transport (P),NMI Taxi Ltd,TRADE SUPPLIER,3201-Pooled Transport Recharge Inhouse,£900.00
01-DEC-2022,Environment & Transport (P),NMI Taxi Ltd,TRADE SUPPLIER,3201-Pooled Transport Recharge Inhouse,£551.65
01-DEC-2022,Environment & Transport (P),NMI Taxi Ltd,TRADE SUPPLIER,3201-Pooled Transport Recharge Inhouse,"£1,760.00"
01-DEC-2022,Environment & Transport (P),NMI Taxi Ltd,TRADE SUPPLIER,3201-Pooled Transport Recharge Inhouse,"£1,953.98"
01-DEC-2022,Environment & Transport (P),NMI Taxi Ltd,TRADE SUPPLIER,3201-Pooled Transport Recharge Inhouse,£912.00
01-DEC-2022,Environment & Transport (P),NMI Taxi Ltd,TRADE SUPPLIER,3201-Pooled Transport Recharge Inhouse,"£2,998.20"
01-DEC-2022,C&FS (P),NonStop Consulting Ltd,TRADE SUPPLIER,1201-Agency Costs,"£1,665.00"
01-DEC-2022,C&FS (P),NonStop Consulting Ltd,TRADE SUPPLIER,1201-Agency Costs,"£1,535.50"
01-DEC-2022,C&FS (P),NonStop Consulting Ltd,TRADE SUPPLIER,1201-Agency Costs,"£1,687.50"
01-DEC-2022,C&FS (P),NonStop Consulting Ltd,TRADE SUPPLIER,1201-Agency Costs,"£1,702.00"
01-DEC-2022,C&FS (P),NonStop Consulting Ltd,TRADE SUPPLIER,1201-Agency Costs,"£1,646.50"
01-DEC-2022,C&FS (P),NonStop Consulting Ltd,TRADE SUPPLIER,1201-Agency Costs,"£1,665.00"
01-DEC-2022,Environment & Transport (P),North West Leicestershire District Council,OTHER LOCAL AUTHORITIES,5211-Other Local Authorities,"£2,170.77"
01-DEC-2022,Environment & Transport (P),North West Leicestershire District Council,OTHER LOCAL AUTHORITIES,5432-Specialist Disposal Costs Food Waste,"£4,206.67"
01-DEC-2022,Environment & Transport (P),North West Leicestershire District Council,OTHER LOCAL AUTHORITIES,5432-Specialist Disposal Costs Food Waste,"£4,097.03"
01-DEC-2022,C&FS (P),Oak Multi Academy Trust T/A Brookside Primary School,GENERAL,5325-External SEN Providers Top Up Fee,"£2,547.35"
01-DEC-2022,C&FS (P),Oak Multi Academy Trust T/A Brookside Primary School,GENERAL,5325-External SEN Providers Top Up Fee,"£12,688.00"
01-DEC-2022,C&FS (P),Oak Multi Academy Trust T/A Manor High School,GENERAL,5325-External SEN Providers Top Up Fee,"£9,305.81"
01-DEC-2022,C&FS (P),Old Dalby CE Primary School Academy,GENERAL,5325-External SEN Providers Top Up Fee,£604.36
01-DEC-2022,C&FS (P),Old Mill Primary School (Academy),GENERAL,5325-External SEN Providers Top Up Fee,"£3,782.06"
01-DEC-2022,Environment & Transport (P),REDACTED PERSONAL DATA,NON TRADE,3303-Taxi Hire,"£1,725.00"
01-DEC-2022,C&FS (P),Outwoods Edge Primary School Academy,GENERAL,5325-External SEN Providers Top Up Fee,"£9,427.61"
01-DEC-2022,C&FS (P),OWLS Academy Trust - Fernvale Primary School,GENERAL,5325-External SEN Providers Top Up Fee,"£1,208.72"
01-DEC-2022,Environment & Transport (P),P&R Cars     1,TRADE SUPPLIER,3303-Taxi Hire,"£1,453.60"
01-DEC-2022,Environment & Transport (P),P&R Cars     1,TRADE SUPPLIER,3303-Taxi Hire,"£1,824.00"
01-DEC-2022,C&FS (P),Paper Moon Nursery Compton Acres Ltd,TRADE SUPPLIER,5624-Transfer Payments Sector 17 Other,"£1,411.00"
01-DEC-2022,C&FS (P),Parkland Primary School T/A Discovery Schools Academies Trust,GENERAL,5325-External SEN Providers Top Up Fee,"£6,586.25"
01-DEC-2022,C&FS (P),Pastures Primary School Academy,GENERAL,5325-External SEN Providers Top Up Fee,"£3,796.64"
01-DEC-2022,Environment & Transport (P),Planters (Leicester) Ltd,SUBCONTRACTOR,6402-Environment & Transport HP & HV Recharge,£694.50
01-DEC-2022,C&FS (P),Premier Education Group Ltd,GENERAL,4908-Grants,"£2,656.50"
01-DEC-2022,C&FS (P),Premier Mobility (UK) Ltd,SUBCONTRACTOR,4102-General Equipment - Purchase & Repairs,"£1,307.00"
01-DEC-2022,Environment & Transport (P),Premier Taxis Leicester Ltd,TRADE SUPPLIER,3201-Pooled Transport Recharge Inhouse,£605.00
01-DEC-2022,Environment & Transport (P),Premier Taxis Leicester Ltd,TRADE SUPPLIER,3112-Home to Sch Trans Contract Buses Prim,£920.00
01-DEC-2022,Environment & Transport (P),Premier Taxis Leicester Ltd,TRADE SUPPLIER,3303-Taxi Hire,"£1,470.00"
01-DEC-2022,Environment & Transport (P),Premier Taxis Leicester Ltd,TRADE SUPPLIER,3303-Taxi Hire,"£1,087.90"
01-DEC-2022,Environment & Transport (P),Premier Taxis Leicester Ltd,TRADE SUPPLIER,3303-Taxi Hire,"£1,274.52"
01-DEC-2022,Environment & Transport (P),Premier Taxis Leicester Ltd,TRADE SUPPLIER,3201-Pooled Transport Recharge Inhouse,"£1,094.80"
01-DEC-2022,Environment & Transport (P),Premier Taxis Leicester Ltd,TRADE SUPPLIER,3303-Taxi Hire,£969.00
01-DEC-2022,Environment & Transport (P),Premier Taxis Leicester Ltd,TRADE SUPPLIER,3303-Taxi Hire,"£1,367.35"
01-DEC-2022,Environment & Transport (P),Premier Taxis Leicester Ltd,TRADE SUPPLIER,3303-Taxi Hire,"£1,315.60"
01-DEC-2022,Environment & Transport (P),Premier Taxis Leicester Ltd,TRADE SUPPLIER,3303-Taxi Hire,"£1,760.00"
01-DEC-2022,Environment & Transport (P),Premier Taxis Leicester Ltd,TRADE SUPPLIER,3303-Taxi Hire,"£2,488.00"
01-DEC-2022,Environment & Transport (P),Premier Taxis Leicester Ltd,TRADE SUPPLIER,3303-Taxi Hire,£941.16
01-DEC-2022,Environment & Transport (P),Premier Taxis Leicester Ltd,TRADE SUPPLIER,3303-Taxi Hire,"£1,904.00"
01-DEC-2022,Environment & Transport (P),Premier Taxis Leicester Ltd,TRADE SUPPLIER,3303-Taxi Hire,"£1,593.00"
01-DEC-2022,Environment & Transport (P),Premier Taxis Leicester Ltd,TRADE SUPPLIER,3303-Taxi Hire,"£2,432.00"
01-DEC-2022,Environment & Transport (P),Premier Taxis Leicester Ltd,TRADE SUPPLIER,3303-Taxi Hire,"£2,169.60"
01-DEC-2022,Environment & Transport (P),Premier Taxis Leicester Ltd,TRADE SUPPLIER,3303-Taxi Hire,"£1,093.28"
01-DEC-2022,Environment & Transport (P),Premier Taxis Leicester Ltd,TRADE SUPPLIER,3303-Taxi Hire,£897.00
01-DEC-2022,Environment & Transport (P),Premier Taxis Leicester Ltd,TRADE SUPPLIER,3201-Pooled Transport Recharge Inhouse,"£1,870.00"
01-DEC-2022,Environment & Transport (P),Premier Taxis Leicester Ltd,TRADE SUPPLIER,3201-Pooled Transport Recharge Inhouse,£611.00
01-DEC-2022,Environment & Transport (P),Premier Taxis Leicester Ltd,TRADE SUPPLIER,3303-Taxi Hire,"£2,845.44"
01-DEC-2022,Environment & Transport (P),Premier Taxis Leicester Ltd,TRADE SUPPLIER,3303-Taxi Hire,£911.10
01-DEC-2022,Environment & Transport (P),Premier Taxis Leicester Ltd,TRADE SUPPLIER,3303-Taxi Hire,"£2,144.00"
01-DEC-2022,Environment & Transport (P),Premier Taxis Leicester Ltd,TRADE SUPPLIER,3303-Taxi Hire,"£1,803.20"
01-DEC-2022,Environment & Transport (P),Premier Taxis Leicester Ltd,TRADE SUPPLIER,3303-Taxi Hire,"£2,553.60"
01-DEC-2022,Environment & Transport (P),Premier Taxis Leicester Ltd,TRADE SUPPLIER,3303-Taxi Hire,"£1,896.96"
01-DEC-2022,Environment & Transport (P),Premier Taxis Leicester Ltd,TRADE SUPPLIER,3303-Taxi Hire,"£1,496.00"
01-DEC-2022,Environment & Transport (P),Premier Taxis Leicester Ltd,TRADE SUPPLIER,3303-Taxi Hire,"£1,118.00"
01-DEC-2022,Environment & Transport (P),Premier Taxis Leicester Ltd,TRADE SUPPLIER,3303-Taxi Hire,"£1,680.00"
01-DEC-2022,Environment & Transport (P),Premier Taxis Leicester Ltd,TRADE SUPPLIER,3303-Taxi Hire,"£1,619.20"
01-DEC-2022,Environment & Transport (P),Premier Taxis Leicester Ltd,TRADE SUPPLIER,3112-Home to Sch Trans Contract Buses Prim,£759.50
01-DEC-2022,Environment & Transport (P),Premier Taxis Leicester Ltd,TRADE SUPPLIER,3113-Home to Sch Trans Contract Buses Sec,"£2,176.00"
01-DEC-2022,Environment & Transport (P),Premier Taxis Leicester Ltd,TRADE SUPPLIER,3113-Home to Sch Trans Contract Buses Sec,£944.00
01-DEC-2022,Environment & Transport (P),Premier Taxis Leicester Ltd,TRADE SUPPLIER,3303-Taxi Hire,"£1,005.00"
01-DEC-2022,Environment & Transport (P),Premier Taxis Leicester Ltd,TRADE SUPPLIER,3201-Pooled Transport Recharge Inhouse,£640.00
01-DEC-2022,Environment & Transport (P),Premier Taxis Leicester Ltd,TRADE SUPPLIER,3203-Pooled Transport Recharge Contractors,"£1,064.00"
01-DEC-2022,Environment & Transport (P),Premier Taxis Leicester Ltd,TRADE SUPPLIER,3201-Pooled Transport Recharge Inhouse,£696.00
01-DEC-2022,Environment & Transport (P),Premier Taxis Leicester Ltd,TRADE SUPPLIER,3201-Pooled Transport Recharge Inhouse,"£2,872.80"
01-DEC-2022,Environment & Transport (P),Premier Taxis Leicester Ltd,TRADE SUPPLIER,3201-Pooled Transport Recharge Inhouse,£528.00
01-DEC-2022,Environment & Transport (P),Premier Taxis Leicester Ltd,TRADE SUPPLIER,3201-Pooled Transport Recharge Inhouse,"£1,737.70"
01-DEC-2022,Environment & Transport (P),Premier Taxis Leicester Ltd,TRADE SUPPLIER,3303-Taxi Hire,"£1,728.00"
01-DEC-2022,Environment & Transport (P),Premier Taxis Leicester Ltd,TRADE SUPPLIER,3113-Home to Sch Trans Contract Buses Sec,"£1,120.00"
01-DEC-2022,Environment & Transport (P),Premier Taxis Leicester Ltd,TRADE SUPPLIER,3113-Home to Sch Trans Contract Buses Sec,"£1,856.00"
01-DEC-2022,Environment & Transport (P),Premier Taxis Leicester Ltd,TRADE SUPPLIER,3113-Home to Sch Trans Contract Buses Sec,"£1,504.00"
01-DEC-2022,Environment & Transport (P),Premier Taxis Leicester Ltd,TRADE SUPPLIER,3113-Home to Sch Trans Contract Buses Sec,"£1,718.40"
01-DEC-2022,Environment & Transport (P),Premier Taxis Leicester Ltd,TRADE SUPPLIER,3113-Home to Sch Trans Contract Buses Sec,"£1,984.00"
01-DEC-2022,Environment & Transport (P),Premier Taxis Leicester Ltd,TRADE SUPPLIER,3112-Home to Sch Trans Contract Buses Prim,"£1,273.00"
01-DEC-2022,Environment & Transport (P),Premier Taxis Leicester Ltd,TRADE SUPPLIER,3201-Pooled Transport Recharge Inhouse,£641.92
01-DEC-2022,Environment & Transport (P),Premier Taxis Leicester Ltd,TRADE SUPPLIER,3201-Pooled Transport Recharge Inhouse,£704.00
01-DEC-2022,Environment & Transport (P),Premier Taxis Leicester Ltd,TRADE SUPPLIER,3201-Pooled Transport Recharge Inhouse,£503.88
01-DEC-2022,Environment & Transport (P),Premier Taxis Leicester Ltd,TRADE SUPPLIER,3201-Pooled Transport Recharge Inhouse,£841.00
01-DEC-2022,Environment & Transport (P),Premier Taxis Leicester Ltd,TRADE SUPPLIER,3201-Pooled Transport Recharge Inhouse,"£1,138.50"
01-DEC-2022,Environment & Transport (P),Premier Taxis Leicester Ltd,TRADE SUPPLIER,3201-Pooled Transport Recharge Inhouse,"£2,106.72"
01-DEC-2022,Environment & Transport (P),Premier Taxis Leicester Ltd,TRADE SUPPLIER,3201-Pooled Transport Recharge Inhouse,"£1,280.00"
01-DEC-2022,Environment & Transport (P),Premier Taxis Leicester Ltd,TRADE SUPPLIER,3113-Home to Sch Trans Contract Buses Sec,"£1,116.00"
01-DEC-2022,Environment & Transport (P),Premier Taxis Leicester Ltd,TRADE SUPPLIER,3303-Taxi Hire,"£1,516.20"
01-DEC-2022,Environment & Transport (P),Premier Taxis Leicester Ltd,TRADE SUPPLIER,3303-Taxi Hire,£616.00
01-DEC-2022,Environment & Transport (P),Premier Taxis Leicester Ltd,TRADE SUPPLIER,3303-Taxi Hire,"£1,219.00"
01-DEC-2022,Environment & Transport (P),Premier Taxis Leicester Ltd,TRADE SUPPLIER,3303-Taxi Hire,"£1,191.60"
01-DEC-2022,Environment & Transport (P),Premier Taxis Leicester Ltd,TRADE SUPPLIER,3303-Taxi Hire,"£1,913.60"
01-DEC-2022,Environment & Transport (P),Premier Taxis Leicester Ltd,TRADE SUPPLIER,3303-Taxi Hire,"£1,384.60"
01-DEC-2022,Environment & Transport (P),Premier Taxis Leicester Ltd,TRADE SUPPLIER,3303-Taxi Hire,"£1,302.00"
01-DEC-2022,Environment & Transport (P),Premier Taxis Leicester Ltd,TRADE SUPPLIER,3201-Pooled Transport Recharge Inhouse,£729.60
01-DEC-2022,Environment & Transport (P),Premier Taxis Leicester Ltd,TRADE SUPPLIER,3303-Taxi Hire,£774.00
01-DEC-2022,Environment & Transport (P),Premier Taxis Leicester Ltd,TRADE SUPPLIER,3303-Taxi Hire,"£1,332.10"
01-DEC-2022,Environment & Transport (P),Premier Taxis Leicester Ltd,TRADE SUPPLIER,3303-Taxi Hire,"£1,239.70"
01-DEC-2022,Environment & Transport (P),Premier Taxis Leicester Ltd,TRADE SUPPLIER,3303-Taxi Hire,"£1,856.00"
01-DEC-2022,Environment & Transport (P),Premier Taxis Leicester Ltd,TRADE SUPPLIER,3303-Taxi Hire,"£1,113.20"
01-DEC-2022,Environment & Transport (P),Premier Taxis Leicester Ltd,TRADE SUPPLIER,3303-Taxi Hire,"£1,483.50"
01-DEC-2022,Environment & Transport (P),Premier Taxis Leicester Ltd,TRADE SUPPLIER,3303-Taxi Hire,"£1,619.20"
01-DEC-2022,Environment & Transport (P),Premier Taxis Leicester Ltd,TRADE SUPPLIER,3201-Pooled Transport Recharge Inhouse,£720.00
01-DEC-2022,Environment & Transport (P),Premier Taxis Leicester Ltd,TRADE SUPPLIER,3303-Taxi Hire,"£1,792.00"
01-DEC-2022,Environment & Transport (P),Premier Taxis Leicester Ltd,TRADE SUPPLIER,3303-Taxi Hire,"£1,164.40"
01-DEC-2022,Environment & Transport (P),Premier Taxis Leicester Ltd,TRADE SUPPLIER,3303-Taxi Hire,"£1,344.20"
01-DEC-2022,Environment & Transport (P),Premier Taxis Leicester Ltd,TRADE SUPPLIER,3303-Taxi Hire,"£2,201.10"
01-DEC-2022,Environment & Transport (P),Premier Taxis Leicester Ltd,TRADE SUPPLIER,3303-Taxi Hire,"£2,048.00"
01-DEC-2022,Environment & Transport (P),Premier Taxis Leicester Ltd,TRADE SUPPLIER,3303-Taxi Hire,"£1,540.00"
01-DEC-2022,Environment & Transport (P),Premier Taxis Leicester Ltd,TRADE SUPPLIER,3303-Taxi Hire,"£1,240.00"
01-DEC-2022,Environment & Transport (P),Premier Taxis Leicester Ltd,TRADE SUPPLIER,3303-Taxi Hire,"£1,376.00"
01-DEC-2022,Environment & Transport (P),Premier Taxis Leicester Ltd,TRADE SUPPLIER,3201-Pooled Transport Recharge Inhouse,"£1,030.40"
01-DEC-2022,Environment & Transport (P),Premier Taxis Leicester Ltd,TRADE SUPPLIER,3303-Taxi Hire,£898.15
01-DEC-2022,Environment & Transport (P),Premier Taxis Leicester Ltd,TRADE SUPPLIER,3303-Taxi Hire,"£1,082.00"
01-DEC-2022,Environment & Transport (P),Premier Taxis Leicester Ltd,TRADE SUPPLIER,3303-Taxi Hire,"£1,086.00"
01-DEC-2022,Environment & Transport (P),Premier Taxis Leicester Ltd,TRADE SUPPLIER,3303-Taxi Hire,£938.40
01-DEC-2022,Environment & Transport (P),Premier Taxis Leicester Ltd,TRADE SUPPLIER,3303-Taxi Hire,"£1,315.60"
01-DEC-2022,Environment & Transport (P),Premier Taxis Leicester Ltd,TRADE SUPPLIER,3303-Taxi Hire,"£1,792.00"
01-DEC-2022,Environment & Transport (P),Premier Taxis Leicester Ltd,TRADE SUPPLIER,3303-Taxi Hire,"£2,134.40"
01-DEC-2022,Environment & Transport (P),Premier Taxis Leicester Ltd,TRADE SUPPLIER,3303-Taxi Hire,"£1,824.00"
01-DEC-2022,Environment & Transport (P),Premier Taxis Leicester Ltd,TRADE SUPPLIER,3303-Taxi Hire,"£1,728.00"
01-DEC-2022,Environment & Transport (P),Premier Taxis Leicester Ltd,TRADE SUPPLIER,3303-Taxi Hire,"£1,900.48"
01-DEC-2022,Environment & Transport (P),Premier Taxis Leicester Ltd,TRADE SUPPLIER,3303-Taxi Hire,"£1,582.40"
01-DEC-2022,Environment & Transport (P),Premier Taxis Leicester Ltd,TRADE SUPPLIER,3303-Taxi Hire,"£2,144.00"
01-DEC-2022,Environment & Transport (P),Premier Taxis Leicester Ltd,TRADE SUPPLIER,3303-Taxi Hire,"£2,465.60"
01-DEC-2022,Environment & Transport (P),Premier Taxis Leicester Ltd,TRADE SUPPLIER,3303-Taxi Hire,"£2,208.00"
01-DEC-2022,Environment & Transport (P),Premier Taxis Leicester Ltd,TRADE SUPPLIER,3303-Taxi Hire,"£2,288.00"
01-DEC-2022,Environment & Transport (P),Premier Taxis Leicester Ltd,TRADE SUPPLIER,3303-Taxi Hire,"£1,619.20"
01-DEC-2022,Environment & Transport (P),Premier Taxis Leicester Ltd,TRADE SUPPLIER,3303-Taxi Hire,"£2,944.00"
01-DEC-2022,Environment & Transport (P),Premier Taxis Leicester Ltd,TRADE SUPPLIER,3303-Taxi Hire,"£1,311.00"
01-DEC-2022,Environment & Transport (P),Premier Taxis Leicester Ltd,TRADE SUPPLIER,3303-Taxi Hire,"£1,619.20"
01-DEC-2022,Environment & Transport (P),Premier Taxis Leicester Ltd,TRADE SUPPLIER,3303-Taxi Hire,"£1,856.00"
01-DEC-2022,Environment & Transport (P),Premier Taxis Leicester Ltd,TRADE SUPPLIER,3303-Taxi Hire,"£1,664.00"
01-DEC-2022,Environment & Transport (P),Premier Taxis Leicester Ltd,TRADE SUPPLIER,3303-Taxi Hire,"£2,281.60"
01-DEC-2022,Environment & Transport (P),Premier Taxis Leicester Ltd,TRADE SUPPLIER,3303-Taxi Hire,£507.00
01-DEC-2022,Environment & Transport (P),Premier Taxis Leicester Ltd,TRADE SUPPLIER,3303-Taxi Hire,"£2,048.00"
01-DEC-2022,Environment & Transport (P),Premier Taxis Leicester Ltd,TRADE SUPPLIER,3303-Taxi Hire,£768.00
01-DEC-2022,Environment & Transport (P),Premier Taxis Leicester Ltd,TRADE SUPPLIER,3303-Taxi Hire,"£2,281.60"
01-DEC-2022,Environment & Transport (P),Premier Taxis Leicester Ltd,TRADE SUPPLIER,3303-Taxi Hire,"£1,080.00"
01-DEC-2022,Environment & Transport (P),Premier Taxis Leicester Ltd,TRADE SUPPLIER,3303-Taxi Hire,"£2,464.00"
01-DEC-2022,Environment & Transport (P),Premier Taxis Leicester Ltd,TRADE SUPPLIER,3303-Taxi Hire,"£1,540.00"
01-DEC-2022,Environment & Transport (P),Premier Taxis Leicester Ltd,TRADE SUPPLIER,3303-Taxi Hire,"£2,060.80"
01-DEC-2022,Environment & Transport (P),Premier Taxis Leicester Ltd,TRADE SUPPLIER,3303-Taxi Hire,"£2,362.72"
01-DEC-2022,Environment & Transport (P),Premier Taxis Leicester Ltd,TRADE SUPPLIER,3201-Pooled Transport Recharge Inhouse,£651.00
01-DEC-2022,Environment & Transport (P),Premier Taxis Leicester Ltd,TRADE SUPPLIER,3201-Pooled Transport Recharge Inhouse,£938.76
01-DEC-2022,Environment & Transport (P),Premier Taxis Leicester Ltd,TRADE SUPPLIER,3303-Taxi Hire,"£1,661.28"
01-DEC-2022,Environment & Transport (P),Premier Taxis Leicester Ltd,TRADE SUPPLIER,3303-Taxi Hire,"£1,160.00"
01-DEC-2022,Environment & Transport (P),Premier Taxis Leicester Ltd,TRADE SUPPLIER,3303-Taxi Hire,"£1,180.00"
01-DEC-2022,Environment & Transport (P),Premier Taxis Leicester Ltd,TRADE SUPPLIER,3303-Taxi Hire,"£1,728.00"
01-DEC-2022,Environment & Transport (P),Premier Taxis Leicester Ltd,TRADE SUPPLIER,3303-Taxi Hire,"£1,632.00"
01-DEC-2022,Environment & Transport (P),Premier Taxis Leicester Ltd,TRADE SUPPLIER,3303-Taxi Hire,"£1,155.00"
01-DEC-2022,Environment & Transport (P),Premier Taxis Leicester Ltd,TRADE SUPPLIER,3303-Taxi Hire,"£2,048.00"
01-DEC-2022,Environment & Transport (P),Premier Taxis Leicester Ltd,TRADE SUPPLIER,3303-Taxi Hire,"£1,964.88"
01-DEC-2022,Environment & Transport (P),Premier Taxis Leicester Ltd,TRADE SUPPLIER,3303-Taxi Hire,£728.00
01-DEC-2022,Environment & Transport (P),Premier Taxis Leicester Ltd,TRADE SUPPLIER,3303-Taxi Hire,£767.00
01-DEC-2022,Environment & Transport (P),Premier Taxis Leicester Ltd,TRADE SUPPLIER,3303-Taxi Hire,"£1,751.04"
01-DEC-2022,Environment & Transport (P),Premier Taxis Leicester Ltd,TRADE SUPPLIER,3303-Taxi Hire,"£1,408.00"
01-DEC-2022,Environment & Transport (P),Premier Taxis Leicester Ltd,TRADE SUPPLIER,3303-Taxi Hire,"£1,444.00"
01-DEC-2022,Environment & Transport (P),Premier Taxis Leicester Ltd,TRADE SUPPLIER,3303-Taxi Hire,"£1,691.76"
01-DEC-2022,Environment & Transport (P),Premier Taxis Leicester Ltd,TRADE SUPPLIER,3303-Taxi Hire,"£1,804.00"
01-DEC-2022,Environment & Transport (P),Premier Taxis Leicester Ltd,TRADE SUPPLIER,3303-Taxi Hire,£800.00
01-DEC-2022,Environment & Transport (P),Premier Taxis Leicester Ltd,TRADE SUPPLIER,3303-Taxi Hire,"£1,830.00"
01-DEC-2022,Environment & Transport (P),Premier Taxis Leicester Ltd,TRADE SUPPLIER,3201-Pooled Transport Recharge Inhouse,"£2,900.80"
01-DEC-2022,Environment & Transport (P),Premier Taxis Leicester Ltd,TRADE SUPPLIER,3303-Taxi Hire,"£1,969.92"
01-DEC-2022,Environment & Transport (P),Premier Taxis Leicester Ltd,TRADE SUPPLIER,3303-Taxi Hire,"£2,036.48"
01-DEC-2022,Environment & Transport (P),Premier Taxis Leicester Ltd,TRADE SUPPLIER,3303-Taxi Hire,"£2,220.00"
01-DEC-2022,Environment & Transport (P),Premier Taxis Leicester Ltd,TRADE SUPPLIER,3303-Taxi Hire,"£2,918.40"
01-DEC-2022,Environment & Transport (P),Premier Taxis Leicester Ltd,TRADE SUPPLIER,3303-Taxi Hire,"£2,184.64"
01-DEC-2022,Environment & Transport (P),Premier Taxis Leicester Ltd,TRADE SUPPLIER,3201-Pooled Transport Recharge Inhouse,£572.00
01-DEC-2022,Environment & Transport (P),Premier Taxis Leicester Ltd,TRADE SUPPLIER,3201-Pooled Transport Recharge Inhouse,"£1,536.00"
01-DEC-2022,Environment & Transport (P),Premier Taxis Leicester Ltd,TRADE SUPPLIER,3201-Pooled Transport Recharge Inhouse,"£1,534.50"
01-DEC-2022,Environment & Transport (P),Premier Taxis Leicester Ltd,TRADE SUPPLIER,3303-Taxi Hire,"£1,913.60"
01-DEC-2022,Environment & Transport (P),Premier Taxis Leicester Ltd,TRADE SUPPLIER,3303-Taxi Hire,"£1,149.40"
01-DEC-2022,Environment & Transport (P),Premier Taxis Leicester Ltd,TRADE SUPPLIER,3201-Pooled Transport Recharge Inhouse,"£2,336.00"
01-DEC-2022,Environment & Transport (P),Premier Taxis Leicester Ltd,TRADE SUPPLIER,3303-Taxi Hire,"£1,240.00"
01-DEC-2022,Environment & Transport (P),Premier Taxis Leicester Ltd,TRADE SUPPLIER,3303-Taxi Hire,£936.00
01-DEC-2022,Environment & Transport (P),Premier Taxis Leicester Ltd,TRADE SUPPLIER,3201-Pooled Transport Recharge Inhouse,"£1,488.00"
01-DEC-2022,Environment & Transport (P),Premier Taxis Leicester Ltd,TRADE SUPPLIER,3303-Taxi Hire,"£2,318.80"
01-DEC-2022,Environment & Transport (P),Premier Taxis Leicester Ltd,TRADE SUPPLIER,3303-Taxi Hire,"£2,074.00"
01-DEC-2022,Environment & Transport (P),Premier Taxis Leicester Ltd,TRADE SUPPLIER,3303-Taxi Hire,"£2,266.56"
01-DEC-2022,Environment & Transport (P),Premier Taxis Leicester Ltd,TRADE SUPPLIER,3303-Taxi Hire,"£1,920.00"
01-DEC-2022,Environment & Transport (P),Premier Taxis Leicester Ltd,TRADE SUPPLIER,3303-Taxi Hire,"£1,619.20"
01-DEC-2022,Environment & Transport (P),Premier Taxis Leicester Ltd,TRADE SUPPLIER,3303-Taxi Hire,"£1,214.40"
01-DEC-2022,Environment & Transport (P),Premier Taxis Leicester Ltd,TRADE SUPPLIER,3303-Taxi Hire,"£1,952.00"
01-DEC-2022,Environment & Transport (P),Premier Taxis Leicester Ltd,TRADE SUPPLIER,3303-Taxi Hire,"£2,515.20"
01-DEC-2022,Environment & Transport (P),Premier Taxis Leicester Ltd,TRADE SUPPLIER,3303-Taxi Hire,"£1,766.40"
01-DEC-2022,Environment & Transport (P),Premier Taxis Leicester Ltd,TRADE SUPPLIER,3303-Taxi Hire,"£2,060.80"
01-DEC-2022,Environment & Transport (P),Premier Taxis Leicester Ltd,TRADE SUPPLIER,3303-Taxi Hire,"£2,110.00"
01-DEC-2022,Environment & Transport (P),Premier Taxis Leicester Ltd,TRADE SUPPLIER,3303-Taxi Hire,"£2,048.00"
01-DEC-2022,Environment & Transport (P),Premier Taxis Leicester Ltd,TRADE SUPPLIER,3303-Taxi Hire,"£2,880.00"
01-DEC-2022,Environment & Transport (P),Premier Taxis Leicester Ltd,TRADE SUPPLIER,3303-Taxi Hire,"£2,024.96"
01-DEC-2022,Environment & Transport (P),Premier Taxis Leicester Ltd,TRADE SUPPLIER,3303-Taxi Hire,"£2,304.00"
01-DEC-2022,Environment & Transport (P),Premier Taxis Leicester Ltd,TRADE SUPPLIER,3303-Taxi Hire,"£1,338.84"
01-DEC-2022,Environment & Transport (P),Premier Taxis Leicester Ltd,TRADE SUPPLIER,3303-Taxi Hire,"£1,992.00"
01-DEC-2022,Environment & Transport (P),Premier Taxis Leicester Ltd,TRADE SUPPLIER,3303-Taxi Hire,"£1,932.00"
01-DEC-2022,C&FS (P),Priory Federation Of Academies Trust,GENERAL,5325-External SEN Providers Top Up Fee,"£10,469.60"
01-DEC-2022,Environment & Transport (P),REDACTED PERSONAL DATA,NON TRADE,3112-Home to Sch Trans Contract Buses Prim,"£1,216.00"
01-DEC-2022,Environment & Transport (P),REDACTED PERSONAL DATA,NON TRADE,3303-Taxi Hire,"£2,005.60"
01-DEC-2022,Corporate Resources (CR) (P),Proudcastle Ltd,TRADE SUPPLIER,2102-R&M Buildings Service Contracts,£695.00
01-DEC-2022,Environment & Transport (P),Proving Services Ltd,TRADE SUPPLIER,4909-Subscriptions,"£4,950.00"
01-DEC-2022,C&FS (P),Queniborough CE Primary School Academy,GENERAL,5325-External SEN Providers Top Up Fee,"£2,332.72"
01-DEC-2022,C&FS (P),Queniborough CE Primary School Academy,GENERAL,6109-SEN Maintained Sch Top Up Fee,"£4,290.00"
01-DEC-2022,Environment & Transport (P),R & R Taxis Ltd,TRADE SUPPLIER,3201-Pooled Transport Recharge Inhouse,"£1,813.76"
01-DEC-2022,Environment & Transport (P),R & R Taxis Ltd,TRADE SUPPLIER,3303-Taxi Hire,"£1,209.89"
01-DEC-2022,Environment & Transport (P),R & R Taxis Ltd,TRADE SUPPLIER,3303-Taxi Hire,"£1,444.80"
01-DEC-2022,Environment & Transport (P),R & R Taxis Ltd,TRADE SUPPLIER,3303-Taxi Hire,"£2,318.40"
01-DEC-2022,Environment & Transport (P),R2C Online Ltd,TRADE SUPPLIER,4603-IT Software Licenses/Subscription,"£2,916.67"
01-DEC-2022,C&FS (P),Ratby Primary School Academy,GENERAL,5325-External SEN Providers Top Up Fee,"£4,964.79"
01-DEC-2022,C&FS (P),Rawlins Academy,GENERAL,5324-External SEN Providers Place Fee,"£3,000.00"
01-DEC-2022,C&FS (P),Rawlins Academy,GENERAL,5325-External SEN Providers Top Up Fee,"£16,231.85"
01-DEC-2022,C&FS (P),Rawlins Academy,GENERAL,5325-External SEN Providers Top Up Fee,"£12,063.00"
01-DEC-2022,C&FS (P),Rawlins Academy,GENERAL,5325-External SEN Providers Top Up Fee,"£33,954.00"
01-DEC-2022,C&FS (P),Rawlins Academy,GENERAL,6101-Support Services,"£4,385.09"
01-DEC-2022,Environment & Transport (P),Reach Publishing Services Ltd,TRADE SUPPLIER,"4503-Advertising, Publicity & Marketing",£529.09
01-DEC-2022,Chief Executives (P),Reach Publishing Services Ltd,TRADE SUPPLIER,"4503-Advertising, Publicity & Marketing",£764.24
01-DEC-2022,Environment & Transport (P),Reach Publishing Services Ltd,TRADE SUPPLIER,"4503-Advertising, Publicity & Marketing",£764.24
01-DEC-2022,Environment & Transport (P),Reach Publishing Services Ltd,TRADE SUPPLIER,"4503-Advertising, Publicity & Marketing",£529.09
01-DEC-2022,C&FS (P),Redlands Community Primary School Academy T/A Discovery Schools Academy Trust,GENERAL,5325-External SEN Providers Top Up Fee,"£4,399.96"
01-DEC-2022,C&FS (P),Redmile CE Primary School Academy,GENERAL,5325-External SEN Providers Top Up Fee,"£1,941.45"
01-DEC-2022,C&FS (P),Redmoor High School Academy Trust,GENERAL,5325-External SEN Providers Top Up Fee,"£15,062.87"
01-DEC-2022,C&FS (P),Rendell Primary School Academy,GENERAL,5325-External SEN Providers Top Up Fee,"£2,677.26"
01-DEC-2022,C&FS (P),Ridgeway Primary Academy,GENERAL,5325-External SEN Providers Top Up Fee,"£8,265.62"
01-DEC-2022,C&FS (P),Rise Multi Academy Trust,GENERAL,5325-External SEN Providers Top Up Fee,"£5,687.45"
01-DEC-2022,C&FS (P),Riverside Commuity Primary School Academy,GENERAL,6109-SEN Maintained Sch Top Up Fee,"£1,430.00"
01-DEC-2022,C&FS (P),Riverside Commuity Primary School Academy,GENERAL,5325-External SEN Providers Top Up Fee,"£11,040.34"
01-DEC-2022,C&FS (P),Riverside Commuity Primary School Academy,GENERAL,6101-Support Services,"£17,004.65"
01-DEC-2022,C&FS (P),Robert Bakewell Community School Academy,GENERAL,5325-External SEN Providers Top Up Fee,"£5,828.97"
01-DEC-2022,C&FS (P),Robert Smyth Academy T/A Tudor Grange Academies Trust,GENERAL,5325-External SEN Providers Top Up Fee,"£10,300.16"
01-DEC-2022,C&FS (P),Rothley CE Primary School Academy,GENERAL,5325-External SEN Providers Top Up Fee,"£7,524.17"
01-DEC-2022,C&FS (P),Roundhill Academy,GENERAL,6101-Support Services,"£1,717.07"
01-DEC-2022,C&FS (P),Roundhill Academy,GENERAL,5325-External SEN Providers Top Up Fee,"£9,129.63"
01-DEC-2022,Balance Sheet Cost Centres (P),Rutland County Council,NON TRADE,9729-Suspense (Current Liability),"£9,932.51"
01-DEC-2022,Environment & Transport (P),REDACTED PERSONAL DATA,TRADE INDIVIDUAL,3303-Taxi Hire,"£1,102.24"
01-DEC-2022,Environment & Transport (P),REDACTED PERSONAL DATA,TRADE INDIVIDUAL,3303-Taxi Hire,"£2,564.96"
01-DEC-2022,Environment & Transport (P),REDACTED PERSONAL DATA,TRADE INDIVIDUAL,3303-Taxi Hire,"£2,070.40"
01-DEC-2022,Environment & Transport (P),REDACTED PERSONAL DATA,NON TRADE,3113-Home to Sch Trans Contract Buses Sec,"£1,920.00"
01-DEC-2022,C&FS (P),Sense Children & Adult Services,NON TRADE,5429-Community/Domiciliary,£657.72
01-DEC-2022,C&FS (P),Sense Children & Adult Services,NON TRADE,5429-Community/Domiciliary,£657.72
01-DEC-2022,C&FS (P),Sharnford CE Primary School (Academy),GENERAL,5325-External SEN Providers Top Up Fee,"£2,202.81"
01-DEC-2022,Environment & Transport (P),REDACTED PERSONAL DATA,TRADE INDIVIDUAL,4507-Consultants & Specialists,"£3,280.00"
01-DEC-2022,C&FS (P),Somerby Primary School Academy,GENERAL,5325-External SEN Providers Top Up Fee,"£1,683.17"
01-DEC-2022,C&FS (P),South Charnwood High School Academy,GENERAL,5325-External SEN Providers Top Up Fee,"£13,279.30"
01-DEC-2022,C&FS (P),South Wigston High School Academy,GENERAL,5325-External SEN Providers Top Up Fee,"£3,730.41"
01-DEC-2022,Environment & Transport (P),Speedline Mini Buses & Taxis,TRADE SUPPLIER,3303-Taxi Hire,"£1,478.40"
01-DEC-2022,C&FS (P),Spencer Academy T/A Long Field Academy,GENERAL,5325-External SEN Providers Top Up Fee,"£13,062.15"
01-DEC-2022,C&FS (P),St Margarets CE Primary School (Inspiring Primaries Academy Trust),GENERAL,5325-External SEN Providers Top Up Fee,"£7,941.42"
01-DEC-2022,C&FS (P),St Marys CE Primary School Academy,GENERAL,5325-External SEN Providers Top Up Fee,"£3,665.69"
01-DEC-2022,C&FS (P),St Marys RC Primary School Academy,GENERAL,5325-External SEN Providers Top Up Fee,"£3,281.62"
01-DEC-2022,C&FS (P),St Michael & All Angels C of E Primary School Academy,GENERAL,5325-External SEN Providers Top Up Fee,"£1,858.27"
01-DEC-2022,C&FS (P),St Peters C.E. Primary Academy,GENERAL,5325-External SEN Providers Top Up Fee,"£15,015.47"
01-DEC-2022,C&FS (P),St Peters CE Primary School Academy,GENERAL,5325-External SEN Providers Top Up Fee,£604.36
01-DEC-2022,C&FS (P),St Simon & St Jude CE Primary School,GENERAL,5325-External SEN Providers Top Up Fee,"£3,271.85"
01-DEC-2022,C&FS (P),St Thomas Aquinas Catholic Multi Academy Trust T/A Bishop Ellis Catholic Academy,GENERAL,6109-SEN Maintained Sch Top Up Fee,"£6,419.79"
01-DEC-2022,C&FS (P),St Thomas Aquinas Catholic Multi Academy Trust T/A Holy Cross School A Catholic Voluntary Academy,GENERAL,5325-External SEN Providers Top Up Fee,"£2,287.53"
01-DEC-2022,C&FS (P),St Thomas Aquinas Catholic Multi Academy Trust T/A Sacred Heart Catholic Voluntary Academy,GENERAL,5325-External SEN Providers Top Up Fee,"£1,078.81"
01-DEC-2022,C&FS (P),St Thomas Aquinas Catholic Multi Academy Trust T/A Saint Martins Catholic Voluntary Academy,GENERAL,5325-External SEN Providers Top Up Fee,"£16,640.22"
01-DEC-2022,C&FS (P),St Thomas Aquinas Catholic Multi Academy Trust T/A Saint Peters Catholic Primary School A Voluntary Academy,GENERAL,5325-External SEN Providers Top Up Fee,"£4,925.26"
01-DEC-2022,C&FS (P),St Thomas Aquinas Catholic Multi Academy Trust T/A Saint Winefrides Catholic Voluntary Academy,GENERAL,5325-External SEN Providers Top Up Fee,"£2,287.53"
01-DEC-2022,C&FS (P),St Thomas Aquinas Catholic Multi Academy Trust T/A St Charles Catholic Primary School,GENERAL,5325-External SEN Providers Top Up Fee,"£1,722.70"
01-DEC-2022,C&FS (P),St Thomas Aquinas Catholic Multi Academy Trust T/A St Clares Primary School A Catholic Voluntary Academy,GENERAL,5325-External SEN Providers Top Up Fee,"£2,919.36"
01-DEC-2022,C&FS (P),St Thomas Aquinas Catholic Multi Academy Trust T/A St Francis Catholic Primary School,GENERAL,5325-External SEN Providers Top Up Fee,"£4,834.88"
01-DEC-2022,C&FS (P),St Thomas Aquinas Catholic Multi Academy Trust T/A St Josephs Catholic Voluntary Academy,GENERAL,5325-External SEN Providers Top Up Fee,"£2,202.81"
01-DEC-2022,C&FS (P),St Thomas Aquinas Catholic Multi Academy Trust T/A St Peters Catholic Voluntary Academy,GENERAL,5325-External SEN Providers Top Up Fee,"£2,592.54"
01-DEC-2022,C&FS (P),St Thomas Aquinas Multi Academy Trust T/A Saint John Fisher Catholic Voluntary Academy,GENERAL,5325-External SEN Providers Top Up Fee,£604.36
01-DEC-2022,C&FS (P),Stafford Leys Academy Trust,GENERAL,5325-External SEN Providers Top Up Fee,"£5,356.56"
01-DEC-2022,Environment & Transport (P),Stennetts Ltd,TRADE SUPPLIER,5411-Private Contractors - General,"£3,146.00"
01-DEC-2022,Environment & Transport (P),Stennetts Ltd,TRADE SUPPLIER,5411-Private Contractors - General,"£1,495.00"
01-DEC-2022,C&FS (P),Stephenson Studio School Trust,GENERAL,5325-External SEN Providers Top Up Fee,"£1,033.63"
01-DEC-2022,C&FS (P),Stonebow Primary School Academy,GENERAL,5325-External SEN Providers Top Up Fee,"£4,724.18"
01-DEC-2022,C&FS (P),Success Academy Trust T/A Cosby Primary School,GENERAL,5325-External SEN Providers Top Up Fee,"£2,398.24"
01-DEC-2022,C&FS (P),Success Academy Trust T/A Hallbrook Primary School,GENERAL,5325-External SEN Providers Top Up Fee,"£4,490.34"
01-DEC-2022,C&FS (P),Success Academy Trust T/A Richmond Primary School,GENERAL,5325-External SEN Providers Top Up Fee,"£10,390.49"
01-DEC-2022,C&FS (P),Swannington CE Primary School Academy SPS (Oval Learning Trust ),GENERAL,5325-External SEN Providers Top Up Fee,"£1,942.99"
01-DEC-2022,C&FS (P),Swinford C of E Primary School,GENERAL,5325-External SEN Providers Top Up Fee,£994.09
01-DEC-2022,C&FS (P),Symphony Learning Trust T/A Newcroft Primary Academy,GENERAL,5325-External SEN Providers Top Up Fee,"£6,095.57"
01-DEC-2022,C&FS (P),Symphony Learning Trust T/A Orchard Community Primary School,GENERAL,6109-SEN Maintained Sch Top Up Fee,"£3,642.60"
01-DEC-2022,C&FS (P),Symphony Learning Trust T/A Orchard Community Primary School,GENERAL,6109-SEN Maintained Sch Top Up Fee,"£1,943.01"
01-DEC-2022,C&FS (P),Symphony Learning Trust T/A Thornton Primary School,GENERAL,5325-External SEN Providers Top Up Fee,"£3,989.91"
01-DEC-2022,Environment & Transport (P),Telensa Ltd,TRADE SUPPLIER,4109-Materials,£976.68
01-DEC-2022,C&FS (P),Thomas Estley Community College Academy,GENERAL,5325-External SEN Providers Top Up Fee,"£10,794.43"
01-DEC-2022,C&FS (P),Thomas Estley Community College Academy,GENERAL,5325-External SEN Providers Top Up Fee,"£8,289.00"
01-DEC-2022,C&FS (P),Thomas Estley Community College Academy,GENERAL,5324-External SEN Providers Place Fee,"£3,666.67"
01-DEC-2022,C&FS (P),Thringstone Primary School Academy,GENERAL,5325-External SEN Providers Top Up Fee,"£4,405.62"
01-DEC-2022,C&FS (P),Thrussington CE Primary School Academy,GENERAL,5325-External SEN Providers Top Up Fee,£994.09
01-DEC-2022,C&FS (P),Thurnby St Lukes CE Primary School,GENERAL,5325-External SEN Providers Top Up Fee,"£1,813.08"
01-DEC-2022,C&FS (P),Townlands CE Primary Academy,GENERAL,5325-External SEN Providers Top Up Fee,"£3,451.06"
01-DEC-2022,C&FS (P),Tugby CE Primary School Academy,GENERAL,5325-External SEN Providers Top Up Fee,£604.36
01-DEC-2022,Central Items (NCS) (P),Tuskerdirect Ltd,TRADE SUPPLIER,3302-Vehicle Operational Lease,"£11,116.96"
01-DEC-2022,Central Items (NCS) (P),Tuskerdirect Ltd,TRADE SUPPLIER,3302-Vehicle Operational Lease,"£11,118.23"
01-DEC-2022,C&FS (P),Ullesthorpe CE Primary School (Academy),GENERAL,5325-External SEN Providers Top Up Fee,"£1,682.94"
01-DEC-2022,Corporate Resources (CR) (P),Uplands Manor Primary School,TRADE SUPPLIER,4901-Other Expenditure,"£5,529.42"
01-DEC-2022,Corporate Resources (CR) (P),Uplands Manor Primary School,TRADE SUPPLIER,4901-Other Expenditure,"£5,150.17"
01-DEC-2022,Corporate Resources (CR) (P),Uplands Manor Primary School,TRADE SUPPLIER,4901-Other Expenditure,"£5,150.17"
01-DEC-2022,C&FS (P),Vines Multi Academy Trust T/A All Saints C of E Primary School,GENERAL,5325-External SEN Providers Top Up Fee,"£3,347.15"
01-DEC-2022,C&FS (P),Vines Multi Academy Trust T/A All Saints C of E Primary School,GENERAL,5325-External SEN Providers Top Up Fee,"£22,247.00"
01-DEC-2022,C&FS (P),Vines Multi Academy Trust T/A Houghton on the Hill C of E Primary School,GENERAL,5325-External SEN Providers Top Up Fee,"£2,807.17"
01-DEC-2022,C&FS (P),Vines Multi Academy Trust T/A Richard Hill C of E Primary School,GENERAL,5325-External SEN Providers Top Up Fee,"£1,156.76"
01-DEC-2022,Environment & Transport (P),Volvo Group UK Limited,TRADE SUPPLIER,3102-Vehicle & Plant Repairs & Maintenance,"£2,494.42"
01-DEC-2022,Environment & Transport (P),Waldemar Cichowicz T/A Airbus Express,TRADE INDIVIDUAL,3112-Home to Sch Trans Contract Buses Prim,"£2,832.00"
01-DEC-2022,Environment & Transport (P),Waldemar Cichowicz T/A Airbus Express,TRADE INDIVIDUAL,3112-Home to Sch Trans Contract Buses Prim,"£2,508.00"
01-DEC-2022,C&FS (P),Waltham On The Wolds CE Primary School Academy,GENERAL,5325-External SEN Providers Top Up Fee,£604.36
01-DEC-2022,C&FS (P),Welland Park Community College Academy,GENERAL,5325-External SEN Providers Top Up Fee,"£12,145.18"
01-DEC-2022,C&FS (P),Wigston Academy Trust,GENERAL,5325-External SEN Providers Top Up Fee,"£7,725.01"
01-DEC-2022,C&FS (P),Wigston Academy Trust,GENERAL,5325-External SEN Providers Top Up Fee,"£25,452.00"
01-DEC-2022,C&FS (P),Winstanley School Life (Multi Academy Trust),GENERAL,5325-External SEN Providers Top Up Fee,"£6,368.66"
01-DEC-2022,C&FS (P),Winstanley School Life (Multi Academy Trust),GENERAL,5325-External SEN Providers Top Up Fee,"£22,739.00"
01-DEC-2022,Corporate Resources (CR) (P),Wonde Ltd,TRADE SUPPLIER,8391-Free Pupil Meals – Elig,"£318,664.20"
01-DEC-2022,C&FS (P),Woodbrook Vale School Academy,GENERAL,5325-External SEN Providers Top Up Fee,"£14,306.21"
01-DEC-2022,C&FS (P),Woolden Hill Primary School Academy T/A Discovery Schools Academy Trust,GENERAL,5325-External SEN Providers Top Up Fee,"£3,169.88"
01-DEC-2022,C&FS (P),Wreake Valley Academy,GENERAL,5325-External SEN Providers Top Up Fee,"£18,675.00"
01-DEC-2022,C&FS (P),Wreake Valley Academy,GENERAL,6101-Support Services,"£1,715.58"
01-DEC-2022,C&FS (P),Wreake Valley Academy,GENERAL,5325-External SEN Providers Top Up Fee,"£9,416.05"
01-DEC-2022,Environment & Transport (P),Yakub Taxis Ltd,TRADE SUPPLIER,3303-Taxi Hire,£910.80
01-DEC-2022,Environment & Transport (P),Yakub Taxis Ltd,TRADE SUPPLIER,3201-Pooled Transport Recharge Inhouse,£672.00
01-DEC-2022,Environment & Transport (P),Yakub Taxis Ltd,TRADE SUPPLIER,3203-Pooled Transport Recharge Contractors,£790.00
01-DEC-2022,Environment & Transport (P),Yakub Taxis Ltd,TRADE SUPPLIER,3201-Pooled Transport Recharge Inhouse,"£2,856.00"
01-DEC-2022,Environment & Transport (P),Yakub Taxis Ltd,TRADE SUPPLIER,3303-Taxi Hire,"£2,557.60"
01-DEC-2022,Environment & Transport (P),Yakub Taxis Ltd,TRADE SUPPLIER,3201-Pooled Transport Recharge Inhouse,"£3,912.30"
01-DEC-2022,Environment & Transport (P),Yakub Taxis Ltd,TRADE SUPPLIER,3201-Pooled Transport Recharge Inhouse,"£1,768.00"
01-DEC-2022,Environment & Transport (P),Yakub Taxis Ltd,TRADE SUPPLIER,3201-Pooled Transport Recharge Inhouse,£819.00
01-DEC-2022,Environment & Transport (P),Yakub Taxis Ltd,TRADE SUPPLIER,3201-Pooled Transport Recharge Inhouse,"£2,478.00"
01-DEC-2022,Environment & Transport (P),Yakub Taxis Ltd,TRADE SUPPLIER,3303-Taxi Hire,"£2,060.00"
01-DEC-2022,Environment & Transport (P),Yakub Taxis Ltd,TRADE SUPPLIER,3201-Pooled Transport Recharge Inhouse,£743.04
01-DEC-2022,Environment & Transport (P),Yakub Taxis Ltd,TRADE SUPPLIER,3201-Pooled Transport Recharge Inhouse,"£2,496.00"
01-DEC-2022,Environment & Transport (P),Yakub Taxis Ltd,TRADE SUPPLIER,3303-Taxi Hire,"£2,880.00"
01-DEC-2022,Environment & Transport (P),Yakub Taxis Ltd,TRADE SUPPLIER,3303-Taxi Hire,"£2,688.00"
01-DEC-2022,Environment & Transport (P),Yakub Taxis Ltd,TRADE SUPPLIER,3303-Taxi Hire,"£2,848.00"
01-DEC-2022,Environment & Transport (P),Yakub Taxis Ltd,TRADE SUPPLIER,3303-Taxi Hire,"£3,753.60"
01-DEC-2022,Environment & Transport (P),Yakub Taxis Ltd,TRADE SUPPLIER,3303-Taxi Hire,"£2,400.00"
01-DEC-2022,Environment & Transport (P),Yakub Taxis Ltd,TRADE SUPPLIER,3201-Pooled Transport Recharge Inhouse,"£3,248.00"
01-DEC-2022,Environment & Transport (P),Yakub Taxis Ltd,TRADE SUPPLIER,3303-Taxi Hire,"£2,208.00"
01-DEC-2022,Environment & Transport (P),Yakub Taxis Ltd,TRADE SUPPLIER,3201-Pooled Transport Recharge Inhouse,£579.60
01-DEC-2022,Environment & Transport (P),Yakub Taxis Ltd,TRADE SUPPLIER,3303-Taxi Hire,"£2,212.60"
01-DEC-2022,Environment & Transport (P),Yakub Taxis Ltd,TRADE SUPPLIER,3201-Pooled Transport Recharge Inhouse,"£1,352.40"
01-DEC-2022,Environment & Transport (P),Yakub Taxis Ltd,TRADE SUPPLIER,3303-Taxi Hire,"£1,897.50"
01-DEC-2022,Environment & Transport (P),Yakub Taxis Ltd,TRADE SUPPLIER,3303-Taxi Hire,"£2,990.00"
01-DEC-2022,Environment & Transport (P),Yakub Taxis Ltd,TRADE SUPPLIER,3201-Pooled Transport Recharge Inhouse,£872.00
01-DEC-2022,Environment & Transport (P),Yakub Taxis Ltd,TRADE SUPPLIER,3203-Pooled Transport Recharge Contractors,£840.00
01-DEC-2022,Environment & Transport (P),Yakub Taxis Ltd,TRADE SUPPLIER,3303-Taxi Hire,£594.00
01-DEC-2022,Environment & Transport (P),Yakub Taxis Ltd,TRADE SUPPLIER,3303-Taxi Hire,"£1,088.00"
01-DEC-2022,Environment & Transport (P),Yakub Taxis Ltd,TRADE SUPPLIER,3303-Taxi Hire,"£2,612.80"
01-DEC-2022,Environment & Transport (P),Yakub Taxis Ltd,TRADE SUPPLIER,3303-Taxi Hire,"£1,848.00"
01-DEC-2022,Environment & Transport (P),Yakub Taxis Ltd,TRADE SUPPLIER,3303-Taxi Hire,"£1,580.00"
02-DEC-2022,Adults & Communities (P),2M HEATH & HOMECARE SERVICES LTD&&ISHC3873,HOME CARE,5505-Homecare,"£10,810.87"
02-DEC-2022,Adults & Communities (P),ABSOLUTE CARE AGENCY&&ISHC2620,HOME CARE,5505-Homecare,"£9,262.43"
02-DEC-2022,Adults & Communities (P),ABSOLUTE CARE AGENCY&&ISHC2620,HOME CARE,5505-Homecare,"£8,941.22"
02-DEC-2022,Adults & Communities (P),ABUNDANT CARE LIMITED&&ISHC6217,HOME CARE,5505-Homecare,"£5,664.97"
02-DEC-2022,Adults & Communities (P),AGE UK LEICESTERSHIRE AND RUTLAND&&CLCD3314,CLC,5504-Day/CLC Services,"£8,210.76"
02-DEC-2022,Adults & Communities (P),ALLIANCE SC LTD&&ISHC6700,HOME CARE,5505-Homecare,"£2,667.02"
02-DEC-2022,Adults & Communities (P),AMICARE DOMICILIRY CARE SERVICES LTD&&ISHC2524,HOME CARE,5505-Homecare,"£9,897.55"
02-DEC-2022,Adults & Communities (P),AROMA CARE PEOPLE LTD&&ISHC7001,HOME CARE,5505-Homecare,"£2,457.48"
02-DEC-2022,Adults & Communities (P),B24 HEALTHCARE SOLUTIONS LTD&&ISHC7002,HOME CARE,5505-Homecare,"£1,716.19"
02-DEC-2022,Adults & Communities (P),BLUEWOOD RECRUITMENT LTD&&ISHC3933,HOME CARE,5505-Homecare,"£3,493.14"
02-DEC-2022,Adults & Communities (P),BRIGHT INTERGRATED CARE LTD&&ISHC3324,HOME CARE,5505-Homecare,"£23,497.67"
02-DEC-2022,Adults & Communities (P),BRIGHT INTERGRATED CARE LTD&&ISHC3324,HOME CARE,5505-Homecare,£637.88
02-DEC-2022,Adults & Communities (P),CARE 4 U (LEICESTERSHIRE) LTD&&ISHC2529,HOME CARE,5505-Homecare,"£1,549.12"
02-DEC-2022,Adults & Communities (P),CARE 4 U (LEICESTERSHIRE) LTD&&ISHC2529,HOME CARE,5505-Homecare,"£21,088.27"
02-DEC-2022,Adults & Communities (P),CARE AT HOME (MIDLANDS) LTD&&ISHC2753,HOME CARE,5505-Homecare,"£16,246.54"
02-DEC-2022,Adults & Communities (P),CARE STAFFING LTD&&ISHC6650,HOME CARE,5505-Homecare,"£5,309.17"
02-DEC-2022,Adults & Communities (P),CARE WITH PRIDE LTD&&ISHC7027,HOME CARE,5505-Homecare,"£1,283.18"
02-DEC-2022,Adults & Communities (P),CARELINK HEALTHCARE PROFESSIONALS LTD&&ISHC3871,HOME CARE,5505-Homecare,"£19,273.38"
02-DEC-2022,Adults & Communities (P),CAREMARK HINCKLEY BOSWORTH & BLABY&&ISHC3015,HOME CARE,5505-Homecare,"£13,870.42"
02-DEC-2022,Adults & Communities (P),CARERS DIRECT HOMECARE&&ISHC2687,HOME CARE,5505-Homecare,"£1,552.84"
02-DEC-2022,Adults & Communities (P),CARING HANDS DOMICILIARY CARE LTD&&ISHC3229,HOME CARE,5505-Homecare,"£18,052.42"
02-DEC-2022,Adults & Communities (P),CARING HANDS LEICESTER LTD&&ISHC3209,HOME CARE,5505-Homecare,"£27,235.05"
02-DEC-2022,Adults & Communities (P),CHOICES FOR LIFE (UK)LTD&&CLCD3323,CLC,5504-Day/CLC Services,"£14,968.37"
02-DEC-2022,Adults & Communities (P),CITY & COUNTY CARE SERVICES LTD&&ISHCHC486,HOME CARE,5505-Homecare,"£6,384.18"
02-DEC-2022,Adults & Communities (P),COMMUNITY CARELINE NORTHWEST LEICESTERSHIRE LTD&&ISHCHC1514,HOME CARE,5505-Homecare,"£5,537.15"
02-DEC-2022,Adults & Communities (P),CONTINUITY HEALTHCARE SERVICES LTD&&ISHC6572,HOME CARE,5505-Homecare,"£11,211.51"
02-DEC-2022,Adults & Communities (P),D&H COMMUNITY SUPPORT LTD&&CLCD3309,CLC,5504-Day/CLC Services,"£28,773.75"
02-DEC-2022,Adults & Communities (P),DIRECT CARE WORKS LTD&&CLCD3327,CLC,5504-Day/CLC Services,"£2,225.83"
02-DEC-2022,Adults & Communities (P),ELIEZER SUPPORTED LIVING SERVICES&&ISHC7032,HOME CARE,5505-Homecare,"£1,028.67"
02-DEC-2022,Adults & Communities (P),EMSA HOMEHELP LTD T/A BLUEBIRD CARE LEICS&&ISHC3983,HOME CARE,5505-Homecare,"£3,351.98"
02-DEC-2022,Adults & Communities (P),ENRYCH&&CLCD3315,CLC,5504-Day/CLC Services,"£8,714.02"
02-DEC-2022,Adults & Communities (P),EVERYDAY LIVING CARE LTD&&ISHC6574,HOME CARE,5505-Homecare,"£19,293.83"
02-DEC-2022,Adults & Communities (P),EVERYDAY LIVING LIMITED&&CLCD6862,CLC,5504-Day/CLC Services,£637.50
02-DEC-2022,Adults & Communities (P),EVOLVING CARE&&ISHC2825,HOME CARE,5505-Homecare,"£3,386.83"
02-DEC-2022,Adults & Communities (P),FIRST CHOICE CARE AGENCY LTD&&ISHC3934,HOME CARE,5505-Homecare,"£6,943.08"
02-DEC-2022,Adults & Communities (P),FOSSE HEALTHCARE LTD&&&&ISHC3231,HOME CARE,5505-Homecare,"£6,882.09"
02-DEC-2022,Adults & Communities (P),FREEDOM ACTIVE LTD&&CLCD3320,CLC,5504-Day/CLC Services,"£2,830.16"
02-DEC-2022,Adults & Communities (P),FREEDOM SUPPORT SOLUTIONS LTD&&CLCD4598,CLC,5504-Day/CLC Services,£814.47
02-DEC-2022,Adults & Communities (P),FTM DANCE&&CLCD3324,CLC,5504-Day/CLC Services,"£1,723.30"
02-DEC-2022,Adults & Communities (P),GLEBE HOUSE (CHARNWOOD) LTD&&CLCD3308,CLC,5504-Day/CLC Services,"£9,904.81"
02-DEC-2022,Adults & Communities (P),GP HOMECARE LTD T/A RADIS COMMUNITY CARE&&ISHC5054,HOME CARE,5505-Homecare,"£3,225.93"
02-DEC-2022,Adults & Communities (P),GP HOMECARE LTD T/A RADIS COMMUNITY CARE&&ISHC5054,HOME CARE,5505-Homecare,"£3,730.14"
02-DEC-2022,Adults & Communities (P),GP HOMECARE LTD T/A RADIS COMMUNITY CARE&&ISHC5054,HOME CARE,5505-Homecare,"£2,886.36"
02-DEC-2022,Adults & Communities (P),HALES GROUP LTD&&ISHC3228,HOME CARE,5505-Homecare,"£6,887.50"
02-DEC-2022,Adults & Communities (P),HELP AT HOME LTD&&ISHC3234,HOME CARE,5505-Homecare,"£25,727.55"
02-DEC-2022,Adults & Communities (P),HELP AT HOME LTD&&ISHC3234,HOME CARE,5505-Homecare,"£42,599.68"
02-DEC-2022,Adults & Communities (P),HOMEPEACE LTD&&ISHC6690,HOME CARE,5505-Homecare,£792.37
02-DEC-2022,Adults & Communities (P),JEWEL HOME CARE LTD&&ISHC7014,HOME CARE,5505-Homecare,£744.75
02-DEC-2022,Adults & Communities (P),JOHN STORER CHARNWOOD&&CLCD3318,CLC,5504-Day/CLC Services,"£1,472.11"
02-DEC-2022,Adults & Communities (P),REDACTED PERSONAL DATA,HOME CARE,5505-Homecare,"£17,513.71"
02-DEC-2022,Adults & Communities (P),KEY 2 CARE LTD T/A DERBYSHIRE CARE SERVICES&&ISHC6569,HOME CARE,5505-Homecare,"£5,607.41"
02-DEC-2022,Adults & Communities (P),KRIS CARERS LTD&&ISHC3937,HOME CARE,5505-Homecare,"£17,154.67"
02-DEC-2022,Adults & Communities (P),KRIS CARERS LTD&&ISHC3937,HOME CARE,5505-Homecare,£566.67
02-DEC-2022,Adults & Communities (P),LEICESTERSHIRE LEICESTER AND RUTLAND HEADWAY&&CLCD3328,CLC,5504-Day/CLC Services,£568.95
02-DEC-2022,Adults & Communities (P),MARCHA SOLUTIONS LTD T/A BLUEBIRD CARE LOUGHBOROUGH&&ISHC6008,HOME CARE,5505-Homecare,"£3,243.14"
02-DEC-2022,Adults & Communities (P),MEDACS HEALTHCARE&&ISHC3235,HOME CARE,5505-Homecare,"£23,193.19"
02-DEC-2022,Adults & Communities (P),MEDACS HEALTHCARE&&ISHC3235,HOME CARE,5505-Homecare,"£23,971.78"
02-DEC-2022,Adults & Communities (P),MEDACS HEALTHCARE&&ISHC3235,HOME CARE,5505-Homecare,"£22,260.58"
02-DEC-2022,Adults & Communities (P),MEDACS HEALTHCARE&&ISHC3235,HOME CARE,5505-Homecare,"£23,441.56"
02-DEC-2022,Adults & Communities (P),MELTON CARE SERVICES LTD&&ISHC2246,HOME CARE,5505-Homecare,"£13,848.33"
02-DEC-2022,Adults & Communities (P),MIDSHIRES CARE LTD T/A HELPING HANDS&&ISHC6596,HOME CARE,5505-Homecare,"£1,374.76"
02-DEC-2022,Adults & Communities (P),MIHOMECARE LTD T/A NOBLE LIVE IN CARE&&ISHC6649,HOME CARE,5505-Homecare,"£1,118.88"
02-DEC-2022,Adults & Communities (P),MILIFE CARE SERVICE LTD&&ISHC3782,HOME CARE,5505-Homecare,"£1,296.00"
02-DEC-2022,Adults & Communities (P),MILIFE CARE SERVICE LTD&&ISHC3782,HOME CARE,5505-Homecare,"£5,148.58"
02-DEC-2022,Adults & Communities (P),MILIFE CARE SERVICE LTD&&ISHC3782,HOME CARE,5505-Homecare,"£1,296.00"
02-DEC-2022,Adults & Communities (P),MILIFE CARE SERVICE LTD&&ISHC3782,HOME CARE,5505-Homecare,"£1,296.00"
02-DEC-2022,Adults & Communities (P),MILIFE CARE SERVICE LTD&&ISHC3782,HOME CARE,5505-Homecare,"£1,296.00"
02-DEC-2022,Adults & Communities (P),MILIFE CARE SERVICE LTD&&ISHC3782,HOME CARE,5505-Homecare,"£1,110.86"
02-DEC-2022,Adults & Communities (P),MILIFE CARE SERVICE LTD&&ISHC3782,HOME CARE,5505-Homecare,"£1,296.00"
02-DEC-2022,Adults & Communities (P),MILIFE CARE SERVICE LTD&&ISHC3782,HOME CARE,5505-Homecare,"£1,296.00"
02-DEC-2022,Adults & Communities (P),MILIFE CARE SERVICE LTD&&ISHC3782,HOME CARE,5505-Homecare,"£1,296.00"
02-DEC-2022,Adults & Communities (P),MILIFE CARE SERVICE LTD&&ISHC3782,HOME CARE,5505-Homecare,"£1,296.00"
02-DEC-2022,Adults & Communities (P),MILIFE CARE SERVICE LTD&&ISHC3782,HOME CARE,5505-Homecare,"£1,296.00"
02-DEC-2022,Adults & Communities (P),MILIFE CARE SERVICE LTD&&ISHC3782,HOME CARE,5505-Homecare,"£1,296.00"
02-DEC-2022,Adults & Communities (P),MOBILE CARE SERVICES LTD&&ISHCHC443,HOME CARE,5505-Homecare,"£4,842.24"
02-DEC-2022,Adults & Communities (P),MOSAIC SHAPING DISABILITY SERVICES&&CLCD3331,CLC,5504-Day/CLC Services,"£2,300.91"
02-DEC-2022,Adults & Communities (P),NEW HOPE SPECIALIST CARE LTD&&ISHC3161,HOME CARE,5505-Homecare,"£2,071.59"
02-DEC-2022,Adults & Communities (P),NEW HOPE SPECIALIST CARE LTD&&ISHC3161,HOME CARE,5505-Homecare,"£1,923.54"
02-DEC-2022,Adults & Communities (P),NEW HOPE SPECIALIST CARE LTD&&ISHC3161,HOME CARE,5505-Homecare,"£2,071.59"
02-DEC-2022,Adults & Communities (P),NEW HOPE SPECIALIST CARE LTD&&ISHC3161,HOME CARE,5505-Homecare,"£2,071.59"
02-DEC-2022,Adults & Communities (P),NEW HOPE SPECIALIST CARE LTD&&ISHC3161,HOME CARE,5505-Homecare,"£1,923.54"
02-DEC-2022,Adults & Communities (P),NEW HOPE SPECIALIST CARE LTD&&ISHC3161,HOME CARE,5505-Homecare,"£2,071.59"
02-DEC-2022,Adults & Communities (P),NEW HOPE SPECIALIST CARE LTD&&ISHC3161,HOME CARE,5505-Homecare,"£1,923.54"
02-DEC-2022,Adults & Communities (P),NEW HOPE SPECIALIST CARE LTD&&ISHC3161,HOME CARE,5505-Homecare,"£2,071.59"
02-DEC-2022,Adults & Communities (P),NEW HOPE SPECIALIST CARE LTD&&ISHC3161,HOME CARE,5505-Homecare,"£1,923.54"
02-DEC-2022,Adults & Communities (P),NEW HOPE SPECIALIST CARE LTD&&ISHC3161,HOME CARE,5505-Homecare,"£2,071.59"
02-DEC-2022,Adults & Communities (P),NEW HOPE SPECIALIST CARE LTD&&ISHC3161,HOME CARE,5505-Homecare,"£1,923.54"
02-DEC-2022,Adults & Communities (P),NEW HOPE SPECIALIST CARE LTD&&ISHC3161,HOME CARE,5505-Homecare,"£2,071.59"
02-DEC-2022,Adults & Communities (P),NEW HOPE SPECIALIST CARE LTD&&ISHC3161,HOME CARE,5505-Homecare,"£4,216.06"
02-DEC-2022,Adults & Communities (P),NEW HOPE SPECIALIST CARE LTD&&ISHC3161,HOME CARE,5505-Homecare,"£2,071.59"
02-DEC-2022,Adults & Communities (P),NEW HOPE SPECIALIST CARE LTD&&ISHC3161,HOME CARE,5505-Homecare,"£1,923.54"
02-DEC-2022,Adults & Communities (P),NEW HOPE SPECIALIST CARE LTD&&ISHC3161,HOME CARE,5505-Homecare,"£2,071.59"
02-DEC-2022,Adults & Communities (P),NEW HOPE SPECIALIST CARE LTD&&ISHC3161,HOME CARE,5505-Homecare,"£1,998.68"
02-DEC-2022,Adults & Communities (P),NEW HOPE SPECIALIST CARE LTD&&ISHC3161,HOME CARE,5505-Homecare,"£1,923.54"
02-DEC-2022,Adults & Communities (P),NEW HORIZONS CARE LTD&&ISHC3755,HOME CARE,5505-Homecare,£804.94
02-DEC-2022,Adults & Communities (P),NO PLACE LIKE HOME&&ISHC7004,HOME CARE,5505-Homecare,£567.00
02-DEC-2022,Adults & Communities (P),PASSION HEALTHCARE LIMITED&&ISHC2772,HOME CARE,5505-Homecare,"£26,019.34"
02-DEC-2022,Adults & Communities (P),PASSIONATE HOMECARE LTD T/A MY HOMECARE&&ISHC6335,HOME CARE,5505-Homecare,"£10,603.44"
02-DEC-2022,Adults & Communities (P),PINEAPPLE SUPPORT SERVICES LTD&&CLCD1673,CLC,5504-Day/CLC Services,"£1,111.30"
02-DEC-2022,Adults & Communities (P),POTENSIAL LTD&&CLCD6754,CLC,5504-Day/CLC Services,"£3,406.50"
02-DEC-2022,Adults & Communities (P),POTENSIAL LTD&&CLCD6754,CLC,5504-Day/CLC Services,"£6,839.98"
02-DEC-2022,Adults & Communities (P),PRACTICAL CARE SOLUTIONS LTD&&ISHC3327,HOME CARE,5505-Homecare,£715.88
02-DEC-2022,Adults & Communities (P),PRACTICAL CARE SOLUTIONS LTD&&ISHC3327,HOME CARE,5505-Homecare,£614.07
02-DEC-2022,Adults & Communities (P),PRACTICAL CARE SOLUTIONS LTD&&ISHC3327,HOME CARE,5505-Homecare,"£1,110.20"
02-DEC-2022,Adults & Communities (P),PRACTICAL CARE SOLUTIONS LTD&&ISHC3327,HOME CARE,5505-Homecare,"£26,212.65"
02-DEC-2022,Adults & Communities (P),PRECIOUS HOPE HEALTH & HOME CARE&&ISHC3233,HOME CARE,5505-Homecare,"£34,933.58"
02-DEC-2022,Adults & Communities (P),PRESTIGE NURSING LTD&&ISHC5475,HOME CARE,5505-Homecare,"£1,192.95"
02-DEC-2022,Adults & Communities (P),PRESTIGE SOCIAL CARE SERVICES LTD&&ISHCHC3744,HOME CARE,5505-Homecare,"£1,010.06"
02-DEC-2022,Adults & Communities (P),PRO HELP LTD&&ISHC5331,HOME CARE,5505-Homecare,"£10,712.30"
02-DEC-2022,Adults & Communities (P),PURE HOMECARE LTD&&ISHC3745,HOME CARE,5505-Homecare,"£2,939.63"
02-DEC-2022,Adults & Communities (P),REE ENTERPRISE UK LTD&&ISHC6339,HOME CARE,5505-Homecare,"£43,527.24"
02-DEC-2022,Adults & Communities (P),RELIANCE COMMUNITY CARE LTD&&ISHC3815,HOME CARE,5505-Homecare,"£22,197.35"
02-DEC-2022,Adults & Communities (P),RKS DOMICILARY CARE LTD T/A CAREMARK(CHARNWOOD)&&ISHC7028,HOME CARE,5505-Homecare,"£7,684.93"
02-DEC-2022,Adults & Communities (P),RKS DOMICILIARY CARE LTD T/A CAREMARK (CHARNWOOD)&&ISHC2618,HOME CARE,5505-Homecare,"£7,705.18"
02-DEC-2022,Adults & Communities (P),ROSELEIGH DAYCARE LTD &&CLCD6761,SUPPORTED LIVING,5504-Day/CLC Services,£538.48
02-DEC-2022,Adults & Communities (P),SENSE&&CLCD3311,CLC,5504-Day/CLC Services,"£5,018.65"
02-DEC-2022,Adults & Communities (P),SHEPSHED CARERS LTD&&ISHCHC405,HOME CARE,5505-Homecare,"£7,765.59"
02-DEC-2022,Adults & Communities (P),SOVA HEALTHCARE LEICESTER LTD&&ISHC3195,HOME CARE,5505-Homecare,"£4,156.31"
02-DEC-2022,Adults & Communities (P),SUPPORT & CONNECTIONS LTD&&CLCD3316,CLC,5504-Day/CLC Services,"£2,823.39"
02-DEC-2022,Adults & Communities (P),SURECARE CHARNWOOD & RUSHCLIFFE&&ISHC6189,HOME CARE,5505-Homecare,"£4,427.29"
02-DEC-2022,Adults & Communities (P),TLR HEALTH CARE SERVICES LTD&&ISHC5887,HOME CARE,5505-Homecare,"£8,503.85"
02-DEC-2022,Adults & Communities (P),TRINITY TOWERS LTD T/A KARE PLUS&&ISHC5642,HOME CARE,5505-Homecare,"£8,866.33"
02-DEC-2022,Adults & Communities (P),UK CARE STAFFING LTD&&ISHC6717,HOME CARE,5505-Homecare,"£2,298.62"
02-DEC-2022,Adults & Communities (P),UK CARE TEAM LTD&&ISHC7010,HOME CARE,5505-Homecare,"£4,140.10"
02-DEC-2022,Adults & Communities (P),UK CARE TEAM LTD&&ISHC7010,HOME CARE,5505-Homecare,"£1,599.29"
02-DEC-2022,Adults & Communities (P),VILLAGE HOMECARE LTD&&ISHC2754,HOME CARE,5505-Homecare,"£8,567.81"
02-DEC-2022,Adults & Communities (P),VOYAGE 1 LTD T/A VOYAGE CARE&&CLCD3317,CLC,5504-Day/CLC Services,"£11,637.67"
02-DEC-2022,Adults & Communities (P),WHM WORK CONNECTIONS LTD&&CLCD3312,CLC,5504-Day/CLC Services,"£15,686.77"
02-DEC-2022,Adults & Communities (P),WYVILLE HOMECARE SERVICES LTD&&ISHC6062,HOME CARE,5505-Homecare,"£1,321.33"
02-DEC-2022,Adults & Communities (P),XPERIENCE RECRUITMENT LTD MARKETING&&ISH6578,HOME CARE,5505-Homecare,£551.51
02-DEC-2022,Adults & Communities (P),XPERIENCE RECRUITMENT LTD MARKETING&&ISH6578,HOME CARE,5505-Homecare,£786.05
02-DEC-2022,Adults & Communities (P),XPERIENCE RECRUITMENT LTD MARKETING&&ISH6578,HOME CARE,5505-Homecare,"£13,260.70"
02-DEC-2022,Adults & Communities (P),XPERIENCE RECRUITMENT LTD MARKETING&&ISH6578,HOME CARE,5505-Homecare,"£12,940.59"
02-DEC-2022,Adults & Communities (P),3D Recruit Ltd,TRADE SUPPLIER,5443-Agency & Contracted Services,"£8,400.00"
02-DEC-2022,Environment & Transport (P),A K TAXI SERVICES LTD,TRADE SUPPLIER,3303-Taxi Hire,£594.00
02-DEC-2022,Environment & Transport (P),A K TAXI SERVICES LTD,TRADE SUPPLIER,3303-Taxi Hire,£597.45
02-DEC-2022,Environment & Transport (P),A K TAXI SERVICES LTD,TRADE SUPPLIER,3303-Taxi Hire,£735.00
02-DEC-2022,Environment & Transport (P),A1 Leicester Taxi Ltd,TRADE SUPPLIER,3303-Taxi Hire,"£3,552.00"
02-DEC-2022,Environment & Transport (P),A1 Leicester Taxi Ltd,TRADE SUPPLIER,3303-Taxi Hire,"£1,645.60"
02-DEC-2022,Environment & Transport (P),A1 Leicester Taxi Ltd,TRADE SUPPLIER,3303-Taxi Hire,"£1,936.00"
02-DEC-2022,Environment & Transport (P),A1 Leicester Taxi Ltd,TRADE SUPPLIER,3303-Taxi Hire,"£1,504.00"
02-DEC-2022,Environment & Transport (P),A1 Leicester Taxi Ltd,TRADE SUPPLIER,3303-Taxi Hire,"£1,516.80"
02-DEC-2022,Environment & Transport (P),A1 Leicester Taxi Ltd,TRADE SUPPLIER,3303-Taxi Hire,"£1,085.00"
02-DEC-2022,Environment & Transport (P),A1 Leicester Taxi Ltd,TRADE SUPPLIER,3201-Pooled Transport Recharge Inhouse,"£2,176.00"
02-DEC-2022,Environment & Transport (P),A1 Leicester Taxi Ltd,TRADE SUPPLIER,3303-Taxi Hire,"£2,080.00"
02-DEC-2022,Environment & Transport (P),A1 Leicester Taxi Ltd,TRADE SUPPLIER,3303-Taxi Hire,"£1,180.80"
02-DEC-2022,Environment & Transport (P),A1 Leicester Taxi Ltd,TRADE SUPPLIER,3303-Taxi Hire,"£1,884.80"
02-DEC-2022,Environment & Transport (P),A1 Leicester Taxi Ltd,TRADE SUPPLIER,3303-Taxi Hire,"£1,600.80"
02-DEC-2022,Environment & Transport (P),A1 Leicester Taxi Ltd,TRADE SUPPLIER,3303-Taxi Hire,"£2,032.06"
02-DEC-2022,Environment & Transport (P),A1 Leicester Taxi Ltd,TRADE SUPPLIER,3303-Taxi Hire,£936.60
02-DEC-2022,Environment & Transport (P),A1 Leicester Taxi Ltd,TRADE SUPPLIER,3303-Taxi Hire,"£1,595.00"
02-DEC-2022,Environment & Transport (P),A2B Taxis,TRADE SUPPLIER,3303-Taxi Hire,"£1,534.00"
02-DEC-2022,Environment & Transport (P),A2B Taxis,TRADE SUPPLIER,3113-Home to Sch Trans Contract Buses Sec,"£1,120.00"
02-DEC-2022,Environment & Transport (P),A2B Taxis,TRADE SUPPLIER,3113-Home to Sch Trans Contract Buses Sec,"£1,280.00"
02-DEC-2022,Environment & Transport (P),A2B Taxis,TRADE SUPPLIER,3303-Taxi Hire,"£1,040.00"
02-DEC-2022,Environment & Transport (P),AA Taxis,TRADE SUPPLIER,3303-Taxi Hire,"£1,865.00"
02-DEC-2022,C&FS (P),REDACTED PERSONAL DATA,GENERAL,5621-Transfer Payments,"£2,236.80"
02-DEC-2022,C&FS (P),Adullam Homes Housing Association Ltd     1,TRADE SUPPLIER,5443-Agency & Contracted Services,"£2,445.68"
02-DEC-2022,C&FS (P),Adullam Homes Housing Association Ltd     1,TRADE SUPPLIER,5451-LCT/LAC (Not Fostered),"£5,153.00"
02-DEC-2022,Corporate Resources (CR) (P),AF Blakemore & Son Ltd T/A Blakemore Food Service Ltd,TRADE SUPPLIER,4504-Provisions Purchases,"£32,178.69"
02-DEC-2022,Corporate Resources (CR) (P),AG Barr Plc,TRADE SUPPLIER,4504-Provisions Purchases,"£4,972.43"
02-DEC-2022,Environment & Transport (P),Aggregate Industries UK Ltd,SUBCONTRACTOR,4109-Materials,£549.08
02-DEC-2022,Environment & Transport (P),Aggregate Industries UK Ltd,SUBCONTRACTOR,4109-Materials,"£1,168.09"
02-DEC-2022,Environment & Transport (P),Aggregate Industries UK Ltd,SUBCONTRACTOR,4109-Materials,£668.22
02-DEC-2022,Balance Sheet Cost Centres (P),Aggregate Industries UK Ltd,SUBCONTRACTOR,9631-Inventories - General,£916.10
02-DEC-2022,Environment & Transport (P),Aggregate Industries UK Ltd,SUBCONTRACTOR,4109-Materials,£750.30
02-DEC-2022,Environment & Transport (P),Aggregate Industries UK Ltd,SUBCONTRACTOR,4109-Materials,"£1,217.90"
02-DEC-2022,Environment & Transport (P),Aggregate Industries UK Ltd,SUBCONTRACTOR,4109-Materials,£809.13
02-DEC-2022,Environment & Transport (P),Aggregate Industries UK Ltd,SUBCONTRACTOR,4109-Materials,£779.59
02-DEC-2022,Environment & Transport (P),Aggregate Industries UK Ltd,SUBCONTRACTOR,4109-Materials,£649.21
02-DEC-2022,C&FS (P),REDACTED PERSONAL DATA,GENERAL,5621-Transfer Payments,£517.21
02-DEC-2022,C&FS (P),REDACTED PERSONAL DATA,GENERAL,5621-Transfer Payments,£940.50
02-DEC-2022,C&FS (P),Always Mind Ltd,TRADE SUPPLIER,5445-Adoption Support,£648.00
02-DEC-2022,C&FS (P),Always Mind Ltd,TRADE SUPPLIER,5445-Adoption Support,£688.00
02-DEC-2022,C&FS (P),Always Mind Ltd,TRADE SUPPLIER,5445-Adoption Support,£540.00
02-DEC-2022,C&FS (P),REDACTED PERSONAL DATA,GENERAL,5621-Transfer Payments,"£1,847.29"
02-DEC-2022,Environment & Transport (P),REDACTED PERSONAL DATA,NON TRADE,3303-Taxi Hire,"£1,364.48"
02-DEC-2022,C&FS (P),REDACTED PERSONAL DATA,GENERAL,5323-External SEN Providers Independent Sch,"£3,697.98"
02-DEC-2022,Corporate Resources (CR) (P),Antalis Ltd,TRADE SUPPLIER,4405-Stationery,£874.94
02-DEC-2022,Corporate Resources (CR) (P),Antalis Ltd,TRADE SUPPLIER,4405-Stationery,"£1,350.00"
02-DEC-2022,Environment & Transport (P),REDACTED PERSONAL DATA,TRADE SUPPLIER,3112-Home to Sch Trans Contract Buses Prim,"£1,184.00"
02-DEC-2022,Environment & Transport (P),REDACTED PERSONAL DATA,TRADE SUPPLIER,3201-Pooled Transport Recharge Inhouse,£785.90
02-DEC-2022,C&FS (P),Baca Charity,TRADE SUPPLIER,5411-Private Contractors - General,"£2,318.25"
02-DEC-2022,Adults & Communities (P),Bakewell & District Historical Society,NON TRADE,5314-Voluntary Associations Other,"£1,000.00"
02-DEC-2022,Environment & Transport (P),REDACTED PERSONAL DATA,TRADE INDIVIDUAL,3201-Pooled Transport Recharge Inhouse,"£1,356.00"
02-DEC-2022,Environment & Transport (P),REDACTED PERSONAL DATA,TRADE INDIVIDUAL,3303-Taxi Hire,"£1,375.36"
02-DEC-2022,Environment & Transport (P),REDACTED PERSONAL DATA,TRADE INDIVIDUAL,3201-Pooled Transport Recharge Inhouse,£500.00
02-DEC-2022,Adults & Communities (P),Beacon Care & Advice CIC,TRADE SUPPLIER,5411-Private Contractors - General,"£7,503.53"
02-DEC-2022,Environment & Transport (P),Beaver Bus,TRADE SUPPLIER,3113-Home to Sch Trans Contract Buses Sec,"£5,180.00"
02-DEC-2022,Environment & Transport (P),Beaver Bus,TRADE SUPPLIER,3113-Home to Sch Trans Contract Buses Sec,"£5,180.00"
02-DEC-2022,Environment & Transport (P),Beaver Bus,TRADE SUPPLIER,3115-Home to Sch Trans Contract Buses FE,"£5,180.00"
02-DEC-2022,Environment & Transport (P),Beaver Bus,TRADE SUPPLIER,3113-Home to Sch Trans Contract Buses Sec,"£3,200.00"
02-DEC-2022,Environment & Transport (P),Beaver Bus,TRADE SUPPLIER,3113-Home to Sch Trans Contract Buses Sec,"£3,000.00"
02-DEC-2022,Environment & Transport (P),Beaver Bus,TRADE SUPPLIER,3112-Home to Sch Trans Contract Buses Prim,"£2,850.00"
02-DEC-2022,Environment & Transport (P),Beaver Bus,TRADE SUPPLIER,3112-Home to Sch Trans Contract Buses Prim,"£2,550.00"
02-DEC-2022,Environment & Transport (P),Beaver Bus,TRADE SUPPLIER,3113-Home to Sch Trans Contract Buses Sec,"£3,000.00"
02-DEC-2022,Environment & Transport (P),Beaver Bus,TRADE SUPPLIER,3113-Home to Sch Trans Contract Buses Sec,"£3,200.00"
02-DEC-2022,Corporate Resources (CR) (P),BFS Group Ltd T/A Bidfood,TRADE SUPPLIER,4504-Provisions Purchases,£760.33
02-DEC-2022,Environment & Transport (P),Biffa Waste Services Ltd,TRADE SUPPLIER,5411-Private Contractors - General,"£14,558.28"
02-DEC-2022,Environment & Transport (P),Biffa Waste Services Ltd,TRADE SUPPLIER,5411-Private Contractors - General,£865.26
02-DEC-2022,Environment & Transport (P),Biffa Waste Services Ltd,TRADE SUPPLIER,5411-Private Contractors - General,"£1,353.63"
02-DEC-2022,Environment & Transport (P),Birstall Cabs,TRADE SUPPLIER,3303-Taxi Hire,"£1,740.20"
02-DEC-2022,Environment & Transport (P),Birstall Cabs,TRADE SUPPLIER,3201-Pooled Transport Recharge Inhouse,£997.10
02-DEC-2022,Environment & Transport (P),Birstall Cabs,TRADE SUPPLIER,3303-Taxi Hire,"£1,417.17"
02-DEC-2022,Environment & Transport (P),Birstall Cabs,TRADE SUPPLIER,3112-Home to Sch Trans Contract Buses Prim,"£1,393.92"
02-DEC-2022,Environment & Transport (P),Birstall Cabs,TRADE SUPPLIER,3112-Home to Sch Trans Contract Buses Prim,£518.57
02-DEC-2022,Environment & Transport (P),Birstall Cabs,TRADE SUPPLIER,3303-Taxi Hire,"£1,380.28"
02-DEC-2022,Environment & Transport (P),Birstall Cabs,TRADE SUPPLIER,3303-Taxi Hire,"£1,540.00"
02-DEC-2022,Environment & Transport (P),Birstall Cabs,TRADE SUPPLIER,3303-Taxi Hire,"£1,494.02"
02-DEC-2022,Environment & Transport (P),Birstall Cabs,TRADE SUPPLIER,3303-Taxi Hire,"£1,960.00"
02-DEC-2022,Environment & Transport (P),Birstall Cabs,TRADE SUPPLIER,3303-Taxi Hire,"£2,003.52"
02-DEC-2022,Environment & Transport (P),Birstall Cabs,TRADE SUPPLIER,3203-Pooled Transport Recharge Contractors,"£1,996.48"
02-DEC-2022,Environment & Transport (P),Birstall Cabs,TRADE SUPPLIER,3201-Pooled Transport Recharge Inhouse,"£2,522.00"
02-DEC-2022,Environment & Transport (P),Birstall Cabs,TRADE SUPPLIER,3112-Home to Sch Trans Contract Buses Prim,"£1,976.96"
02-DEC-2022,Environment & Transport (P),Birstall Cabs,TRADE SUPPLIER,3303-Taxi Hire,"£1,160.01"
02-DEC-2022,Environment & Transport (P),Birstall Cabs,TRADE SUPPLIER,3303-Taxi Hire,"£1,434.06"
02-DEC-2022,Environment & Transport (P),Birstall Cabs,TRADE SUPPLIER,3303-Taxi Hire,"£2,716.64"
02-DEC-2022,Environment & Transport (P),Birstall Cabs,TRADE SUPPLIER,3303-Taxi Hire,"£2,058.72"
02-DEC-2022,Environment & Transport (P),Birstall Cabs,TRADE SUPPLIER,3303-Taxi Hire,"£1,294.25"
02-DEC-2022,Environment & Transport (P),Birstall Cabs,TRADE SUPPLIER,3303-Taxi Hire,"£2,109.92"
02-DEC-2022,Environment & Transport (P),Birstall Cabs,TRADE SUPPLIER,3303-Taxi Hire,£946.00
02-DEC-2022,Environment & Transport (P),Birstall Cabs,TRADE SUPPLIER,3303-Taxi Hire,"£1,941.44"
02-DEC-2022,Environment & Transport (P),Birstall Cabs,TRADE SUPPLIER,3201-Pooled Transport Recharge Inhouse,"£2,473.38"
02-DEC-2022,Environment & Transport (P),Birstall Cabs,TRADE SUPPLIER,3201-Pooled Transport Recharge Inhouse,"£1,540.00"
02-DEC-2022,Environment & Transport (P),Birstall Cabs,TRADE SUPPLIER,3203-Pooled Transport Recharge Contractors,"£2,688.00"
02-DEC-2022,Environment & Transport (P),Birstall Cabs,TRADE SUPPLIER,3201-Pooled Transport Recharge Inhouse,"£1,527.57"
02-DEC-2022,Environment & Transport (P),Birstall Cabs,TRADE SUPPLIER,3201-Pooled Transport Recharge Inhouse,"£2,095.19"
02-DEC-2022,Environment & Transport (P),Birstall Cars Ltd,TRADE SUPPLIER,3201-Pooled Transport Recharge Inhouse,£926.52
02-DEC-2022,Environment & Transport (P),Birstall Cars Ltd,TRADE SUPPLIER,3201-Pooled Transport Recharge Inhouse,"£2,080.00"
02-DEC-2022,Environment & Transport (P),Birstall Cars Ltd,TRADE SUPPLIER,3303-Taxi Hire,"£1,804.48"
02-DEC-2022,Environment & Transport (P),Birstall Cars Ltd,TRADE SUPPLIER,3303-Taxi Hire,£888.72
02-DEC-2022,Environment & Transport (P),Birstall Cars Ltd,TRADE SUPPLIER,3303-Taxi Hire,"£1,975.68"
02-DEC-2022,Environment & Transport (P),Birstall Cars Ltd,TRADE SUPPLIER,3303-Taxi Hire,"£1,371.00"
02-DEC-2022,Environment & Transport (P),Birstall Cars Ltd,TRADE SUPPLIER,3201-Pooled Transport Recharge Inhouse,"£1,561.80"
02-DEC-2022,Corporate Resources (CR) (P),Blue Arrow Ltd,TRADE SUPPLIER,4901-Other Expenditure,£637.80
02-DEC-2022,Corporate Resources (CR) (P),Bluestone Catering Solutions Ltd,TRADE SUPPLIER,4102-General Equipment - Purchase & Repairs,"£4,702.00"
02-DEC-2022,Corporate Resources (CR) (P),Bluestone Catering Solutions Ltd,TRADE SUPPLIER,4102-General Equipment - Purchase & Repairs,"£5,915.50"
02-DEC-2022,Environment & Transport (P),Building Software Ltd,TRADE SUPPLIER,4507-Consultants & Specialists,"£1,100.00"
02-DEC-2022,C&FS (P),REDACTED PERSONAL DATA,GENERAL,5621-Transfer Payments,"£2,438.69"
02-DEC-2022,C&FS (P),REDACTED PERSONAL DATA,GENERAL,5621-Transfer Payments,"£1,971.97"
02-DEC-2022,Chief Executives (P),REDACTED PERSONAL DATA,TRADE SUPPLIER,4905-Legal Expenses,"£2,472.60"
02-DEC-2022,Adults & Communities (P),CCS Media Ltd,TRADE SUPPLIER,4601-IT Equipment Hardware,£990.00
02-DEC-2022,Corporate Resources (CR) (P),CCS Media Ltd,TRADE SUPPLIER,4604-IT Equipment Repairs & Maintenance,£756.88
02-DEC-2022,Corporate Resources (CR) (P),CCS Media Ltd,TRADE SUPPLIER,4601-IT Equipment Hardware,£551.95
02-DEC-2022,Corporate Resources (CR) (P),CCS Media Ltd,TRADE SUPPLIER,4601-IT Equipment Hardware,£849.10
02-DEC-2022,Corporate Resources (CR) (P),CCS Media Ltd,TRADE SUPPLIER,4601-IT Equipment Hardware,"£1,602.69"
02-DEC-2022,Public Health (P),Cedars Academy Lionheart Academies Trust,NON TRADE,4908-Grants,£500.00
02-DEC-2022,Corporate Resources (CR) (P),Central Construction Services Ltd,SUBCONTRACTOR,2501-Grounds Maintenance,"£1,710.60"
02-DEC-2022,Chief Executives (P),Central England Cooperative Society Ltd,TRADE SUPPLIER,3124-Other Transport Costs,"£3,315.00"
02-DEC-2022,Environment & Transport (P),Certas Energy UK Ltd,TRADE SUPPLIER,3104-Petrol / Oil / Types / Spares,"£33,020.50"
02-DEC-2022,Environment & Transport (P),Charnwood Borough Council,TRADE SUPPLIER,5211-Other Local Authorities,£873.41
02-DEC-2022,C&FS (P),Child Psychology Service,TRADE SUPPLIER,5445-Adoption Support,"£3,225.00"
02-DEC-2022,C&FS (P),Child Psychology Service,TRADE SUPPLIER,5445-Adoption Support,£972.96
02-DEC-2022,C&FS (P),Child Psychology Service,TRADE SUPPLIER,5445-Adoption Support,"£1,188.75"
02-DEC-2022,C&FS (P),Child Psychology Service,TRADE SUPPLIER,5445-Adoption Support,£972.96
02-DEC-2022,C&FS (P),Child Psychology Service,TRADE SUPPLIER,5445-Adoption Support,"£1,188.75"
02-DEC-2022,C&FS (P),Childrens Hospital School,OTHER LOCAL AUTHORITIES,5411-Private Contractors - General,£637.50
02-DEC-2022,C&FS (P),REDACTED PERSONAL DATA,GENERAL,5642-Foster Parents Fostering Allowances,£584.14
02-DEC-2022,Environment & Transport (P),Coalville Cabs Ltd,TRADE SUPPLIER,3201-Pooled Transport Recharge Inhouse,"£1,062.60"
02-DEC-2022,Environment & Transport (P),Coalville Cabs Ltd,TRADE SUPPLIER,3201-Pooled Transport Recharge Inhouse,"£1,660.70"
02-DEC-2022,Environment & Transport (P),Coalville Cabs Ltd,TRADE SUPPLIER,3201-Pooled Transport Recharge Inhouse,£666.08
02-DEC-2022,Environment & Transport (P),Coalville Cabs Ltd,TRADE SUPPLIER,3201-Pooled Transport Recharge Inhouse,"£1,572.50"
02-DEC-2022,Environment & Transport (P),Coalville Cabs Ltd,TRADE SUPPLIER,3201-Pooled Transport Recharge Inhouse,"£1,327.56"
02-DEC-2022,Environment & Transport (P),Coalville Cabs Ltd,TRADE SUPPLIER,3303-Taxi Hire,"£1,739.03"
02-DEC-2022,Environment & Transport (P),Coalville Cabs Ltd,TRADE SUPPLIER,3303-Taxi Hire,"£2,329.44"
02-DEC-2022,Environment & Transport (P),Coalville Cabs Ltd,TRADE SUPPLIER,3303-Taxi Hire,"£1,766.40"
02-DEC-2022,Environment & Transport (P),Coalville Cabs Ltd,TRADE SUPPLIER,3303-Taxi Hire,£699.20
02-DEC-2022,Environment & Transport (P),Coalville Cabs Ltd,TRADE SUPPLIER,3303-Taxi Hire,£721.28
02-DEC-2022,Environment & Transport (P),Coalville Cabs Ltd,TRADE SUPPLIER,3303-Taxi Hire,"£1,335.84"
02-DEC-2022,Environment & Transport (P),Coalville Cabs Ltd,TRADE SUPPLIER,3303-Taxi Hire,"£1,619.20"
02-DEC-2022,Environment & Transport (P),Coalville Cabs Ltd,TRADE SUPPLIER,3112-Home to Sch Trans Contract Buses Prim,£768.00
02-DEC-2022,Environment & Transport (P),Coalville Cabs Ltd,TRADE SUPPLIER,3303-Taxi Hire,"£1,937.52"
02-DEC-2022,Environment & Transport (P),Coalville Cabs Ltd,TRADE SUPPLIER,3303-Taxi Hire,"£1,187.03"
02-DEC-2022,Environment & Transport (P),Coalville Cabs Ltd,TRADE SUPPLIER,3113-Home to Sch Trans Contract Buses Sec,"£1,650.00"
02-DEC-2022,Environment & Transport (P),Coalville Cabs Ltd,TRADE SUPPLIER,3201-Pooled Transport Recharge Inhouse,£754.50
02-DEC-2022,Environment & Transport (P),Coalville Cabs Ltd,TRADE SUPPLIER,3201-Pooled Transport Recharge Inhouse,"£1,350.00"
02-DEC-2022,Environment & Transport (P),Coalville Cabs Ltd,TRADE SUPPLIER,3201-Pooled Transport Recharge Inhouse,"£1,450.00"
02-DEC-2022,Environment & Transport (P),Coalville Cabs Ltd,TRADE SUPPLIER,3201-Pooled Transport Recharge Inhouse,"£2,541.60"
02-DEC-2022,Environment & Transport (P),Coalville Cabs Ltd,TRADE SUPPLIER,3201-Pooled Transport Recharge Inhouse,£828.00
02-DEC-2022,Environment & Transport (P),Coalville Cabs Ltd,TRADE SUPPLIER,3201-Pooled Transport Recharge Inhouse,"£1,415.88"
02-DEC-2022,Environment & Transport (P),Coalville Cabs Ltd,TRADE SUPPLIER,3201-Pooled Transport Recharge Inhouse,"£1,817.92"
02-DEC-2022,Environment & Transport (P),Coalville Cabs Ltd,TRADE SUPPLIER,3201-Pooled Transport Recharge Inhouse,"£1,538.24"
02-DEC-2022,Environment & Transport (P),Coalville Cabs Ltd,TRADE SUPPLIER,3201-Pooled Transport Recharge Inhouse,"£1,536.97"
02-DEC-2022,Environment & Transport (P),Coalville Cabs Ltd,TRADE SUPPLIER,3201-Pooled Transport Recharge Inhouse,"£1,270.75"
02-DEC-2022,Environment & Transport (P),Coalville Cabs Ltd,TRADE SUPPLIER,3201-Pooled Transport Recharge Inhouse,£594.00
02-DEC-2022,Environment & Transport (P),Coalville Cabs Ltd,TRADE SUPPLIER,3303-Taxi Hire,"£1,735.80"
02-DEC-2022,Environment & Transport (P),Coalville Cabs Ltd,TRADE SUPPLIER,3303-Taxi Hire,"£1,323.19"
02-DEC-2022,Environment & Transport (P),Coalville Cabs Ltd,TRADE SUPPLIER,3303-Taxi Hire,"£1,690.50"
02-DEC-2022,Environment & Transport (P),Coalville Cabs Ltd,TRADE SUPPLIER,3303-Taxi Hire,"£2,352.90"
02-DEC-2022,Environment & Transport (P),Coalville Cabs Ltd,TRADE SUPPLIER,3303-Taxi Hire,"£2,242.50"
02-DEC-2022,Environment & Transport (P),Coalville Cabs Ltd,TRADE SUPPLIER,3303-Taxi Hire,£630.40
02-DEC-2022,Environment & Transport (P),Coalville Cabs Ltd,TRADE SUPPLIER,3303-Taxi Hire,"£1,725.92"
02-DEC-2022,Environment & Transport (P),Coalville Cabs Ltd,TRADE SUPPLIER,3303-Taxi Hire,"£1,372.64"
02-DEC-2022,Environment & Transport (P),Coalville Cabs Ltd,TRADE SUPPLIER,3303-Taxi Hire,£680.00
02-DEC-2022,Environment & Transport (P),Coalville Cabs Ltd,TRADE SUPPLIER,3303-Taxi Hire,"£2,044.64"
02-DEC-2022,Environment & Transport (P),Coalville Cabs Ltd,TRADE SUPPLIER,3303-Taxi Hire,"£2,201.00"
02-DEC-2022,Environment & Transport (P),Coalville Cabs Ltd,TRADE SUPPLIER,3112-Home to Sch Trans Contract Buses Prim,"£1,560.32"
02-DEC-2022,Environment & Transport (P),Coalville Cabs Ltd,TRADE SUPPLIER,3303-Taxi Hire,"£1,116.04"
02-DEC-2022,Environment & Transport (P),Coalville Cabs Ltd,TRADE SUPPLIER,3303-Taxi Hire,"£2,167.52"
02-DEC-2022,Environment & Transport (P),Coalville Cabs Ltd,TRADE SUPPLIER,3303-Taxi Hire,"£1,899.20"
02-DEC-2022,Environment & Transport (P),Coalville Cabs Ltd,TRADE SUPPLIER,3303-Taxi Hire,"£2,300.64"
02-DEC-2022,Environment & Transport (P),Coalville Cabs Ltd,TRADE SUPPLIER,3303-Taxi Hire,"£1,376.00"
02-DEC-2022,Environment & Transport (P),Coalville Cabs Ltd,TRADE SUPPLIER,3303-Taxi Hire,"£1,257.60"
02-DEC-2022,Environment & Transport (P),Coalville Cabs Ltd,TRADE SUPPLIER,3303-Taxi Hire,"£2,200.64"
02-DEC-2022,Environment & Transport (P),Coalville Cabs Ltd,TRADE SUPPLIER,3303-Taxi Hire,£584.80
02-DEC-2022,Environment & Transport (P),Coalville Cabs Ltd,TRADE SUPPLIER,3303-Taxi Hire,£632.50
02-DEC-2022,Environment & Transport (P),Coalville Cabs Ltd,TRADE SUPPLIER,3303-Taxi Hire,"£1,654.40"
02-DEC-2022,Environment & Transport (P),Coalville Cabs Ltd,TRADE SUPPLIER,3303-Taxi Hire,"£1,273.60"
02-DEC-2022,Environment & Transport (P),Coalville Cabs Ltd,TRADE SUPPLIER,3303-Taxi Hire,"£1,312.38"
02-DEC-2022,Environment & Transport (P),Coalville Cabs Ltd,TRADE SUPPLIER,3303-Taxi Hire,"£1,115.40"
02-DEC-2022,Environment & Transport (P),Coalville Cabs Ltd,TRADE SUPPLIER,3303-Taxi Hire,"£2,178.56"
02-DEC-2022,Environment & Transport (P),Coalville Cabs Ltd,TRADE SUPPLIER,3113-Home to Sch Trans Contract Buses Sec,£768.00
02-DEC-2022,Environment & Transport (P),Coalville Cabs Ltd,TRADE SUPPLIER,3303-Taxi Hire,"£1,650.48"
02-DEC-2022,Environment & Transport (P),Coalville Cabs Ltd,TRADE SUPPLIER,3303-Taxi Hire,£558.90
02-DEC-2022,Environment & Transport (P),Colas Ltd,SUBCONTRACTOR,5411-Private Contractors - General,"£2,818.90"
02-DEC-2022,Environment & Transport (P),Colas Ltd,SUBCONTRACTOR,4901-Other Expenditure,£533.94
02-DEC-2022,Environment & Transport (P),Colas Ltd,SUBCONTRACTOR,3301-Vehicle & Plant Hire,£533.98
02-DEC-2022,Environment & Transport (P),Colas Ltd,SUBCONTRACTOR,3301-Vehicle & Plant Hire,"£1,145.30"
02-DEC-2022,Environment & Transport (P),Colas Ltd,SUBCONTRACTOR,4901-Other Expenditure,£566.07
02-DEC-2022,Environment & Transport (P),Colas Ltd,SUBCONTRACTOR,5411-Private Contractors - General,"£3,624.30"
02-DEC-2022,Environment & Transport (P),Colas Ltd,SUBCONTRACTOR,3301-Vehicle & Plant Hire,"£2,818.90"
02-DEC-2022,Environment & Transport (P),Colas Ltd,SUBCONTRACTOR,5411-Private Contractors - General,"£4,233.55"
02-DEC-2022,Environment & Transport (P),Colas Ltd,SUBCONTRACTOR,5411-Private Contractors - General,"£1,610.80"
02-DEC-2022,Environment & Transport (P),Colas Ltd,SUBCONTRACTOR,3301-Vehicle & Plant Hire,£840.89
02-DEC-2022,Environment & Transport (P),Colas Ltd,SUBCONTRACTOR,4901-Other Expenditure,"£5,847.71"
02-DEC-2022,Environment & Transport (P),Colas Ltd,SUBCONTRACTOR,3301-Vehicle & Plant Hire,"£1,145.30"
02-DEC-2022,Environment & Transport (P),Colas Ltd,SUBCONTRACTOR,4109-Materials,£805.40
02-DEC-2022,Environment & Transport (P),Colas Ltd,SUBCONTRACTOR,3301-Vehicle & Plant Hire,"£1,067.96"
02-DEC-2022,Environment & Transport (P),Colas Ltd,SUBCONTRACTOR,5411-Private Contractors - General,"£6,040.50"
02-DEC-2022,Environment & Transport (P),Colas Ltd,SUBCONTRACTOR,3301-Vehicle & Plant Hire,£504.11
02-DEC-2022,Environment & Transport (P),Confidence Bus & Coach Hire Ltd,TRADE SUPPLIER,3113-Home to Sch Trans Contract Buses Sec,"£9,360.16"
02-DEC-2022,Environment & Transport (P),Crown Hill Taxis & Care Services Ltd,TRADE SUPPLIER,3303-Taxi Hire,"£3,424.00"
02-DEC-2022,Balance Sheet Cost Centres (P),Crystal Purchasing Ltd T/A ICL UK (Sales) Ltd,TRADE SUPPLIER,9631-Inventories - General,"£4,354.56"
02-DEC-2022,Balance Sheet Cost Centres (P),Crystal Purchasing Ltd T/A ICL UK (Sales) Ltd,TRADE SUPPLIER,9631-Inventories - General,"£8,866.80"
02-DEC-2022,Chief Executives (P),Cyber Media Solutions Ltd,TRADE SUPPLIER,4602-IT Services,£720.00
02-DEC-2022,C&FS (P),REDACTED PERSONAL DATA,GENERAL,5621-Transfer Payments,"£1,099.62"
02-DEC-2022,Environment & Transport (P),REDACTED PERSONAL DATA,TRADE SUPPLIER,3201-Pooled Transport Recharge Inhouse,"£1,220.00"
02-DEC-2022,Environment & Transport (P),REDACTED PERSONAL DATA,TRADE SUPPLIER,3201-Pooled Transport Recharge Inhouse,£780.00
02-DEC-2022,Environment & Transport (P),REDACTED PERSONAL DATA,TRADE SUPPLIER,3201-Pooled Transport Recharge Inhouse,"£1,380.00"
02-DEC-2022,Adults & Communities (P),REDACTED PERSONAL DATA,TRADE SUPPLIER,4109-Materials,"£1,255.71"
02-DEC-2022,Environment & Transport (P),REDACTED PERSONAL DATA,TRADE INDIVIDUAL,3303-Taxi Hire,"£1,155.00"
02-DEC-2022,Environment & Transport (P),REDACTED PERSONAL DATA,TRADE INDIVIDUAL,4507-Consultants & Specialists,"£1,799.00"
02-DEC-2022,Environment & Transport (P),Denham Procurement & Sourcing Solutions Ltd,TRADE SUPPLIER,4109-Materials,"£2,785.40"
02-DEC-2022,Environment & Transport (P),Denham Procurement & Sourcing Solutions Ltd,TRADE SUPPLIER,4109-Materials,"£1,979.60"
02-DEC-2022,Environment & Transport (P),Denham Procurement & Sourcing Solutions Ltd,TRADE SUPPLIER,4109-Materials,"£1,155.00"
02-DEC-2022,Balance Sheet Cost Centres (P),Denham Procurement & Sourcing Solutions Ltd,TRADE SUPPLIER,9631-Inventories - General,"£4,146.44"
02-DEC-2022,Environment & Transport (P),Denham Procurement & Sourcing Solutions Ltd,TRADE SUPPLIER,4109-Materials,£813.35
02-DEC-2022,Environment & Transport (P),Denham Procurement & Sourcing Solutions Ltd,TRADE SUPPLIER,4109-Materials,£745.00
02-DEC-2022,Environment & Transport (P),Denham Procurement & Sourcing Solutions Ltd,TRADE SUPPLIER,4109-Materials,"£1,155.00"
02-DEC-2022,Balance Sheet Cost Centres (P),Denham Procurement & Sourcing Solutions Ltd,TRADE SUPPLIER,9631-Inventories - General,"£4,349.30"
02-DEC-2022,Environment & Transport (P),Denham Procurement & Sourcing Solutions Ltd,TRADE SUPPLIER,4901-Other Expenditure,"£3,068.40"
02-DEC-2022,Environment & Transport (P),Denham Procurement & Sourcing Solutions Ltd,TRADE SUPPLIER,4109-Materials,"£1,500.00"
02-DEC-2022,Environment & Transport (P),Denham Procurement & Sourcing Solutions Ltd,TRADE SUPPLIER,4109-Materials,£818.15
02-DEC-2022,Environment & Transport (P),Direct Cabs,TRADE SUPPLIER,3303-Taxi Hire,"£1,196.00"
02-DEC-2022,Environment & Transport (P),Direct Cabs,TRADE SUPPLIER,3303-Taxi Hire,"£2,614.40"
02-DEC-2022,Environment & Transport (P),Direct Cabs,TRADE SUPPLIER,3303-Taxi Hire,£981.00
02-DEC-2022,Environment & Transport (P),Direct Cabs,TRADE SUPPLIER,3303-Taxi Hire,"£1,568.00"
02-DEC-2022,Environment & Transport (P),Direct Cabs,TRADE SUPPLIER,3303-Taxi Hire,"£1,544.00"
02-DEC-2022,Environment & Transport (P),Direct Cabs,TRADE SUPPLIER,3303-Taxi Hire,"£1,824.00"
02-DEC-2022,Environment & Transport (P),Direct Cabs,TRADE SUPPLIER,3303-Taxi Hire,"£1,788.16"
02-DEC-2022,Environment & Transport (P),Direct Cabs,TRADE SUPPLIER,3303-Taxi Hire,"£1,040.00"
02-DEC-2022,Environment & Transport (P),Direct Cabs,TRADE SUPPLIER,3303-Taxi Hire,"£1,750.00"
02-DEC-2022,Chief Executives (P),Dodds Solicitors LLP,TRADE SUPPLIER,4905-Legal Expenses,£765.92
02-DEC-2022,C&FS (P),REDACTED PERSONAL DATA,GENERAL,5621-Transfer Payments,£728.01
02-DEC-2022,Corporate Resources (CR) (P),Edenred UK Group Ltd,TRADE SUPPLIER,8391-Free Pupil Meals – Elig,"£640,000.00"
02-DEC-2022,C&FS (P),REDACTED PERSONAL DATA,GENERAL,5323-External SEN Providers Independent Sch,"£1,052.31"
02-DEC-2022,C&FS (P),REDACTED PERSONAL DATA,GENERAL,5621-Transfer Payments,£895.78
02-DEC-2022,Environment & Transport (P),Exterior Lighting Solutions (UK) Ltd,TRADE SUPPLIER,4109-Materials,£579.99
02-DEC-2022,Balance Sheet Cost Centres (P),Exterior Lighting Solutions (UK) Ltd,TRADE SUPPLIER,9631-Inventories - General,£652.46
02-DEC-2022,Environment & Transport (P),Exterior Lighting Solutions (UK) Ltd,TRADE SUPPLIER,4109-Materials,£810.00
02-DEC-2022,C&FS (P),Favour Health Ltd,TRADE SUPPLIER,5451-LCT/LAC (Not Fostered),"£3,633.08"
02-DEC-2022,C&FS (P),Favour Health Ltd,TRADE SUPPLIER,5451-LCT/LAC (Not Fostered),"£3,633.08"
02-DEC-2022,C&FS (P),Favour Health Ltd,TRADE SUPPLIER,5451-LCT/LAC (Not Fostered),"£3,633.24"
02-DEC-2022,C&FS (P),Favour Health Ltd,TRADE SUPPLIER,5451-LCT/LAC (Not Fostered),"£3,633.24"
02-DEC-2022,C&FS (P),Favour Health Ltd,TRADE SUPPLIER,5411-Private Contractors - General,£824.80
02-DEC-2022,C&FS (P),Favour Health Ltd,TRADE SUPPLIER,5451-LCT/LAC (Not Fostered),"£6,750.99"
02-DEC-2022,Corporate Resources (CR) (P),First Response Training & Consultancy Services Ltd,TRADE SUPPLIER,1703-Training Expenses,£705.00
02-DEC-2022,Corporate Resources (CR) (P),First Response Training & Consultancy Services Ltd,TRADE SUPPLIER,1703-Training Expenses,£705.00
02-DEC-2022,Environment & Transport (P),First4airport,NON TRADE,3113-Home to Sch Trans Contract Buses Sec,"£2,496.00"
02-DEC-2022,Environment & Transport (P),First4airport,NON TRADE,3113-Home to Sch Trans Contract Buses Sec,"£1,344.00"
02-DEC-2022,Environment & Transport (P),First4airport,NON TRADE,3201-Pooled Transport Recharge Inhouse,"£1,026.00"
02-DEC-2022,Environment & Transport (P),First4airport,NON TRADE,3303-Taxi Hire,£680.00
02-DEC-2022,Environment & Transport (P),First4airport,NON TRADE,3303-Taxi Hire,"£2,240.00"
02-DEC-2022,Environment & Transport (P),First4airport,NON TRADE,3303-Taxi Hire,"£2,318.40"
02-DEC-2022,Environment & Transport (P),First4airport,NON TRADE,3303-Taxi Hire,"£2,080.00"
02-DEC-2022,Environment & Transport (P),First4airport,NON TRADE,3201-Pooled Transport Recharge Inhouse,"£1,856.00"
02-DEC-2022,Capital - In Year Spend (P),Focus Consultants 2010 LLP,TRADE SUPPLIER,941D-L&B - Building Costs,"£1,800.00"
02-DEC-2022,Capital - In Year Spend (P),Focus Consultants 2010 LLP,TRADE SUPPLIER,941D-L&B - Building Costs,"£1,800.00"
02-DEC-2022,Capital - In Year Spend (P),Focus Consultants 2010 LLP,TRADE SUPPLIER,941G-L&B - Design Fees - External,£700.00
02-DEC-2022,Corporate Resources (CR) (P),Focus Consultants 2010 LLP,TRADE SUPPLIER,2111-Glazing Survey & Fire Risk Ass,"£1,420.00"
02-DEC-2022,Corporate Resources (CR) (P),Focus Consultants 2010 LLP,TRADE SUPPLIER,2111-Glazing Survey & Fire Risk Ass,"£1,360.00"
02-DEC-2022,Capital - In Year Spend (P),Focus Consultants 2010 LLP,TRADE SUPPLIER,941D-L&B - Building Costs,"£1,100.00"
02-DEC-2022,Corporate Resources (CR) (P),Focus Consultants 2010 LLP,TRADE SUPPLIER,2111-Glazing Survey & Fire Risk Ass,"£1,420.00"
02-DEC-2022,Corporate Resources (CR) (P),Focus Consultants 2010 LLP,TRADE SUPPLIER,2111-Glazing Survey & Fire Risk Ass,"£1,450.00"
02-DEC-2022,Corporate Resources (CR) (P),Focus Consultants 2010 LLP,TRADE SUPPLIER,2111-Glazing Survey & Fire Risk Ass,"£1,350.00"
02-DEC-2022,Corporate Resources (CR) (P),Focus Consultants 2010 LLP,TRADE SUPPLIER,2111-Glazing Survey & Fire Risk Ass,"£1,350.00"
02-DEC-2022,Corporate Resources (CR) (P),Focus Consultants 2010 LLP,TRADE SUPPLIER,2111-Glazing Survey & Fire Risk Ass,"£1,360.00"
02-DEC-2022,Environment & Transport (P),Ford & Slater of Leicester,TRADE SUPPLIER,3102-Vehicle & Plant Repairs & Maintenance,"£2,107.12"
02-DEC-2022,Capital - In Year Spend (P),FPCR Environment & Design Ltd,TRADE SUPPLIER,941G-L&B - Design Fees - External,"£2,750.00"
02-DEC-2022,Corporate Resources (CR) (P),Freeney Williams Ltd,TRADE SUPPLIER,1703-Training Expenses,£750.00
02-DEC-2022,Environment & Transport (P),Freight Transport Association,NON TRADE,1703-Training Expenses,£845.00
02-DEC-2022,C&FS (P),Frontline Staffing Ltd,TRADE SUPPLIER,1201-Agency Costs,"£1,620.23"
02-DEC-2022,Environment & Transport (P),G & G Minibuses Ltd,TRADE SUPPLIER,3115-Home to Sch Trans Contract Buses FE,£695.00
02-DEC-2022,Environment & Transport (P),G & G Minibuses Ltd,TRADE SUPPLIER,3113-Home to Sch Trans Contract Buses Sec,"£4,640.00"
02-DEC-2022,Environment & Transport (P),G & G Minibuses Ltd,TRADE SUPPLIER,3112-Home to Sch Trans Contract Buses Prim,"£2,748.00"
02-DEC-2022,Environment & Transport (P),G & G Minibuses Ltd,TRADE SUPPLIER,3113-Home to Sch Trans Contract Buses Sec,"£1,770.00"
02-DEC-2022,Environment & Transport (P),G & G Minibuses Ltd,TRADE SUPPLIER,3113-Home to Sch Trans Contract Buses Sec,"£4,728.00"
02-DEC-2022,Environment & Transport (P),G & G Minibuses Ltd,TRADE SUPPLIER,3113-Home to Sch Trans Contract Buses Sec,"£1,770.00"
02-DEC-2022,Environment & Transport (P),G & G Minibuses Ltd,TRADE SUPPLIER,3113-Home to Sch Trans Contract Buses Sec,"£4,536.00"
02-DEC-2022,Environment & Transport (P),REDACTED PERSONAL DATA,TRADE INDIVIDUAL,3113-Home to Sch Trans Contract Buses Sec,"£10,054.40"
02-DEC-2022,C&FS (P),Glebe House (Charnwood) Ltd     1,TRADE SUPPLIER,5429-Community/Domiciliary,"£3,078.00"
02-DEC-2022,Corporate Resources (CR) (P),Glenfield Associates Ltd,TRADE SUPPLIER,2107-Electrical Testing,"£1,982.09"
02-DEC-2022,Corporate Resources (CR) (P),Glenfield Associates Ltd,TRADE SUPPLIER,2107-Electrical Testing,"£1,911.57"
02-DEC-2022,Environment & Transport (P),Go Plant Ltd T/A Go Plant Sweepers,TRADE SUPPLIER,4901-Other Expenditure,£555.00
02-DEC-2022,C&FS (P),GoTo Healthcare Ltd,TRADE SUPPLIER,5443-Agency & Contracted Services,"£1,200.00"
02-DEC-2022,Public Health (P),Gower Enterprises Ltd T/A ECigaretteDirect,TRADE SUPPLIER,5443-Agency & Contracted Services,"£7,027.93"
02-DEC-2022,Environment & Transport (P),REDACTED PERSONAL DATA,TRADE INDIVIDUAL,3303-Taxi Hire,"£1,959.68"
02-DEC-2022,Environment & Transport (P),REDACTED PERSONAL DATA,NON TRADE,3112-Home to Sch Trans Contract Buses Prim,"£1,440.00"
02-DEC-2022,Environment & Transport (P),REDACTED PERSONAL DATA,NON TRADE,3112-Home to Sch Trans Contract Buses Prim,"£1,520.00"
02-DEC-2022,Environment & Transport (P),REDACTED PERSONAL DATA,NON TRADE,3303-Taxi Hire,"£1,380.00"
02-DEC-2022,Environment & Transport (P),REDACTED PERSONAL DATA,TRADE INDIVIDUAL,3112-Home to Sch Trans Contract Buses Prim,"£1,477.50"
02-DEC-2022,Environment & Transport (P),REDACTED PERSONAL DATA,TRADE INDIVIDUAL,3303-Taxi Hire,£955.92
02-DEC-2022,Environment & Transport (P),REDACTED PERSONAL DATA,TRADE INDIVIDUAL,3303-Taxi Hire,"£1,431.70"
02-DEC-2022,Environment & Transport (P),REDACTED PERSONAL DATA,TRADE INDIVIDUAL,3303-Taxi Hire,£793.50
02-DEC-2022,Environment & Transport (P),REDACTED PERSONAL DATA,TRADE INDIVIDUAL,3303-Taxi Hire,£965.25
02-DEC-2022,C&FS (P),REDACTED PERSONAL DATA,GENERAL,5621-Transfer Payments,"£1,054.99"
02-DEC-2022,Environment & Transport (P),HANSOM TAXIS LEICESTER LTD,TRADE SUPPLIER,3303-Taxi Hire,£934.00
02-DEC-2022,Environment & Transport (P),HANSOM TAXIS LEICESTER LTD,TRADE SUPPLIER,3303-Taxi Hire,"£1,536.00"
02-DEC-2022,Environment & Transport (P),HANSOM TAXIS LEICESTER LTD,TRADE SUPPLIER,3303-Taxi Hire,£711.00
02-DEC-2022,Environment & Transport (P),HANSOM TAXIS LEICESTER LTD,TRADE SUPPLIER,3303-Taxi Hire,£869.00
02-DEC-2022,Corporate Resources (CR) (P),Harborough District Council,OTHER LOCAL AUTHORITIES,2311-Rates,"£3,175.46"
02-DEC-2022,C&FS (P),REDACTED PERSONAL DATA,GENERAL,5621-Transfer Payments,£565.97
02-DEC-2022,C&FS (P),REDACTED PERSONAL DATA,GENERAL,5323-External SEN Providers Independent Sch,"£1,819.23"
02-DEC-2022,C&FS (P),REDACTED PERSONAL DATA,GENERAL,5621-Transfer Payments,"£1,176.55"
02-DEC-2022,Environment & Transport (P),Hirst Signs Ltd,TRADE SUPPLIER,4109-Materials,£658.24
02-DEC-2022,Balance Sheet Cost Centres (P),Hirst Signs Ltd,TRADE SUPPLIER,9631-Inventories - General,"£1,365.00"
02-DEC-2022,Environment & Transport (P),HMB (LEIC) Ltd,TRADE SUPPLIER,3303-Taxi Hire,"£1,821.60"
02-DEC-2022,Environment & Transport (P),HMB (LEIC) Ltd,TRADE SUPPLIER,3303-Taxi Hire,"£2,401.28"
02-DEC-2022,Environment & Transport (P),HMB (LEIC) Ltd,TRADE SUPPLIER,3303-Taxi Hire,"£2,382.72"
02-DEC-2022,Environment & Transport (P),HMB (LEIC) Ltd,TRADE SUPPLIER,3303-Taxi Hire,"£1,295.00"
02-DEC-2022,Environment & Transport (P),HMB (LEIC) Ltd,TRADE SUPPLIER,3303-Taxi Hire,"£2,016.00"
02-DEC-2022,Environment & Transport (P),HMB (LEIC) Ltd,TRADE SUPPLIER,3303-Taxi Hire,"£2,224.00"
02-DEC-2022,Environment & Transport (P),HMB (LEIC) Ltd,TRADE SUPPLIER,3303-Taxi Hire,"£1,904.00"
02-DEC-2022,Environment & Transport (P),HMB (LEIC) Ltd,TRADE SUPPLIER,3113-Home to Sch Trans Contract Buses Sec,"£1,560.00"
02-DEC-2022,Environment & Transport (P),HMB (LEIC) Ltd,TRADE SUPPLIER,3201-Pooled Transport Recharge Inhouse,"£1,029.78"
02-DEC-2022,Environment & Transport (P),HMB (LEIC) Ltd,TRADE SUPPLIER,3201-Pooled Transport Recharge Inhouse,"£1,420.50"
02-DEC-2022,Environment & Transport (P),HMB (LEIC) Ltd,TRADE SUPPLIER,3201-Pooled Transport Recharge Inhouse,"£1,633.99"
02-DEC-2022,Environment & Transport (P),HMB (LEIC) Ltd,TRADE SUPPLIER,3112-Home to Sch Trans Contract Buses Prim,"£1,200.00"
02-DEC-2022,Environment & Transport (P),HMB (LEIC) Ltd,TRADE SUPPLIER,3303-Taxi Hire,"£2,750.72"
02-DEC-2022,Environment & Transport (P),HMB (LEIC) Ltd,TRADE SUPPLIER,3303-Taxi Hire,"£2,579.20"
02-DEC-2022,Environment & Transport (P),HMB (LEIC) Ltd,TRADE SUPPLIER,3303-Taxi Hire,"£2,367.84"
02-DEC-2022,Environment & Transport (P),HMB (LEIC) Ltd,TRADE SUPPLIER,3303-Taxi Hire,"£1,149.64"
02-DEC-2022,Environment & Transport (P),Idverde Ltd,TRADE SUPPLIER,5411-Private Contractors - General,"£2,180.00"
02-DEC-2022,Environment & Transport (P),Idverde Ltd,TRADE SUPPLIER,5411-Private Contractors - General,"£2,180.00"
02-DEC-2022,Environment & Transport (P),REDACTED PERSONAL DATA,TRADE INDIVIDUAL,3303-Taxi Hire,"£2,539.20"
02-DEC-2022,Capital - In Year Spend (P),Ivy House Environmental Ltd,TRADE SUPPLIER,941D-L&B - Building Costs,"£7,731.75"
02-DEC-2022,C&FS (P),REDACTED PERSONAL DATA,GENERAL,5621-Transfer Payments,"£3,873.28"
02-DEC-2022,C&FS (P),REDACTED PERSONAL DATA,GENERAL,5621-Transfer Payments,£756.13
02-DEC-2022,Environment & Transport (P),REDACTED PERSONAL DATA,TRADE INDIVIDUAL,3303-Taxi Hire,"£2,368.00"
02-DEC-2022,Environment & Transport (P),REDACTED PERSONAL DATA,TRADE INDIVIDUAL,3303-Taxi Hire,"£3,402.75"
02-DEC-2022,Environment & Transport (P),JBA Consulting,TRADE SUPPLIER,4507-Consultants & Specialists,"£2,212.12"
02-DEC-2022,C&FS (P),REDACTED PERSONAL DATA,GENERAL,5612-Special Guardianship Allowance,£510.86
02-DEC-2022,C&FS (P),REDACTED PERSONAL DATA,GENERAL,5612-Special Guardianship Allowance,"£1,795.07"
02-DEC-2022,C&FS (P),REDACTED PERSONAL DATA,GENERAL,5621-Transfer Payments,£829.19
02-DEC-2022,Environment & Transport (P),Jetline Taxis Ltd,TRADE SUPPLIER,3201-Pooled Transport Recharge Inhouse,"£2,786.50"
02-DEC-2022,Environment & Transport (P),Jetline Taxis Ltd,TRADE SUPPLIER,3201-Pooled Transport Recharge Inhouse,"£1,956.00"
02-DEC-2022,Environment & Transport (P),Jetline Taxis Ltd,TRADE SUPPLIER,3201-Pooled Transport Recharge Inhouse,"£1,826.00"
02-DEC-2022,Environment & Transport (P),Jetline Taxis Ltd,TRADE SUPPLIER,3303-Taxi Hire,"£1,188.00"
02-DEC-2022,Environment & Transport (P),REDACTED PERSONAL DATA,NON TRADE,3303-Taxi Hire,"£1,720.00"
02-DEC-2022,Chief Executives (P),Johnson Astills Ltd,TRADE SUPPLIER,4905-Legal Expenses,"£4,110.40"
02-DEC-2022,C&FS (P),REDACTED PERSONAL DATA,GENERAL,5626-Transfer Payments Section 23 Grants,"£2,280.00"
02-DEC-2022,Environment & Transport (P),REDACTED PERSONAL DATA,NON TRADE,3303-Taxi Hire,"£1,870.40"
02-DEC-2022,Environment & Transport (P),REDACTED PERSONAL DATA,NON TRADE,3303-Taxi Hire,"£1,881.00"
02-DEC-2022,Environment & Transport (P),REDACTED PERSONAL DATA,NON TRADE,3201-Pooled Transport Recharge Inhouse,"£1,540.00"
02-DEC-2022,Environment & Transport (P),REDACTED PERSONAL DATA,NON TRADE,3303-Taxi Hire,"£2,958.08"
02-DEC-2022,C&FS (P),REDACTED PERSONAL DATA,GENERAL,5621-Transfer Payments,£659.17
02-DEC-2022,Chief Executives (P),REDACTED PERSONAL DATA,NON TRADE,4529-Post Mortem Exams,"£1,062.20"
02-DEC-2022,C&FS (P),Keys PCE Ltd,NON TRADE,5411-Private Contractors - General,"£9,714.29"
02-DEC-2022,Environment & Transport (P),Keytracker Ltd,TRADE SUPPLIER,4901-Other Expenditure,"£1,040.00"
02-DEC-2022,Environment & Transport (P),KGN Taxis Ltd,TRADE SUPPLIER,3303-Taxi Hire,"£1,061.65"
02-DEC-2022,Environment & Transport (P),KGN Taxis Ltd,TRADE SUPPLIER,3303-Taxi Hire,"£1,080.00"
02-DEC-2022,Environment & Transport (P),KGN Taxis Ltd,TRADE SUPPLIER,3303-Taxi Hire,"£1,937.50"
02-DEC-2022,C&FS (P),REDACTED PERSONAL DATA,GENERAL,5621-Transfer Payments,£977.67
02-DEC-2022,Capital - In Year Spend (P),Lakeside Flood Solutions Ltd,TRADE SUPPLIER,941G-L&B - Design Fees - External,"£79,954.17"
02-DEC-2022,C&FS (P),REDACTED PERSONAL DATA,GENERAL,5621-Transfer Payments,£767.12
02-DEC-2022,C&FS (P),REDACTED PERSONAL DATA,GENERAL,5323-External SEN Providers Independent Sch,£768.00
02-DEC-2022,Balance Sheet Cost Centres (P),LCC Carer Direct Payments A/C,OTHER LOCAL AUTHORITIES,9668-Cash - Floats,£572.24
02-DEC-2022,Balance Sheet Cost Centres (P),LCC CHILDREN'S AND FAMILY SERVICE,OTHER LOCAL AUTHORITIES,9668-Cash - Floats,"£2,335.50"
02-DEC-2022,Balance Sheet Cost Centres (P),LCC Customer Direct Payments A/C,OTHER LOCAL AUTHORITIES,9668-Cash - Floats,"£1,344.22"
02-DEC-2022,Balance Sheet Cost Centres (P),LCC Customer Rep Direct Payments A/C,OTHER LOCAL AUTHORITIES,9668-Cash - Floats,£750.00
02-DEC-2022,C&FS (P),Leaders in Care,FACTOR,1201-Agency Costs,"£1,628.00"
02-DEC-2022,C&FS (P),Leaders in Care,FACTOR,1201-Agency Costs,"£1,628.00"
02-DEC-2022,C&FS (P),Leaders in Care,FACTOR,1201-Agency Costs,£519.10
02-DEC-2022,C&FS (P),REDACTED PERSONAL DATA,GENERAL,5621-Transfer Payments,£613.98
02-DEC-2022,C&FS (P),REDACTED PERSONAL DATA,TRADE SUPPLIER,5445-Adoption Support,"£1,773.75"
02-DEC-2022,C&FS (P),REDACTED PERSONAL DATA,TRADE SUPPLIER,5445-Adoption Support,"£2,632.50"
02-DEC-2022,Chief Executives (P),Leicester City Council,OTHER LOCAL AUTHORITIES,5213-Payments to Leic City,"£119,526.00"
02-DEC-2022,Corporate Resources (CR) (P),Leicester City Council,OTHER LOCAL AUTHORITIES,2101-R&M Buildings,"£2,126.87"
02-DEC-2022,Central Items (NCS) (P),Leicester Tree Care,TRADE SUPPLIER,4901-Other Expenditure,£980.00
02-DEC-2022,Public Health (P),Leicester Unity Amateur Boxing Club,TRADE SUPPLIER,4908-Grants,"£5,720.00"
02-DEC-2022,Chief Executives (P),Lextox,TRADE SUPPLIER,4905-Legal Expenses,£523.00
02-DEC-2022,Chief Executives (P),Lextox,TRADE SUPPLIER,4905-Legal Expenses,£523.00
02-DEC-2022,Corporate Resources (CR) (P),Lingfield Assets LLP,TRADE SUPPLIER,2321-Rent & Room Hire,£988.75
02-DEC-2022,C&FS (P),REDACTED PERSONAL DATA,GENERAL,5621-Transfer Payments,£568.26
02-DEC-2022,C&FS (P),REDACTED PERSONAL DATA,GENERAL,5621-Transfer Payments,£733.83
02-DEC-2022,Environment & Transport (P),Local Taxis Ltd T/A Fosse,TRADE SUPPLIER,3201-Pooled Transport Recharge Inhouse,£720.00
02-DEC-2022,Environment & Transport (P),Local Taxis Ltd T/A Fosse,TRADE SUPPLIER,3201-Pooled Transport Recharge Inhouse,£999.00
02-DEC-2022,Environment & Transport (P),Local Taxis Ltd T/A Fosse,TRADE SUPPLIER,3201-Pooled Transport Recharge Inhouse,£900.00
02-DEC-2022,Environment & Transport (P),Local Taxis Ltd T/A Fosse,TRADE SUPPLIER,3201-Pooled Transport Recharge Inhouse,"£1,023.50"
02-DEC-2022,Environment & Transport (P),Local Taxis Ltd T/A Fosse,TRADE SUPPLIER,3201-Pooled Transport Recharge Inhouse,"£1,354.00"
02-DEC-2022,C&FS (P),REDACTED PERSONAL DATA,GENERAL,5323-External SEN Providers Independent Sch,"£1,842.38"
02-DEC-2022,C&FS (P),REDACTED PERSONAL DATA,GENERAL,5621-Transfer Payments,£900.41
02-DEC-2022,Environment & Transport (P),REDACTED PERSONAL DATA,TRADE SUPPLIER,3303-Taxi Hire,"£2,428.48"
02-DEC-2022,Environment & Transport (P),REDACTED PERSONAL DATA,TRADE SUPPLIER,3303-Taxi Hire,"£2,176.00"
02-DEC-2022,Environment & Transport (P),REDACTED PERSONAL DATA,TRADE SUPPLIER,3303-Taxi Hire,"£1,408.00"
02-DEC-2022,Environment & Transport (P),REDACTED PERSONAL DATA,TRADE SUPPLIER,3303-Taxi Hire,"£1,680.00"
02-DEC-2022,Environment & Transport (P),REDACTED PERSONAL DATA,TRADE SUPPLIER,3201-Pooled Transport Recharge Inhouse,£800.00
02-DEC-2022,Environment & Transport (P),REDACTED PERSONAL DATA,TRADE SUPPLIER,3303-Taxi Hire,"£2,637.60"
02-DEC-2022,Environment & Transport (P),REDACTED PERSONAL DATA,TRADE SUPPLIER,3303-Taxi Hire,"£2,022.24"
02-DEC-2022,Environment & Transport (P),REDACTED PERSONAL DATA,TRADE INDIVIDUAL,3303-Taxi Hire,"£2,981.60"
02-DEC-2022,Environment & Transport (P),Marlene Reid Centre Community Action     1,TRADE SUPPLIER,3201-Pooled Transport Recharge Inhouse,£637.00
02-DEC-2022,Environment & Transport (P),REDACTED PERSONAL DATA,TRADE SUPPLIER,3113-Home to Sch Trans Contract Buses Sec,"£2,400.00"
02-DEC-2022,Environment & Transport (P),Master Cabs Leicester Ltd,TRADE SUPPLIER,3303-Taxi Hire,"£2,042.40"
02-DEC-2022,Environment & Transport (P),Master Cabs Leicester Ltd,TRADE SUPPLIER,3112-Home to Sch Trans Contract Buses Prim,"£1,264.00"
02-DEC-2022,Environment & Transport (P),Master Cabs Leicester Ltd,TRADE SUPPLIER,3303-Taxi Hire,"£1,134.00"
02-DEC-2022,Environment & Transport (P),Master Cabs Leicester Ltd,TRADE SUPPLIER,3201-Pooled Transport Recharge Inhouse,"£2,373.61"
02-DEC-2022,Environment & Transport (P),Master Cabs Leicester Ltd,TRADE SUPPLIER,3113-Home to Sch Trans Contract Buses Sec,"£1,058.50"
02-DEC-2022,Environment & Transport (P),Master Cabs Leicester Ltd,TRADE SUPPLIER,3303-Taxi Hire,"£1,348.50"
02-DEC-2022,Environment & Transport (P),Master Cabs Leicester Ltd,TRADE SUPPLIER,3303-Taxi Hire,"£1,038.00"
02-DEC-2022,Environment & Transport (P),Master Cabs Leicester Ltd,TRADE SUPPLIER,3303-Taxi Hire,"£2,032.00"
02-DEC-2022,Environment & Transport (P),Master Cabs Leicester Ltd,TRADE SUPPLIER,3303-Taxi Hire,£944.00
02-DEC-2022,Environment & Transport (P),Master Cabs Leicester Ltd,TRADE SUPPLIER,3303-Taxi Hire,"£1,015.00"
02-DEC-2022,Environment & Transport (P),Master Cabs Leicester Ltd,TRADE SUPPLIER,3303-Taxi Hire,"£2,800.00"
02-DEC-2022,Environment & Transport (P),Master Cabs Leicester Ltd,TRADE SUPPLIER,3303-Taxi Hire,£535.50
02-DEC-2022,Environment & Transport (P),Master Cabs Leicester Ltd,TRADE SUPPLIER,3303-Taxi Hire,"£2,512.00"
02-DEC-2022,Environment & Transport (P),Master Cabs Leicester Ltd,TRADE SUPPLIER,3303-Taxi Hire,"£2,588.80"
02-DEC-2022,Environment & Transport (P),Master Cabs Leicester Ltd,TRADE SUPPLIER,3303-Taxi Hire,"£2,592.00"
02-DEC-2022,Environment & Transport (P),Master Cabs Leicester Ltd,TRADE SUPPLIER,3303-Taxi Hire,"£2,160.00"
02-DEC-2022,Environment & Transport (P),Master Cabs Leicester Ltd,TRADE SUPPLIER,3303-Taxi Hire,"£2,512.00"
02-DEC-2022,Environment & Transport (P),Master Cabs Leicester Ltd,TRADE SUPPLIER,3112-Home to Sch Trans Contract Buses Prim,£784.00
02-DEC-2022,Environment & Transport (P),Master Cabs Leicester Ltd,TRADE SUPPLIER,3201-Pooled Transport Recharge Inhouse,"£1,485.00"
02-DEC-2022,Environment & Transport (P),Master Cabs Leicester Ltd,TRADE SUPPLIER,3201-Pooled Transport Recharge Inhouse,"£2,015.50"
02-DEC-2022,Environment & Transport (P),Master Cabs Leicester Ltd,TRADE SUPPLIER,3201-Pooled Transport Recharge Inhouse,"£1,833.50"
02-DEC-2022,Environment & Transport (P),Matchtech Group (UK) Ltd,TRADE SUPPLIER,1201-Agency Costs,"£5,281.05"
02-DEC-2022,Environment & Transport (P),Matchtech Group (UK) Ltd,TRADE SUPPLIER,1201-Agency Costs,"£6,164.00"
02-DEC-2022,Environment & Transport (P),Matchtech Group (UK) Ltd,TRADE SUPPLIER,1201-Agency Costs,"£11,570.50"
02-DEC-2022,Environment & Transport (P),Matchtech Group (UK) Ltd,TRADE SUPPLIER,1201-Agency Costs,"£6,727.50"
02-DEC-2022,C&FS (P),REDACTED PERSONAL DATA,GENERAL,5621-Transfer Payments,£708.64
02-DEC-2022,C&FS (P),REDACTED PERSONAL DATA,GENERAL,5621-Transfer Payments,£829.64
02-DEC-2022,C&FS (P),REDACTED PERSONAL DATA,GENERAL,5323-External SEN Providers Independent Sch,"£3,684.62"
02-DEC-2022,C&FS (P),REDACTED PERSONAL DATA,GENERAL,5621-Transfer Payments,"£1,055.06"
02-DEC-2022,C&FS (P),REDACTED PERSONAL DATA,GENERAL,5323-External SEN Providers Independent Sch,"£1,122.46"
02-DEC-2022,C&FS (P),REDACTED PERSONAL DATA,GENERAL,5621-Transfer Payments,"£1,394.48"
02-DEC-2022,Environment & Transport (P),Midland Quarry Products Ltd,TRADE SUPPLIER,4109-Materials,£790.93
02-DEC-2022,Environment & Transport (P),Midland Quarry Products Ltd,TRADE SUPPLIER,4109-Materials,£724.71
02-DEC-2022,Corporate Resources (CR) (P),Modality Systems Ltd,TRADE SUPPLIER,4603-IT Software Licenses/Subscription,"£88,530.40"
02-DEC-2022,C&FS (P),MOSAIC&&DPDP297880,GENERAL,5621-Transfer Payments,£628.19
02-DEC-2022,C&FS (P),MOSAIC&&DPDP297880,GENERAL,5621-Transfer Payments,£954.31
02-DEC-2022,C&FS (P),MOSAIC&&DPDP297880,GENERAL,5621-Transfer Payments,£927.98
02-DEC-2022,C&FS (P),MOSAIC&&DPDP297880,GENERAL,5621-Transfer Payments,"£1,805.50"
02-DEC-2022,Environment & Transport (P),REDACTED PERSONAL DATA,TRADE INDIVIDUAL,3201-Pooled Transport Recharge Inhouse,"£1,690.50"
02-DEC-2022,Environment & Transport (P),REDACTED PERSONAL DATA,TRADE INDIVIDUAL,3303-Taxi Hire,"£2,639.36"
02-DEC-2022,Environment & Transport (P),REDACTED PERSONAL DATA,TRADE INDIVIDUAL,3201-Pooled Transport Recharge Inhouse,"£1,120.20"
02-DEC-2022,Corporate Resources (CR) (P),Murray Uniforms Ltd,TRADE SUPPLIER,4301-Protective Clothing & Uniforms,"£4,749.75"
02-DEC-2022,C&FS (P),Network Ventures Ltd T/A Pertemps Professional Recruitment Ltd,TRADE SUPPLIER,1201-Agency Costs,"£1,979.50"
02-DEC-2022,C&FS (P),Network Ventures Ltd T/A Pertemps Professional Recruitment Ltd,TRADE SUPPLIER,1201-Agency Costs,"£1,576.05"
02-DEC-2022,Public Health (P),NHS Business Services Authority,TRADE SUPPLIER,1108-Pension,"£5,049.28"
02-DEC-2022,C&FS (P),REDACTED PERSONAL DATA,GENERAL,5323-External SEN Providers Independent Sch,"£1,058.46"
02-DEC-2022,C&FS (P),NonStop Consulting Ltd,TRADE SUPPLIER,1201-Agency Costs,"£1,646.50"
02-DEC-2022,C&FS (P),REDACTED PERSONAL DATA,GENERAL,5624-Transfer Payments Sector 17 Other,£580.17
02-DEC-2022,C&FS (P),Oak Multi Academy Trust T/A Overdale Junior School,TRADE SUPPLIER,5212-OLEA Recoupment,"£3,945.00"
02-DEC-2022,Environment & Transport (P),REDACTED PERSONAL DATA,TRADE SUPPLIER,3113-Home to Sch Trans Contract Buses Sec,"£5,784.90"
02-DEC-2022,Environment & Transport (P),REDACTED PERSONAL DATA,NON TRADE,3303-Taxi Hire,"£2,415.80"
02-DEC-2022,Environment & Transport (P),REDACTED PERSONAL DATA,NON TRADE,3201-Pooled Transport Recharge Inhouse,£576.00
02-DEC-2022,Environment & Transport (P),REDACTED PERSONAL DATA,NON TRADE,3303-Taxi Hire,"£1,825.00"
02-DEC-2022,Environment & Transport (P),REDACTED PERSONAL DATA,NON TRADE,3303-Taxi Hire,"£1,923.60"
02-DEC-2022,Environment & Transport (P),REDACTED PERSONAL DATA,NON TRADE,3303-Taxi Hire,"£2,297.72"
02-DEC-2022,Corporate Resources (CR) (P),Premier Paper Group Ltd,TRADE SUPPLIER,4405-Stationery,£951.35
02-DEC-2022,Chief Executives (P),Psychology Clinic East Anglia,TRADE SUPPLIER,4905-Legal Expenses,"£1,784.89"
02-DEC-2022,Environment & Transport (P),REDACTED PERSONAL DATA,TRADE INDIVIDUAL,3113-Home to Sch Trans Contract Buses Sec,"£1,536.00"
02-DEC-2022,Environment & Transport (P),REDACTED PERSONAL DATA,TRADE INDIVIDUAL,3303-Taxi Hire,"£2,060.80"
02-DEC-2022,Environment & Transport (P),REDACTED PERSONAL DATA,TRADE INDIVIDUAL,3201-Pooled Transport Recharge Inhouse,"£1,008.00"
02-DEC-2022,Environment & Transport (P),REDACTED PERSONAL DATA,TRADE INDIVIDUAL,3113-Home to Sch Trans Contract Buses Sec,"£1,568.00"
02-DEC-2022,C&FS (P),REDACTED PERSONAL DATA,GENERAL,5621-Transfer Payments,£802.22
02-DEC-2022,C&FS (P),Red Sector Recruitment Ltd,FACTOR,1201-Agency Costs,"£1,710.50"
02-DEC-2022,C&FS (P),Red Sector Recruitment Ltd,FACTOR,1201-Agency Costs,"£1,683.50"
02-DEC-2022,C&FS (P),Red Sector Recruitment Ltd,FACTOR,1201-Agency Costs,"£1,683.50"
02-DEC-2022,Balance Sheet Cost Centres (P),Reed Specialist Recruitment Ltd,TRADE SUPPLIER,9728-Control Accounts (Current Liability),"£212,198.63"
02-DEC-2022,Environment & Transport (P),REDACTED PERSONAL DATA,TRADE SUPPLIER,3113-Home to Sch Trans Contract Buses Sec,"£4,400.00"
02-DEC-2022,Environment & Transport (P),REDACTED PERSONAL DATA,TRADE INDIVIDUAL,3303-Taxi Hire,£972.00
02-DEC-2022,Environment & Transport (P),REDACTED PERSONAL DATA,TRADE INDIVIDUAL,3303-Taxi Hire,"£1,829.00"
02-DEC-2022,Environment & Transport (P),REDACTED PERSONAL DATA,TRADE INDIVIDUAL,3303-Taxi Hire,£704.00
02-DEC-2022,Environment & Transport (P),REDACTED PERSONAL DATA,TRADE INDIVIDUAL,3303-Taxi Hire,"£1,056.00"
02-DEC-2022,Environment & Transport (P),REDACTED PERSONAL DATA,TRADE INDIVIDUAL,3303-Taxi Hire,"£1,280.00"
02-DEC-2022,Environment & Transport (P),REDACTED PERSONAL DATA,TRADE INDIVIDUAL,3303-Taxi Hire,"£1,643.00"
02-DEC-2022,Environment & Transport (P),REDACTED PERSONAL DATA,TRADE SUPPLIER,3203-Pooled Transport Recharge Contractors,"£2,580.08"
02-DEC-2022,Balance Sheet Cost Centres (P),Ropewalk Chambers,TRADE SUPPLIER,9321-Expenditure,"£1,070.00"
02-DEC-2022,Capital - In Year Spend (P),RPS Consulting Services Ltd,TRADE SUPPLIER,941G-L&B - Design Fees - External,£500.09
02-DEC-2022,C&FS (P),REDACTED PERSONAL DATA,GENERAL,5621-Transfer Payments,£520.95
02-DEC-2022,Public Health (P),Rutland County Council,NON TRADE,4908-Grants,"£1,400.00"
02-DEC-2022,Environment & Transport (P),Safe Cars,TRADE SUPPLIER,3201-Pooled Transport Recharge Inhouse,"£1,260.00"
02-DEC-2022,Environment & Transport (P),Safe Cars,TRADE SUPPLIER,3303-Taxi Hire,"£3,300.00"
02-DEC-2022,Environment & Transport (P),Safe Cars,TRADE SUPPLIER,3201-Pooled Transport Recharge Inhouse,£720.00
02-DEC-2022,Environment & Transport (P),Safe Cars,TRADE SUPPLIER,3112-Home to Sch Trans Contract Buses Prim,"£1,650.00"
02-DEC-2022,C&FS (P),REDACTED PERSONAL DATA,GENERAL,5621-Transfer Payments,£696.93
02-DEC-2022,C&FS (P),REDACTED PERSONAL DATA,GENERAL,5621-Transfer Payments,£708.61
02-DEC-2022,C&FS (P),REDACTED PERSONAL DATA,GENERAL,5323-External SEN Providers Independent Sch,"£2,768.68"
02-DEC-2022,C&FS (P),REDACTED PERSONAL DATA,GENERAL,5323-External SEN Providers Independent Sch,"£1,447.06"
02-DEC-2022,Environment & Transport (P),REDACTED PERSONAL DATA,TRADE INDIVIDUAL,3303-Taxi Hire,"£2,867.50"
02-DEC-2022,Adults & Communities (P),REDACTED PERSONAL DATA,NON TRADE,4508-Medical Fees & Treatment,"£3,062.60"
02-DEC-2022,Environment & Transport (P),Sapphire Energy Recovery Ltd,TRADE SUPPLIER,5411-Private Contractors - General,"£121,189.52"
02-DEC-2022,C&FS (P),REDACTED PERSONAL DATA,GENERAL,5621-Transfer Payments,"£1,777.57"
02-DEC-2022,C&FS (P),REDACTED PERSONAL DATA,GENERAL,5621-Transfer Payments,£954.29
02-DEC-2022,C&FS (P),REDACTED PERSONAL DATA,GENERAL,5323-External SEN Providers Independent Sch,"£2,818.85"
02-DEC-2022,Chief Executives (P),Sarah Seekins Consultancy Ltd,TRADE SUPPLIER,4507-Consultants & Specialists,£628.60
02-DEC-2022,Chief Executives (P),Sarah Seekins Consultancy Ltd,TRADE SUPPLIER,4507-Consultants & Specialists,"£1,336.50"
02-DEC-2022,Chief Executives (P),Sarah Seekins Consultancy Ltd,TRADE SUPPLIER,4507-Consultants & Specialists,"£1,336.50"
02-DEC-2022,C&FS (P),Sense Children & Adult Services,NON TRADE,5325-External SEN Providers Top Up Fee,"£2,233.33"
02-DEC-2022,Environment & Transport (P),Sign Shop (Loughborough) Ltd,TRADE SUPPLIER,2103-Fixtures & Fittings,"£1,085.00"
02-DEC-2022,Environment & Transport (P),REDACTED PERSONAL DATA,TRADE INDIVIDUAL,3303-Taxi Hire,"£1,521.00"
02-DEC-2022,Chief Executives (P),St Marys Chambers Ltd,TRADE SUPPLIER,4905-Legal Expenses,"£1,425.00"
02-DEC-2022,Chief Executives (P),St Marys Chambers Ltd,TRADE SUPPLIER,4905-Legal Expenses,£750.00
02-DEC-2022,Environment & Transport (P),Stage Taxis Ltd,TRADE SUPPLIER,3303-Taxi Hire,£539.88
02-DEC-2022,Environment & Transport (P),Stage Taxis Ltd,TRADE SUPPLIER,3201-Pooled Transport Recharge Inhouse,"£1,259.37"
02-DEC-2022,Capital - In Year Spend (P),Stantec UK Limited,TRADE SUPPLIER,941G-L&B - Design Fees - External,"£102,824.94"
02-DEC-2022,Corporate Resources (CR) (P),STC Energy Management Ltd,TRADE SUPPLIER,4507-Consultants & Specialists,"£1,371.42"
02-DEC-2022,Corporate Resources (CR) (P),STC Energy Management Ltd,TRADE SUPPLIER,4507-Consultants & Specialists,"£1,371.42"
02-DEC-2022,Corporate Resources (CR) (P),STC Energy Management Ltd,TRADE SUPPLIER,4507-Consultants & Specialists,"£1,371.42"
02-DEC-2022,Corporate Resources (CR) (P),STC Energy Management Ltd,TRADE SUPPLIER,4507-Consultants & Specialists,"£1,371.42"
02-DEC-2022,Corporate Resources (CR) (P),STC Energy Management Ltd,TRADE SUPPLIER,4507-Consultants & Specialists,"£1,371.42"
02-DEC-2022,Corporate Resources (CR) (P),STC Energy Management Ltd,TRADE SUPPLIER,4507-Consultants & Specialists,"£1,371.42"
02-DEC-2022,Corporate Resources (CR) (P),STC Energy Management Ltd,TRADE SUPPLIER,4507-Consultants & Specialists,"£1,371.42"
02-DEC-2022,Corporate Resources (CR) (P),STC Energy Management Ltd,TRADE SUPPLIER,4507-Consultants & Specialists,"£1,371.42"
02-DEC-2022,Environment & Transport (P),REDACTED PERSONAL DATA,GENERAL,3201-Pooled Transport Recharge Inhouse,"£1,900.00"
02-DEC-2022,C&FS (P),Sunrise Wellbeing,TRADE SUPPLIER,5445-Adoption Support,"£3,030.00"
02-DEC-2022,C&FS (P),REDACTED PERSONAL DATA,GENERAL,5621-Transfer Payments,"£1,508.58"
02-DEC-2022,C&FS (P),REDACTED PERSONAL DATA,GENERAL,5613-Child Arrangement Order,£611.26
02-DEC-2022,Environment & Transport (P),T&G Services Leicestershire Ltd,TRADE SUPPLIER,5411-Private Contractors - General,"£2,179.14"
02-DEC-2022,Environment & Transport (P),T&G Services Leicestershire Ltd,TRADE SUPPLIER,5411-Private Contractors - General,£921.25
02-DEC-2022,Environment & Transport (P),T&G Services Leicestershire Ltd,TRADE SUPPLIER,5411-Private Contractors - General,£746.13
02-DEC-2022,Environment & Transport (P),REDACTED PERSONAL DATA,NON TRADE,3303-Taxi Hire,"£1,596.80"
02-DEC-2022,Environment & Transport (P),REDACTED PERSONAL DATA,NON TRADE,3303-Taxi Hire,"£1,073.70"
02-DEC-2022,Environment & Transport (P),REDACTED PERSONAL DATA,NON TRADE,3303-Taxi Hire,£721.44
02-DEC-2022,Environment & Transport (P),REDACTED PERSONAL DATA,NON TRADE,3303-Taxi Hire,£728.64
02-DEC-2022,Environment & Transport (P),REDACTED PERSONAL DATA,NON TRADE,3303-Taxi Hire,"£1,269.60"
02-DEC-2022,Environment & Transport (P),REDACTED PERSONAL DATA,NON TRADE,3201-Pooled Transport Recharge Inhouse,£805.50
02-DEC-2022,Environment & Transport (P),REDACTED PERSONAL DATA,NON TRADE,3303-Taxi Hire,"£1,652.32"
02-DEC-2022,Environment & Transport (P),REDACTED PERSONAL DATA,NON TRADE,3303-Taxi Hire,"£1,374.56"
02-DEC-2022,Environment & Transport (P),REDACTED PERSONAL DATA,NON TRADE,3303-Taxi Hire,"£2,379.20"
02-DEC-2022,Environment & Transport (P),REDACTED PERSONAL DATA,NON TRADE,3303-Taxi Hire,"£1,284.32"
02-DEC-2022,Environment & Transport (P),REDACTED PERSONAL DATA,NON TRADE,3303-Taxi Hire,"£1,572.00"
02-DEC-2022,Corporate Resources (CR) (P),Tanwood Construction Ltd,SUBCONTRACTOR,2106-Reactive Maint Buildings,"£3,844.00"
02-DEC-2022,C&FS (P),Teaching Personnel Ltd,TRADE SUPPLIER,1201-Agency Costs,£660.24
02-DEC-2022,C&FS (P),REDACTED PERSONAL DATA,GENERAL,5621-Transfer Payments,£521.45
02-DEC-2022,C&FS (P),REDACTED PERSONAL DATA,GENERAL,5621-Transfer Payments,£514.70
02-DEC-2022,Capital - In Year Spend (P),Thomas Cassie & Sons Leicester Ltd,TRADE SUPPLIER,941D-L&B - Building Costs,"£4,200.00"
02-DEC-2022,Corporate Resources (CR) (P),Thomas Telford Ltd,TRADE SUPPLIER,4603-IT Software Licenses/Subscription,"£12,705.00"
02-DEC-2022,Balance Sheet Cost Centres (P),Thompsons Solicitors,TRADE SUPPLIER,9321-Expenditure,"£5,327.00"
02-DEC-2022,Corporate Resources (CR) (P),Total Energies Gas&Power Ltd,TRADE SUPPLIER,2204-Energy Gas,"£215,423.01"
02-DEC-2022,C&FS (P),Transforming Lives Company,TRADE SUPPLIER,5411-Private Contractors - General,"£4,364.18"
02-DEC-2022,C&FS (P),Transforming Lives Company,TRADE SUPPLIER,5411-Private Contractors - General,"£4,364.18"
02-DEC-2022,Corporate Resources (CR) (P),Transoft Solutions (UK) Ltd,TRADE SUPPLIER,1703-Training Expenses,"£1,320.00"
02-DEC-2022,Environment & Transport (P),Triple A Taxis,TRADE SUPPLIER,3112-Home to Sch Trans Contract Buses Prim,"£1,147.20"
02-DEC-2022,Environment & Transport (P),Triple A Taxis,TRADE SUPPLIER,3303-Taxi Hire,£864.00
02-DEC-2022,Environment & Transport (P),Triple A Taxis,TRADE SUPPLIER,3112-Home to Sch Trans Contract Buses Prim,£633.60
02-DEC-2022,Environment & Transport (P),TT Pumps Ltd,TRADE SUPPLIER,2501-Grounds Maintenance,"£2,709.20"
02-DEC-2022,Environment & Transport (P),Up To Speed Training & Assessment Ltd,TRADE SUPPLIER,1703-Training Expenses,£540.00
02-DEC-2022,C&FS (P),VE Psychological Solutions Ltd T/A The Purple House Clinic,TRADE SUPPLIER,5445-Adoption Support,"£2,450.00"
02-DEC-2022,Corporate Resources (CR) (P),Veg Factor,TRADE SUPPLIER,4504-Provisions Purchases,"£1,172.97"
02-DEC-2022,Corporate Resources (CR) (P),Veg Factor,TRADE SUPPLIER,4504-Provisions Purchases,£783.08
02-DEC-2022,Corporate Resources (CR) (P),Veg Factor,TRADE SUPPLIER,4504-Provisions Purchases,£691.93
02-DEC-2022,C&FS (P),REDACTED PERSONAL DATA,GENERAL,5323-External SEN Providers Independent Sch,"£3,192.11"
02-DEC-2022,Environment & Transport (P),REDACTED PERSONAL DATA,TRADE SUPPLIER,3201-Pooled Transport Recharge Inhouse,£918.00
02-DEC-2022,Environment & Transport (P),REDACTED PERSONAL DATA,TRADE SUPPLIER,3303-Taxi Hire,"£1,543.80"
02-DEC-2022,C&FS (P),VisionAid Technologies Ltd,TRADE SUPPLIER,4601-IT Equipment Hardware,"£1,990.00"
02-DEC-2022,Chief Executives (P),Vivid Resourcing,TRADE SUPPLIER,1201-Agency Costs,"£3,600.00"
02-DEC-2022,Chief Executives (P),Voluntary Action Leicester,TRADE SUPPLIER,5316-Voluntary Sector Contract Support,"£26,158.98"
02-DEC-2022,Chief Executives (P),Voluntary Action Leicester,TRADE SUPPLIER,5316-Voluntary Sector Contract Support,"£26,158.97"
02-DEC-2022,Chief Executives (P),Voluntary Action Leicester,TRADE SUPPLIER,5316-Voluntary Sector Contract Support,"£49,453.83"
02-DEC-2022,Environment & Transport (P),Volvo Group UK Limited,TRADE SUPPLIER,3102-Vehicle & Plant Repairs & Maintenance,"£1,611.44"
02-DEC-2022,C&FS (P),Warwickshire Living Ltd,TRADE SUPPLIER,5451-LCT/LAC (Not Fostered),"£5,757.01"
02-DEC-2022,Environment & Transport (P),Westbury Industrial Supplies Ltd,TRADE SUPPLIER,4301-Protective Clothing & Uniforms,"£2,191.30"
02-DEC-2022,C&FS (P),REDACTED PERSONAL DATA,GENERAL,5621-Transfer Payments,£661.82
02-DEC-2022,Environment & Transport (P),WJ South Ltd,SUBCONTRACTOR,5411-Private Contractors - General,"£11,158.88"
02-DEC-2022,Adults & Communities (P),Woodhall Spa Cottage Museum,TRADE SUPPLIER,5314-Voluntary Associations Other,"£1,000.00"
02-DEC-2022,Capital - In Year Spend (P),XMA Ltd,TRADE SUPPLIER,943C-VPE - Equipment (Furniture/ IT) Exp,"£2,490.00"
02-DEC-2022,Environment & Transport (P),REDACTED PERSONAL DATA,TRADE INDIVIDUAL,3201-Pooled Transport Recharge Inhouse,"£2,838.00"
02-DEC-2022,Environment & Transport (P),REDACTED PERSONAL DATA,TRADE INDIVIDUAL,3303-Taxi Hire,"£1,881.00"
02-DEC-2022,Environment & Transport (P),REDACTED PERSONAL DATA,NON TRADE,3303-Taxi Hire,"£2,760.00"
02-DEC-2022,Corporate Resources (CR) (P),Zurich Insurance PLC,TRADE SUPPLIER,2601-Premises Insurance,"£3,560.08"
05-DEC-2022,Adults & Communities (P),3D Recruit Ltd,TRADE SUPPLIER,5443-Agency & Contracted Services,"£13,020.00"
05-DEC-2022,Environment & Transport (P),AC Environmental Consulting Ltd,TRADE SUPPLIER,4532-Other Services,"£1,500.00"
05-DEC-2022,Balance Sheet Cost Centres (P),Ashmount School,NON TRADE,9722-Reserved Creditors - Non Public Sector,"£2,078.90"
05-DEC-2022,Corporate Resources (CR) (P),BFS Group Ltd T/A Bidfood,TRADE SUPPLIER,4504-Provisions Purchases,£572.99
05-DEC-2022,Balance Sheet Cost Centres (P),Birchwood School (Melton Area Special School),NON TRADE,9722-Reserved Creditors - Non Public Sector,"£2,289.45"
05-DEC-2022,C&FS (P),Blue Mountain Homes Ltd,TRADE SUPPLIER,5411-Private Contractors - General,"£42,380.29"
05-DEC-2022,C&FS (P),Blue Mountain Homes Ltd,TRADE SUPPLIER,5411-Private Contractors - General,"£35,714.13"
05-DEC-2022,Public Health (P),Bosworth Academy (Life Multi Academy Trust),TRADE SUPPLIER,4908-Grants,"£2,150.00"
05-DEC-2022,Corporate Resources (CR) (P),Buckinghamshire New University,TRADE SUPPLIER,1703-Training Expenses,"£3,500.00"
05-DEC-2022,Adults & Communities (P),REDACTED PERSONAL DATA,GENERAL,5661-ASC Clients Cash (Direct) Payments,"£1,003.36"
05-DEC-2022,Environment & Transport (P),Coalville Cabs Ltd,TRADE SUPPLIER,3113-Home to Sch Trans Contract Buses Sec,"£1,033.60"
05-DEC-2022,Environment & Transport (P),Colas Ltd,SUBCONTRACTOR,5411-Private Contractors - General,"£1,279.95"
05-DEC-2022,Corporate Resources (CR) (P),Complete Background Screening Ltd,TRADE SUPPLIER,1711-DBS Checks,"£2,328.00"
05-DEC-2022,Corporate Resources (CR) (P),Conway Contractors Derby,SUBCONTRACTOR,2101-R&M Buildings,£720.00
05-DEC-2022,C&FS (P),Creative Outdoor Group Ltd,TRADE SUPPLIER,5411-Private Contractors - General,"£24,000.00"
05-DEC-2022,Environment & Transport (P),Crown Hill Taxis & Care Services Ltd,TRADE SUPPLIER,3303-Taxi Hire,"£1,199.00"
05-DEC-2022,Environment & Transport (P),Crown Leicester Ltd,TRADE SUPPLIER,3201-Pooled Transport Recharge Inhouse,"£2,011.50"
05-DEC-2022,Balance Sheet Cost Centres (P),Crystal Purchasing Ltd T/A ICL UK (Sales) Ltd,TRADE SUPPLIER,9631-Inventories - General,"£7,574.04"
05-DEC-2022,Environment & Transport (P),Driving Talent Ltd,TRADE SUPPLIER,5443-Agency & Contracted Services,£783.94
05-DEC-2022,Schools Revenue Cost Centres (P),East Midlands Education Trust T/A Castle Donington College,TRADE SUPPLIER,4901-Other Expenditure,"£16,667.00"
05-DEC-2022,Balance Sheet Cost Centres (P),Euraplan Ltd,TRADE SUPPLIER,9648-Control Accounts (Current Asset),"£6,579.00"
05-DEC-2022,C&FS (P),Gartree High School Academy,GENERAL,5325-External SEN Providers Top Up Fee,"£6,352.02"
05-DEC-2022,Schools Revenue Cost Centres (P),Gartree High School Academy,OTHER LOCAL AUTHORITIES,4901-Other Expenditure,"£16,667.00"
05-DEC-2022,Environment & Transport (P),REDACTED PERSONAL DATA,TRADE INDIVIDUAL,3303-Taxi Hire,"£1,980.00"
05-DEC-2022,Environment & Transport (P),George Walker Tree Care Ltd,SUBCONTRACTOR,5411-Private Contractors - General,"£22,438.34"
05-DEC-2022,Environment & Transport (P),Go Plant Ltd T/A Go Plant Sweepers,TRADE SUPPLIER,4901-Other Expenditure,£507.00
05-DEC-2022,Environment & Transport (P),Go Plant Ltd T/A Go Plant Sweepers,TRADE SUPPLIER,4901-Other Expenditure,£582.00
05-DEC-2022,Environment & Transport (P),Go Plant Ltd T/A Go Plant Sweepers,TRADE SUPPLIER,4901-Other Expenditure,£534.00
05-DEC-2022,Environment & Transport (P),Go Plant Ltd T/A Go Plant Sweepers,TRADE SUPPLIER,4901-Other Expenditure,£534.00
05-DEC-2022,Public Health (P),Green Tree Therapy Ltd,TRADE SUPPLIER,5443-Agency & Contracted Services,"£6,250.00"
05-DEC-2022,Environment & Transport (P),GVN Cabs Ltd,TRADE SUPPLIER,3112-Home to Sch Trans Contract Buses Prim,£587.37
05-DEC-2022,Schools Revenue Cost Centres (P),Hall Orchard CE Primary School Academy,TRADE SUPPLIER,4901-Other Expenditure,"£16,667.00"
05-DEC-2022,C&FS (P),Honeydew Healthcare Ltd,TRADE SUPPLIER,5429-Community/Domiciliary,"£4,978.00"
05-DEC-2022,Corporate Resources (CR) (P),Hopwells Ltd,TRADE SUPPLIER,4504-Provisions Purchases,"£42,369.28"
05-DEC-2022,Corporate Resources (CR) (P),Innes England,TRADE SUPPLIER,2321-Rent & Room Hire,"£18,788.75"
05-DEC-2022,Adults & Communities (P),Ivan Law Leaflet Distribution,TRADE SUPPLIER,4607-Postal Services ,£650.00
05-DEC-2022,Balance Sheet Cost Centres (P),LCC Woodhouse Eaves Maplewell Hall School A/C,OTHER LOCAL AUTHORITIES,9722-Reserved Creditors - Non Public Sector,"£3,092.99"
05-DEC-2022,Environment & Transport (P),Midland Quarry Products Ltd,TRADE SUPPLIER,4109-Materials,£900.77
05-DEC-2022,Environment & Transport (P),Midland Quarry Products Ltd,TRADE SUPPLIER,4109-Materials,£573.55
05-DEC-2022,Environment & Transport (P),MJ Dexter Plant Hire,SUBCONTRACTOR,5411-Private Contractors - General,"£1,720.00"
05-DEC-2022,Schools Revenue Cost Centres (P),Newbridge High School Academy Trust,OTHER LOCAL AUTHORITIES,4901-Other Expenditure,"£16,667.00"
05-DEC-2022,Environment & Transport (P),Planters (Leicester) Ltd,SUBCONTRACTOR,3301-Vehicle & Plant Hire,"£1,780.44"
05-DEC-2022,Environment & Transport (P),Planters (Leicester) Ltd,SUBCONTRACTOR,3301-Vehicle & Plant Hire,"£1,487.40"
05-DEC-2022,Environment & Transport (P),Planters (Leicester) Ltd,SUBCONTRACTOR,3301-Vehicle & Plant Hire,"£1,780.44"
05-DEC-2022,Environment & Transport (P),Planters (Leicester) Ltd,SUBCONTRACTOR,3301-Vehicle & Plant Hire,"£1,780.44"
05-DEC-2022,Chief Executives (P),Plowden Facilities Ltd,TRADE SUPPLIER,4905-Legal Expenses,£650.00
05-DEC-2022,C&FS (P),Progressive Care Ltd,TRADE SUPPLIER,5411-Private Contractors - General,"£16,999.28"
05-DEC-2022,C&FS (P),Progressive Care Ltd,TRADE SUPPLIER,5411-Private Contractors - General,"£15,832.14"
05-DEC-2022,Corporate Resources (CR) (P),Proudcastle Ltd,TRADE SUPPLIER,2105-Reactive Maintenance M&E,"£1,300.00"
05-DEC-2022,Corporate Resources (CR) (P),Reed Specialist Recruitment Ltd,TRADE SUPPLIER,5443-Agency & Contracted Services,"£7,763.70"
05-DEC-2022,Schools Revenue Cost Centres (P),Rise Multi Academy Trust,NON TRADE,4901-Other Expenditure,"£16,667.00"
05-DEC-2022,Schools Revenue Cost Centres (P),Rothley CE Primary School Academy,NON TRADE,4901-Other Expenditure,"£16,667.00"
05-DEC-2022,Adults & Communities (P),REDACTED PERSONAL DATA,NON TRADE,4508-Medical Fees & Treatment,"£3,626.60"
05-DEC-2022,C&FS (P),Soaring High Ltd,TRADE SUPPLIER,5443-Agency & Contracted Services,£696.67
05-DEC-2022,C&FS (P),Soaring High Ltd,TRADE SUPPLIER,5443-Agency & Contracted Services,£736.25
05-DEC-2022,Balance Sheet Cost Centres (P),Tarmac Trading Ltd,TRADE SUPPLIER,9631-Inventories - General,£532.06
05-DEC-2022,C&FS (P),Total Care Matters Ltd,TRADE SUPPLIER,5411-Private Contractors - General,"£10,678.20"
05-DEC-2022,Corporate Resources (CR) (P),Total Energies Gas&Power Ltd,TRADE SUPPLIER,2203-Energy Electricity,"£14,883.51"
05-DEC-2022,Environment & Transport (P),Waterman Aspen Ltd,TRADE SUPPLIER,1201-Agency Costs,"£4,020.46"
05-DEC-2022,Capital - In Year Spend (P),Welland Park Community College Academy,OTHER LOCAL AUTHORITIES,941D-L&B - Building Costs,"£302,005.84"
05-DEC-2022,Schools Revenue Cost Centres (P),Welland Park Community College Academy,OTHER LOCAL AUTHORITIES,4901-Other Expenditure,"£16,667.00"
05-DEC-2022,Environment & Transport (P),Western Power Distribution,TRADE SUPPLIER,5411-Private Contractors - General,£577.86
05-DEC-2022,Capital - In Year Spend (P),Willmott Dixon Construction Ltd,TRADE SUPPLIER,941D-L&B - Building Costs,"£7,888.47"
05-DEC-2022,Environment & Transport (P),Wrights of Twycross Ltd,TRADE SUPPLIER,5411-Private Contractors - General,£822.47
06-DEC-2022,Chief Executives (P),36 Group Ltd,TRADE SUPPLIER,4905-Legal Expenses,£891.70
06-DEC-2022,Environment & Transport (P),A K TAXI SERVICES LTD,TRADE SUPPLIER,3201-Pooled Transport Recharge Inhouse,"£1,688.70"
06-DEC-2022,Environment & Transport (P),A1 Leicester Taxi Ltd,TRADE SUPPLIER,3303-Taxi Hire,"£1,817.92"
06-DEC-2022,Environment & Transport (P),A1 Leicester Taxi Ltd,TRADE SUPPLIER,3201-Pooled Transport Recharge Inhouse,£521.40
06-DEC-2022,Adults & Communities (P),Advanced Business Solutions,TRADE SUPPLIER,4604-IT Equipment Repairs & Maintenance,"£2,895.19"
06-DEC-2022,Adults & Communities (P),Advanced Health & Care Ltd,TRADE SUPPLIER,4603-IT Software Licenses/Subscription,"£1,003.60"
06-DEC-2022,Adults & Communities (P),Advanced Health & Care Ltd,TRADE SUPPLIER,4603-IT Software Licenses/Subscription,"£5,242.18"
06-DEC-2022,Corporate Resources (CR) (P),All Purpose Cleaning Supplies Ltd,TRADE SUPPLIER,2401-Cleaning Materials,£543.51
06-DEC-2022,Environment & Transport (P),REDACTED PERSONAL DATA,TRADE SUPPLIER,3303-Taxi Hire,"£2,724.48"
06-DEC-2022,Corporate Resources (CR) (P),Altiga Ltd,SUBCONTRACTOR,2105-Reactive Maintenance M&E,£698.07
06-DEC-2022,Corporate Resources (CR) (P),Antalis Ltd,TRADE SUPPLIER,4405-Stationery,£722.00
06-DEC-2022,Corporate Resources (CR) (P),Blue Arrow Ltd,TRADE SUPPLIER,4901-Other Expenditure,£991.80
06-DEC-2022,Environment & Transport (P),REDACTED PERSONAL DATA,TRADE SUPPLIER,3301-Vehicle & Plant Hire,"£2,140.00"
06-DEC-2022,Corporate Resources (CR) (P),Commercial Fire & Training,FACTOR,2102-R&M Buildings Service Contracts,£627.99
06-DEC-2022,Balance Sheet Cost Centres (P),Crystal Purchasing Ltd T/A ICL UK (Sales) Ltd,TRADE SUPPLIER,9631-Inventories - General,"£15,199.92"
06-DEC-2022,Environment & Transport (P),REDACTED PERSONAL DATA,TRADE SUPPLIER,3303-Taxi Hire,"£2,320.00"
06-DEC-2022,Environment & Transport (P),REDACTED PERSONAL DATA,TRADE SUPPLIER,3303-Taxi Hire,"£2,633.60"
06-DEC-2022,Environment & Transport (P),REDACTED PERSONAL DATA,TRADE SUPPLIER,3112-Home to Sch Trans Contract Buses Prim,"£1,577.60"
06-DEC-2022,Environment & Transport (P),REDACTED PERSONAL DATA,TRADE SUPPLIER,3303-Taxi Hire,"£1,100.00"
06-DEC-2022,Environment & Transport (P),Direct Cabs,TRADE SUPPLIER,3303-Taxi Hire,"£1,911.00"
06-DEC-2022,Environment & Transport (P),Direct Cabs,TRADE SUPPLIER,3201-Pooled Transport Recharge Inhouse,"£1,729.00"
06-DEC-2022,Environment & Transport (P),Direct Cabs,TRADE SUPPLIER,3201-Pooled Transport Recharge Inhouse,"£1,592.00"
06-DEC-2022,Adults & Communities (P),Direct Healthcare Group,TRADE SUPPLIER,4102-General Equipment - Purchase & Repairs,"£3,190.00"
06-DEC-2022,Environment & Transport (P),Direct Taxis,TRADE SUPPLIER,3303-Taxi Hire,"£1,149.92"
06-DEC-2022,Environment & Transport (P),Direct Taxis,TRADE SUPPLIER,3303-Taxi Hire,"£1,630.50"
06-DEC-2022,Environment & Transport (P),Forest Driveways,SUBCONTRACTOR,5411-Private Contractors - General,"£5,571.00"
06-DEC-2022,Environment & Transport (P),Forest Driveways,SUBCONTRACTOR,5411-Private Contractors - General,"£7,810.00"
06-DEC-2022,Adults & Communities (P),Inclusion Housing CIC,TRADE SUPPLIER,5506-Supported Living,"£1,901.30"
06-DEC-2022,Adults & Communities (P),Inclusion Housing CIC,TRADE SUPPLIER,5506-Supported Living,"£1,521.04"
06-DEC-2022,Adults & Communities (P),Inclusion Housing CIC,TRADE SUPPLIER,5506-Supported Living,"£1,901.30"
06-DEC-2022,Adults & Communities (P),Inclusion Housing CIC,TRADE SUPPLIER,5506-Supported Living,"£1,521.04"
06-DEC-2022,Adults & Communities (P),Inclusion Housing CIC,TRADE SUPPLIER,5506-Supported Living,"£1,521.04"
06-DEC-2022,Environment & Transport (P),REDACTED PERSONAL DATA,TRADE INDIVIDUAL,3201-Pooled Transport Recharge Inhouse,"£1,579.50"
06-DEC-2022,Environment & Transport (P),REDACTED PERSONAL DATA,TRADE INDIVIDUAL,3201-Pooled Transport Recharge Inhouse,£920.00
06-DEC-2022,Environment & Transport (P),REDACTED PERSONAL DATA,TRADE INDIVIDUAL,3303-Taxi Hire,"£1,188.00"
06-DEC-2022,Environment & Transport (P),REDACTED PERSONAL DATA,TRADE INDIVIDUAL,3303-Taxi Hire,"£1,575.00"
06-DEC-2022,Corporate Resources (CR) (P),John Dwyer Bakery Ltd,TRADE SUPPLIER,4504-Provisions Purchases,£735.63
06-DEC-2022,Corporate Resources (CR) (P),Jonstar Sustainable Technologies Ltd,TRADE SUPPLIER,2105-Reactive Maintenance M&E,"£1,187.50"
06-DEC-2022,Environment & Transport (P),Kiely Bros Ltd,TRADE SUPPLIER,5411-Private Contractors - General,"£15,068.81"
06-DEC-2022,Corporate Resources (CR) (P),LUX Technical Ltd,TRADE SUPPLIER,4901-Other Expenditure,£670.00
06-DEC-2022,Environment & Transport (P),Master Cabs Leicester Ltd,TRADE SUPPLIER,3113-Home to Sch Trans Contract Buses Sec,£602.00
06-DEC-2022,Environment & Transport (P),Master Cabs Leicester Ltd,TRADE SUPPLIER,3303-Taxi Hire,"£2,052.00"
06-DEC-2022,Environment & Transport (P),Master Cabs Leicester Ltd,TRADE SUPPLIER,3303-Taxi Hire,"£1,590.00"
06-DEC-2022,Environment & Transport (P),MJ Dexter Plant Hire,SUBCONTRACTOR,5411-Private Contractors - General,"£1,680.00"
06-DEC-2022,Adults & Communities (P),Mosaic Shaping Disability Services     1,NON TRADE,5411-Private Contractors - General,"£8,277.74"
06-DEC-2022,Adults & Communities (P),Mosaic Shaping Disability Services     1,NON TRADE,5411-Private Contractors - General,"£9,908.27"
06-DEC-2022,Environment & Transport (P),NMI Taxi Ltd,TRADE SUPPLIER,3303-Taxi Hire,"£2,448.00"
06-DEC-2022,Environment & Transport (P),NMI Taxi Ltd,TRADE SUPPLIER,3303-Taxi Hire,"£1,612.50"
06-DEC-2022,Environment & Transport (P),NMI Taxi Ltd,TRADE SUPPLIER,3303-Taxi Hire,"£4,672.00"
06-DEC-2022,Environment & Transport (P),NMI Taxi Ltd,TRADE SUPPLIER,3303-Taxi Hire,"£3,362.40"
06-DEC-2022,Environment & Transport (P),NMI Taxi Ltd,TRADE SUPPLIER,3303-Taxi Hire,"£2,093.00"
06-DEC-2022,Environment & Transport (P),NMI Taxi Ltd,TRADE SUPPLIER,3201-Pooled Transport Recharge Inhouse,"£1,448.00"
06-DEC-2022,Environment & Transport (P),NMI Taxi Ltd,TRADE SUPPLIER,3303-Taxi Hire,"£1,270.00"
06-DEC-2022,Environment & Transport (P),NMI Taxi Ltd,TRADE SUPPLIER,3303-Taxi Hire,"£2,083.50"
06-DEC-2022,Environment & Transport (P),NMI Taxi Ltd,TRADE SUPPLIER,3303-Taxi Hire,£811.85
06-DEC-2022,Environment & Transport (P),NMI Taxi Ltd,TRADE SUPPLIER,3303-Taxi Hire,"£1,740.00"
06-DEC-2022,Capital - In Year Spend (P),Pakawaste Ltd,SUBCONTRACTOR,941D-L&B - Building Costs,"£6,460.20"
06-DEC-2022,Environment & Transport (P),Planters (Leicester) Ltd,SUBCONTRACTOR,3301-Vehicle & Plant Hire,£610.50
06-DEC-2022,Environment & Transport (P),Planters (Leicester) Ltd,SUBCONTRACTOR,3301-Vehicle & Plant Hire,"£1,780.44"
06-DEC-2022,Environment & Transport (P),Planters (Leicester) Ltd,SUBCONTRACTOR,3301-Vehicle & Plant Hire,"£1,780.44"
06-DEC-2022,Environment & Transport (P),Planters (Leicester) Ltd,SUBCONTRACTOR,3301-Vehicle & Plant Hire,"£1,487.40"
06-DEC-2022,Environment & Transport (P),Planters (Leicester) Ltd,SUBCONTRACTOR,5411-Private Contractors - General,£673.20
06-DEC-2022,Environment & Transport (P),Premier Taxis Leicester Ltd,TRADE SUPPLIER,3201-Pooled Transport Recharge Inhouse,£826.00
06-DEC-2022,Environment & Transport (P),Premier Taxis Leicester Ltd,TRADE SUPPLIER,3201-Pooled Transport Recharge Inhouse,£774.00
06-DEC-2022,Environment & Transport (P),Premier Taxis Leicester Ltd,TRADE SUPPLIER,3303-Taxi Hire,"£1,261.98"
06-DEC-2022,Environment & Transport (P),Premier Taxis Leicester Ltd,TRADE SUPPLIER,3303-Taxi Hire,"£2,109.00"
06-DEC-2022,Environment & Transport (P),Premier Taxis Leicester Ltd,TRADE SUPPLIER,3303-Taxi Hire,"£1,829.65"
06-DEC-2022,Environment & Transport (P),Premier Taxis Leicester Ltd,TRADE SUPPLIER,3303-Taxi Hire,"£2,078.40"
06-DEC-2022,Environment & Transport (P),Premier Taxis Leicester Ltd,TRADE SUPPLIER,3303-Taxi Hire,"£1,484.00"
06-DEC-2022,Environment & Transport (P),Premier Taxis Leicester Ltd,TRADE SUPPLIER,3201-Pooled Transport Recharge Inhouse,"£1,076.40"
06-DEC-2022,Environment & Transport (P),Premier Taxis Leicester Ltd,TRADE SUPPLIER,3303-Taxi Hire,"£1,865.60"
06-DEC-2022,Environment & Transport (P),Premier Taxis Leicester Ltd,TRADE SUPPLIER,3203-Pooled Transport Recharge Contractors,"£2,481.60"
06-DEC-2022,Environment & Transport (P),Premier Taxis Leicester Ltd,TRADE SUPPLIER,3201-Pooled Transport Recharge Inhouse,"£2,128.00"
06-DEC-2022,Environment & Transport (P),Premier Taxis Leicester Ltd,TRADE SUPPLIER,3303-Taxi Hire,£988.00
06-DEC-2022,Environment & Transport (P),Premier Taxis Leicester Ltd,TRADE SUPPLIER,3303-Taxi Hire,"£1,178.75"
06-DEC-2022,Adults & Communities (P),REDACTED PERSONAL DATA,TRADE SUPPLIER,4508-Medical Fees & Treatment,£747.20
06-DEC-2022,Chief Executives (P),Reach Publishing Services Ltd,TRADE SUPPLIER,"4503-Advertising, Publicity & Marketing",£999.39
06-DEC-2022,Environment & Transport (P),Reach Publishing Services Ltd,TRADE SUPPLIER,"4503-Advertising, Publicity & Marketing",£555.66
06-DEC-2022,Environment & Transport (P),Reach Publishing Services Ltd,TRADE SUPPLIER,"4503-Advertising, Publicity & Marketing",£555.66
06-DEC-2022,Environment & Transport (P),Reach Publishing Services Ltd,TRADE SUPPLIER,"4503-Advertising, Publicity & Marketing",£555.66
06-DEC-2022,Chief Executives (P),Richards Al Chalabi Ltd,TRADE SUPPLIER,4529-Post Mortem Exams,"£3,764.50"
06-DEC-2022,Section 106 Contributions (P),Rise Multi Academy Trust,NON TRADE,9861-LT Capital Grants Received in Advance,"£42,831.65"
06-DEC-2022,Environment & Transport (P),RJK Taxi Service,TRADE SUPPLIER,3201-Pooled Transport Recharge Inhouse,"£2,657.25"
06-DEC-2022,Environment & Transport (P),REDACTED PERSONAL DATA,NON TRADE,4507-Consultants & Specialists,"£1,742.00"
06-DEC-2022,Environment & Transport (P),Safe Cars,TRADE SUPPLIER,3303-Taxi Hire,"£4,480.00"
06-DEC-2022,Environment & Transport (P),Southside Cars,TRADE SUPPLIER,3303-Taxi Hire,"£2,071.00"
06-DEC-2022,Environment & Transport (P),Speedline Mini Buses & Taxis,TRADE SUPPLIER,3303-Taxi Hire,"£2,010.00"
06-DEC-2022,Adults & Communities (P),REDACTED PERSONAL DATA,TRADE INDIVIDUAL,4508-Medical Fees & Treatment,"£2,968.95"
06-DEC-2022,Environment & Transport (P),Stage Taxis Ltd,TRADE SUPPLIER,3201-Pooled Transport Recharge Inhouse,£539.82
06-DEC-2022,Environment & Transport (P),Suez Recycling & Recovery UK Ltd,TRADE SUPPLIER,5419-Private Contractors Green Waste,£726.62
06-DEC-2022,Environment & Transport (P),Syston & District Volunteer Centre Vehicle A/C,NON TRADE,3201-Pooled Transport Recharge Inhouse,£664.88
06-DEC-2022,Environment & Transport (P),Syston & District Volunteer Centre Vehicle A/C,NON TRADE,3201-Pooled Transport Recharge Inhouse,£588.00
06-DEC-2022,Environment & Transport (P),Syston & District Volunteer Centre Vehicle A/C,NON TRADE,3201-Pooled Transport Recharge Inhouse,£833.00
06-DEC-2022,Environment & Transport (P),Syston & District Volunteer Centre Vehicle A/C,NON TRADE,3201-Pooled Transport Recharge Inhouse,"£1,005.75"
06-DEC-2022,Environment & Transport (P),REDACTED PERSONAL DATA,NON TRADE,3303-Taxi Hire,£877.80
06-DEC-2022,Environment & Transport (P),REDACTED PERSONAL DATA,NON TRADE,3303-Taxi Hire,"£1,896.30"
06-DEC-2022,Corporate Resources (CR) (P),Telefonica O2 Uk Ltd,TRADE SUPPLIER,4606-IT Telecommunications Line Rental,"£11,236.67"
06-DEC-2022,C&FS (P),Witlens Ltd,TRADE SUPPLIER,5429-Community/Domiciliary,"£3,948.00"
06-DEC-2022,Environment & Transport (P),Yakub Taxis Ltd,TRADE SUPPLIER,3303-Taxi Hire,"£4,379.20"
06-DEC-2022,Environment & Transport (P),Yakub Taxis Ltd,TRADE SUPPLIER,3303-Taxi Hire,"£2,272.00"
06-DEC-2022,Environment & Transport (P),Yakub Taxis Ltd,TRADE SUPPLIER,3303-Taxi Hire,"£2,052.75"
06-DEC-2022,Environment & Transport (P),Yakub Taxis Ltd,TRADE SUPPLIER,3303-Taxi Hire,"£1,524.40"
06-DEC-2022,Environment & Transport (P),Yakub Taxis Ltd,TRADE SUPPLIER,3303-Taxi Hire,"£1,184.00"
06-DEC-2022,Balance Sheet Cost Centres (P),Yakub Taxis Ltd,TRADE SUPPLIER,9722-Reserved Creditors - Non Public Sector,"£1,529.70"
06-DEC-2022,Environment & Transport (P),Yakub Taxis Ltd,TRADE SUPPLIER,3303-Taxi Hire,"£2,624.00"
06-DEC-2022,Environment & Transport (P),Yakub Taxis Ltd,TRADE SUPPLIER,3201-Pooled Transport Recharge Inhouse,"£1,503.00"
06-DEC-2022,Environment & Transport (P),Yakub Taxis Ltd,TRADE SUPPLIER,3303-Taxi Hire,"£2,146.00"
06-DEC-2022,Environment & Transport (P),REDACTED PERSONAL DATA,TRADE INDIVIDUAL,3303-Taxi Hire,"£1,009.80"
07-DEC-2022,Chief Executives (P),36 Group Ltd,TRADE SUPPLIER,4905-Legal Expenses,"£1,500.00"
07-DEC-2022,Chief Executives (P),36 Group Ltd,TRADE SUPPLIER,4905-Legal Expenses,£800.00
07-DEC-2022,Chief Executives (P),36 Group Ltd,TRADE SUPPLIER,4905-Legal Expenses,£800.00
07-DEC-2022,Chief Executives (P),36 Group Ltd,TRADE SUPPLIER,4905-Legal Expenses,£975.00
07-DEC-2022,Environment & Transport (P),A1 63 Mercia Taxi,TRADE SUPPLIER,3303-Taxi Hire,"£1,087.50"
07-DEC-2022,Environment & Transport (P),A1 63 Mercia Taxi,TRADE SUPPLIER,3303-Taxi Hire,"£1,350.00"
07-DEC-2022,C&FS (P),REDACTED PERSONAL DATA,GENERAL,5627-Transfer Payments Education Costs,"£1,000.00"
07-DEC-2022,C&FS (P),ABM Education Ltd,TRADE SUPPLIER,4507-Consultants & Specialists,"£2,700.00"
07-DEC-2022,C&FS (P),ABM Education Ltd,TRADE SUPPLIER,4507-Consultants & Specialists,"£1,800.00"
07-DEC-2022,Environment & Transport (P),Aggregate Industries UK Ltd,SUBCONTRACTOR,4109-Materials,£536.13
07-DEC-2022,Environment & Transport (P),REDACTED PERSONAL DATA,NON TRADE,3303-Taxi Hire,"£1,107.00"
07-DEC-2022,C&FS (P),REDACTED PERSONAL DATA,GENERAL,5627-Transfer Payments Education Costs,"£1,333.00"
07-DEC-2022,Environment & Transport (P),B B Fencing Ltd,TRADE SUPPLIER,5411-Private Contractors - General,"£23,025.06"
07-DEC-2022,Environment & Transport (P),Bagnalls Coaches,TRADE SUPPLIER,3113-Home to Sch Trans Contract Buses Sec,"£5,200.00"
07-DEC-2022,Chief Executives (P),Barrow Upon Soar Parish Council,GENERAL,4908-Grants,£726.00
07-DEC-2022,Environment & Transport (P),REDACTED PERSONAL DATA,TRADE INDIVIDUAL,3112-Home to Sch Trans Contract Buses Prim,£775.00
07-DEC-2022,Chief Executives (P),Barwell Parish Council,GENERAL,4908-Grants,"£3,889.00"
07-DEC-2022,Corporate Resources (CR) (P),Beyond Trust Corporation,TRADE SUPPLIER,4602-IT Services,"£3,356.10"
07-DEC-2022,Environment & Transport (P),REDACTED PERSONAL DATA,TRADE SUPPLIER,3113-Home to Sch Trans Contract Buses Sec,"£1,568.00"
07-DEC-2022,Environment & Transport (P),REDACTED PERSONAL DATA,TRADE SUPPLIER,3303-Taxi Hire,£950.00
07-DEC-2022,Chief Executives (P),Blaby & Whetstone Youth Club Ltd,GENERAL,4908-Grants,"£4,500.00"
07-DEC-2022,Chief Executives (P),Bridge (East Midlands),GENERAL,4908-Grants,"£6,000.00"
07-DEC-2022,Corporate Resources (CR) (P),Buckingham Swimming Pools Ltd,SUBCONTRACTOR,2102-R&M Buildings Service Contracts,£700.00
07-DEC-2022,Corporate Resources (CR) (P),Buckingham Swimming Pools Ltd,SUBCONTRACTOR,2102-R&M Buildings Service Contracts,£700.00
07-DEC-2022,Environment & Transport (P),Bywater Services Ltd,TRADE SUPPLIER,5411-Private Contractors - General,"£1,838.40"
07-DEC-2022,C&FS (P),Cambian Childcare Ltd,TRADE SUPPLIER,5411-Private Contractors - General,"£19,285.80"
07-DEC-2022,C&FS (P),Cambian Childcare Ltd,TRADE SUPPLIER,5411-Private Contractors - General,"£20,477.10"
07-DEC-2022,C&FS (P),Casey Armstrong,GENERAL,5627-Transfer Payments Education Costs,"£1,250.00"
07-DEC-2022,Environment & Transport (P),Certas Energy UK Ltd,TRADE SUPPLIER,3104-Petrol / Oil / Types / Spares,"£1,155.00"
07-DEC-2022,Corporate Resources (CR) (P),Chubb Fire & Security Ltd,TRADE SUPPLIER,2104-Other Premises expenses,"£1,428.96"
07-DEC-2022,Chief Executives (P),Citizens Advice Charnwood,NON TRADE,5316-Voluntary Sector Contract Support,"£13,659.00"
07-DEC-2022,Chief Executives (P),Citizens Advice Charnwood,NON TRADE,5316-Voluntary Sector Contract Support,"£12,055.00"
07-DEC-2022,Chief Executives (P),Citizens Advice Charnwood,GENERAL,4908-Grants,"£7,000.00"
07-DEC-2022,Environment & Transport (P),Crown Cars (Leic) Ltd,TRADE SUPPLIER,3303-Taxi Hire,"£1,128.60"
07-DEC-2022,Environment & Transport (P),Crown Cars (Leic) Ltd,TRADE SUPPLIER,3303-Taxi Hire,"£1,155.00"
07-DEC-2022,Environment & Transport (P),Crown Cars (Leic) Ltd,TRADE SUPPLIER,3303-Taxi Hire,"£2,481.60"
07-DEC-2022,Environment & Transport (P),Crown Leicester Ltd,TRADE SUPPLIER,3201-Pooled Transport Recharge Inhouse,"£2,028.60"
07-DEC-2022,Environment & Transport (P),Denham Procurement & Sourcing Solutions Ltd,TRADE SUPPLIER,4109-Materials,£855.00
07-DEC-2022,Adults & Communities (P),Derby Museums Enterprises Ltd,TRADE SUPPLIER,5314-Voluntary Associations Other,"£2,700.00"
07-DEC-2022,Adults & Communities (P),Direct Healthcare Group,TRADE SUPPLIER,4102-General Equipment - Purchase & Repairs,"£1,693.80"
07-DEC-2022,Adults & Communities (P),Direct Healthcare Group,TRADE SUPPLIER,4102-General Equipment - Purchase & Repairs,"£3,180.00"
07-DEC-2022,C&FS (P),REDACTED PERSONAL DATA,GENERAL,5627-Transfer Payments Education Costs,"£1,000.00"
07-DEC-2022,C&FS (P),Esland North Ltd,TRADE SUPPLIER,5411-Private Contractors - General,"£19,071.43"
07-DEC-2022,C&FS (P),REDACTED PERSONAL DATA,GENERAL,5627-Transfer Payments Education Costs,"£1,333.00"
07-DEC-2022,Adults & Communities (P),Fastroi Ltd,TRADE SUPPLIER,4603-IT Software Licenses/Subscription,"£4,375.00"
07-DEC-2022,Corporate Resources (CR) (P),G&R Refrigeration Ltd,TRADE SUPPLIER,4102-General Equipment - Purchase & Repairs,£776.61
07-DEC-2022,C&FS (P),GoTo Healthcare Ltd,TRADE SUPPLIER,5451-LCT/LAC (Not Fostered),"£1,600.00"
07-DEC-2022,C&FS (P),GoTo Healthcare Ltd,TRADE SUPPLIER,5451-LCT/LAC (Not Fostered),"£1,780.00"
07-DEC-2022,C&FS (P),GoTo Healthcare Ltd,TRADE SUPPLIER,5451-LCT/LAC (Not Fostered),"£1,200.00"
07-DEC-2022,C&FS (P),GoTo Healthcare Ltd,TRADE SUPPLIER,5451-LCT/LAC (Not Fostered),"£1,200.00"
07-DEC-2022,C&FS (P),GoTo Healthcare Ltd,TRADE SUPPLIER,5451-LCT/LAC (Not Fostered),"£1,200.00"
07-DEC-2022,C&FS (P),GoTo Healthcare Ltd,TRADE SUPPLIER,5451-LCT/LAC (Not Fostered),"£1,600.00"
07-DEC-2022,C&FS (P),GoTo Healthcare Ltd,TRADE SUPPLIER,5451-LCT/LAC (Not Fostered),"£1,960.00"
07-DEC-2022,Chief Executives (P),Helping Hands Community Trust,GENERAL,4908-Grants,"£8,154.00"
07-DEC-2022,C&FS (P),Horizon Care & Education Group Ltd,TRADE SUPPLIER,5411-Private Contractors - General,"£20,298.30"
07-DEC-2022,C&FS (P),Horizon Care & Education Group Ltd,TRADE SUPPLIER,5411-Private Contractors - General,"£7,496.52"
07-DEC-2022,C&FS (P),Horizon Care & Education Group Ltd,TRADE SUPPLIER,5411-Private Contractors - General,"£2,600.00"
07-DEC-2022,C&FS (P),Horizon Care & Education Group Ltd,TRADE SUPPLIER,5411-Private Contractors - General,"£1,200.00"
07-DEC-2022,C&FS (P),Horizon Care & Education Group Ltd,TRADE SUPPLIER,5411-Private Contractors - General,"£13,846.34"
07-DEC-2022,C&FS (P),Horizon Care & Education Group Ltd,TRADE SUPPLIER,5411-Private Contractors - General,"£1,765.61"
07-DEC-2022,C&FS (P),Horizon Care & Education Group Ltd,TRADE SUPPLIER,5411-Private Contractors - General,"£19,322.10"
07-DEC-2022,C&FS (P),Independent Thinking Ltd,TRADE SUPPLIER,4507-Consultants & Specialists,"£1,167.00"
07-DEC-2022,Balance Sheet Cost Centres (P),Instarmac Group Plc,TRADE SUPPLIER,9631-Inventories - General,"£1,142.40"
07-DEC-2022,Environment & Transport (P),REDACTED PERSONAL DATA,TRADE SUPPLIER,3102-Vehicle & Plant Repairs & Maintenance,"£1,467.16"
07-DEC-2022,Adults & Communities (P),REDACTED PERSONAL DATA,TRADE INDIVIDUAL,4901-Other Expenditure,£508.00
07-DEC-2022,Environment & Transport (P),REDACTED PERSONAL DATA,TRADE INDIVIDUAL,3201-Pooled Transport Recharge Inhouse,"£1,253.50"
07-DEC-2022,Environment & Transport (P),REDACTED PERSONAL DATA,TRADE INDIVIDUAL,3303-Taxi Hire,"£2,116.00"
07-DEC-2022,Environment & Transport (P),REDACTED PERSONAL DATA,TRADE INDIVIDUAL,3303-Taxi Hire,"£2,320.00"
07-DEC-2022,Environment & Transport (P),REDACTED PERSONAL DATA,TRADE INDIVIDUAL,3303-Taxi Hire,"£1,203.36"
07-DEC-2022,Environment & Transport (P),REDACTED PERSONAL DATA,TRADE INDIVIDUAL,3303-Taxi Hire,"£1,848.00"
07-DEC-2022,Environment & Transport (P),REDACTED PERSONAL DATA,TRADE INDIVIDUAL,3303-Taxi Hire,"£1,635.48"
07-DEC-2022,Environment & Transport (P),REDACTED PERSONAL DATA,TRADE INDIVIDUAL,3303-Taxi Hire,"£1,247.00"
07-DEC-2022,Environment & Transport (P),REDACTED PERSONAL DATA,TRADE INDIVIDUAL,3303-Taxi Hire,£899.00
07-DEC-2022,Chief Executives (P),KCH Barristers Ltd,TRADE SUPPLIER,4905-Legal Expenses,£550.00
07-DEC-2022,Environment & Transport (P),Keyline Civils Specialist Ltd,TRADE SUPPLIER,4109-Materials,"£1,257.84"
07-DEC-2022,Corporate Resources (CR) (P),REDACTED PERSONAL DATA,TRADE SUPPLIER,2401-Cleaning Materials,£521.80
07-DEC-2022,Chief Executives (P),Landmark Chambers,TRADE SUPPLIER,4507-Consultants & Specialists,"£3,000.00"
07-DEC-2022,C&FS (P),LCC Beaumont Lodge Primary School,NON TRADE,5212-OLEA Recoupment,"£2,764.00"
07-DEC-2022,Capital - In Year Spend (P),LCC Loughborough Booth Wood CP School A/C,NON TRADE,941D-L&B - Building Costs,"£21,070.00"
07-DEC-2022,C&FS (P),Leaders in Care,FACTOR,1201-Agency Costs,"£1,628.00"
07-DEC-2022,Chief Executives (P),Live Cancer Free Ltd,GENERAL,4908-Grants,"£2,500.00"
07-DEC-2022,Environment & Transport (P),REDACTED PERSONAL DATA,TRADE SUPPLIER,3303-Taxi Hire,"£2,121.18"
07-DEC-2022,Environment & Transport (P),REDACTED PERSONAL DATA,TRADE SUPPLIER,3303-Taxi Hire,"£2,240.00"
07-DEC-2022,Environment & Transport (P),REDACTED PERSONAL DATA,TRADE SUPPLIER,3303-Taxi Hire,"£1,821.60"
07-DEC-2022,C&FS (P),Maple Hayes School,NON TRADE,5323-External SEN Providers Independent Sch,"£5,695.20"
07-DEC-2022,Chief Executives (P),Marlene Reid Centre Community Action     1,GENERAL,4908-Grants,"£5,000.00"
07-DEC-2022,Chief Executives (P),Measham & District Community Library,GENERAL,4908-Grants,"£1,000.00"
07-DEC-2022,Chief Executives (P),Melton & District Money Advice Centre,GENERAL,4908-Grants,"£7,000.00"
07-DEC-2022,Environment & Transport (P),REDACTED PERSONAL DATA,GENERAL,3112-Home to Sch Trans Contract Buses Prim,"£1,920.00"
07-DEC-2022,Environment & Transport (P),REDACTED PERSONAL DATA,GENERAL,3113-Home to Sch Trans Contract Buses Sec,"£2,208.00"
07-DEC-2022,Capital - In Year Spend (P),REDACTED PERSONAL DATA,NON TRADE,941R-L&B - Reffcus,"£2,500.00"
07-DEC-2022,Capital - In Year Spend (P),Morgan Sindall Construction & Infrastructure Ltd,SUBCONTRACTOR,944A-Infr - Infrastructure Exp,"£42,303.45"
07-DEC-2022,C&FS (P),Moving Up Care Ltd,TRADE INDIVIDUAL,5451-LCT/LAC (Not Fostered),"£9,800.00"
07-DEC-2022,Environment & Transport (P),Murphys Taxis Ltd,FACTOR,3303-Taxi Hire,"£2,534.40"
07-DEC-2022,Environment & Transport (P),Murphys Taxis Ltd,FACTOR,3303-Taxi Hire,"£1,104.00"
07-DEC-2022,Environment & Transport (P),Murphys Taxis Ltd,FACTOR,3303-Taxi Hire,"£2,816.00"
07-DEC-2022,Environment & Transport (P),Murphys Taxis Ltd,FACTOR,3303-Taxi Hire,"£2,076.80"
07-DEC-2022,Environment & Transport (P),Murphys Taxis Ltd,FACTOR,3303-Taxi Hire,"£1,947.00"
07-DEC-2022,Environment & Transport (P),Murphys Taxis Ltd,FACTOR,3113-Home to Sch Trans Contract Buses Sec,"£1,632.00"
07-DEC-2022,Environment & Transport (P),Murphys Taxis Ltd,FACTOR,3303-Taxi Hire,"£2,384.96"
07-DEC-2022,Environment & Transport (P),Murphys Taxis Ltd,FACTOR,3303-Taxi Hire,"£1,620.00"
07-DEC-2022,Environment & Transport (P),Murphys Taxis Ltd,FACTOR,3113-Home to Sch Trans Contract Buses Sec,"£1,710.00"
07-DEC-2022,Environment & Transport (P),Murphys Taxis Ltd,FACTOR,3201-Pooled Transport Recharge Inhouse,"£1,260.00"
07-DEC-2022,C&FS (P),National Care Team Ltd,TRADE SUPPLIER,5411-Private Contractors - General,"£30,800.00"
07-DEC-2022,Environment & Transport (P),NMI Taxi Ltd,TRADE SUPPLIER,3303-Taxi Hire,"£1,863.10"
07-DEC-2022,Environment & Transport (P),NMI Taxi Ltd,TRADE SUPPLIER,3303-Taxi Hire,"£2,208.00"
07-DEC-2022,Environment & Transport (P),Norton Taxi Services Ltd,TRADE SUPPLIER,3303-Taxi Hire,"£3,590.60"
07-DEC-2022,Adults & Communities (P),Overdrive Global Ltd,TRADE SUPPLIER,4111-Books & Audio Visual,£836.80
07-DEC-2022,C&FS (P),REDACTED PERSONAL DATA,GENERAL,5627-Transfer Payments Education Costs,"£1,333.00"
07-DEC-2022,Chief Executives (P),PCC Of Shepshed (St Botophs Church),GENERAL,4908-Grants,"£1,500.00"
07-DEC-2022,Chief Executives (P),Pete Lewin Therapy Newfoundlands Ltd,TRADE INDIVIDUAL,4908-Grants,"£3,000.00"
07-DEC-2022,Adults & Communities (P),REDACTED PERSONAL DATA,TRADE SUPPLIER,4901-Other Expenditure,£738.64
07-DEC-2022,Adults & Communities (P),Premier Mobility (UK) Ltd,SUBCONTRACTOR,4102-General Equipment - Purchase & Repairs,"£1,276.00"
07-DEC-2022,C&FS (P),Purple Heart Healthcare Agency,TRADE SUPPLIER,5429-Community/Domiciliary,"£6,293.00"
07-DEC-2022,Environment & Transport (P),Questech Recruitment Ltd,TRADE SUPPLIER,5443-Agency & Contracted Services,"£5,462.84"
07-DEC-2022,Environment & Transport (P),Questech Recruitment Ltd,TRADE SUPPLIER,5443-Agency & Contracted Services,"£4,789.76"
07-DEC-2022,Environment & Transport (P),Questech Recruitment Ltd,TRADE SUPPLIER,5443-Agency & Contracted Services,"£5,885.39"
07-DEC-2022,Environment & Transport (P),Questech Recruitment Ltd,TRADE SUPPLIER,5443-Agency & Contracted Services,"£5,512.96"
07-DEC-2022,Environment & Transport (P),Questech Recruitment Ltd,TRADE SUPPLIER,5443-Agency & Contracted Services,"£5,017.06"
07-DEC-2022,Environment & Transport (P),Questech Recruitment Ltd,TRADE SUPPLIER,5443-Agency & Contracted Services,"£4,075.05"
07-DEC-2022,Environment & Transport (P),Questech Recruitment Ltd,TRADE SUPPLIER,5443-Agency & Contracted Services,"£5,046.52"
07-DEC-2022,Environment & Transport (P),Questech Recruitment Ltd,TRADE SUPPLIER,5443-Agency & Contracted Services,"£5,572.50"
07-DEC-2022,Environment & Transport (P),Questech Recruitment Ltd,TRADE SUPPLIER,5443-Agency & Contracted Services,"£4,339.19"
07-DEC-2022,Environment & Transport (P),Questech Recruitment Ltd,TRADE SUPPLIER,5443-Agency & Contracted Services,"£4,695.08"
07-DEC-2022,Balance Sheet Cost Centres (P),Ropewalk Chambers,TRADE SUPPLIER,9321-Expenditure,"£1,705.00"
07-DEC-2022,Chief Executives (P),Rural Community Council (Leicestershire & Rutland),TRADE SUPPLIER,5314-Voluntary Associations Other,"£5,000.00"
07-DEC-2022,Public Health (P),Samaritans,TRADE SUPPLIER,5443-Agency & Contracted Services,"£2,500.00"
07-DEC-2022,Chief Executives (P),Sapcote Community Library,TRADE SUPPLIER,4908-Grants,£750.00
07-DEC-2022,Environment & Transport (P),Site Welding Services,TRADE SUPPLIER,2103-Fixtures & Fittings,"£4,742.00"
07-DEC-2022,Environment & Transport (P),Site Welding Services,TRADE SUPPLIER,2101-R&M Buildings,"£2,112.00"
07-DEC-2022,Corporate Resources (CR) (P),Snackline Direct Ltd,TRADE SUPPLIER,4504-Provisions Purchases,£603.64
07-DEC-2022,Chief Executives (P),Soar Valley Outreach,GENERAL,4908-Grants,"£7,000.00"
07-DEC-2022,Adults & Communities (P),Social Care & Education Ltd,TRADE SUPPLIER,1101-Salaries,"£2,023.00"
07-DEC-2022,Adults & Communities (P),Social Care & Education Ltd,TRADE SUPPLIER,1201-Agency Costs,"£2,329.00"
07-DEC-2022,Adults & Communities (P),Social Care & Education Ltd,TRADE SUPPLIER,1201-Agency Costs,£935.00
07-DEC-2022,C&FS (P),Spencer Clarke Group Ltd,TRADE SUPPLIER,1201-Agency Costs,"£1,610.00"
07-DEC-2022,Adults & Communities (P),REDACTED PERSONAL DATA,TRADE INDIVIDUAL,4508-Medical Fees & Treatment,"£1,989.50"
07-DEC-2022,Chief Executives (P),St Catherines Church Burbage,GENERAL,4908-Grants,"£5,000.00"
07-DEC-2022,Chief Executives (P),St Guthlac Church,GENERAL,4908-Grants,"£2,000.00"
07-DEC-2022,Chief Executives (P),St Ives Chambers,TRADE SUPPLIER,4905-Legal Expenses,£850.00
07-DEC-2022,Chief Executives (P),St Marys Chambers Ltd,TRADE SUPPLIER,4905-Legal Expenses,"£1,250.00"
07-DEC-2022,Chief Executives (P),St Philips Barristers,TRADE SUPPLIER,4905-Legal Expenses,£750.00
07-DEC-2022,Environment & Transport (P),Stagecoach Services Ltd,TRADE SUPPLIER,3124-Other Transport Costs,"£21,920.14"
07-DEC-2022,Corporate Resources (CR) (P),Stormseal Roofing ( Nationwide ) Ltd,SUBCONTRACTOR,2101-R&M Buildings,£880.00
07-DEC-2022,Corporate Resources (CR) (P),Stormseal Roofing ( Nationwide ) Ltd,SUBCONTRACTOR,2101-R&M Buildings,"£8,978.00"
07-DEC-2022,Environment & Transport (P),Streetwise,NON TRADE,4507-Consultants & Specialists,"£7,870.00"
07-DEC-2022,C&FS (P),Total Care Matters Ltd,TRADE SUPPLIER,5411-Private Contractors - General,"£16,533.40"
07-DEC-2022,Corporate Resources (CR) (P),Trustmarque Solutions Ltd,TRADE SUPPLIER,4102-General Equipment - Purchase & Repairs,"£8,700.00"
07-DEC-2022,Environment & Transport (P),Virtual College Ltd,TRADE SUPPLIER,4507-Consultants & Specialists,£840.00
07-DEC-2022,Chief Executives (P),We Care UK,GENERAL,4908-Grants,"£7,000.00"
07-DEC-2022,Corporate Resources (CR) (P),WV Howe Ltd,TRADE SUPPLIER,4102-General Equipment - Purchase & Repairs,£598.50
07-DEC-2022,Chief Executives (P),REDACTED PERSONAL DATA,TRADE SUPPLIER,4529-Post Mortem Exams,£719.00
08-DEC-2022,Environment & Transport (P),A Zoom Taxis,TRADE SUPPLIER,3303-Taxi Hire,"£3,680.00"
08-DEC-2022,Environment & Transport (P),A Zoom Taxis,TRADE SUPPLIER,3201-Pooled Transport Recharge Inhouse,"£2,590.00"
08-DEC-2022,Environment & Transport (P),A Zoom Taxis,TRADE SUPPLIER,3303-Taxi Hire,"£1,635.20"
08-DEC-2022,Environment & Transport (P),A Zoom Taxis,TRADE SUPPLIER,3303-Taxi Hire,"£2,557.44"
08-DEC-2022,Environment & Transport (P),A Zoom Taxis,TRADE SUPPLIER,3201-Pooled Transport Recharge Inhouse,"£1,137.50"
08-DEC-2022,Environment & Transport (P),A Zoom Taxis,TRADE SUPPLIER,3303-Taxi Hire,"£1,615.00"
08-DEC-2022,Environment & Transport (P),A Zoom Taxis,TRADE SUPPLIER,3112-Home to Sch Trans Contract Buses Prim,"£2,330.88"
08-DEC-2022,Environment & Transport (P),A Zoom Taxis,TRADE SUPPLIER,3303-Taxi Hire,£707.20
08-DEC-2022,Environment & Transport (P),A Zoom Taxis,TRADE SUPPLIER,3303-Taxi Hire,"£3,124.48"
08-DEC-2022,Environment & Transport (P),A Zoom Taxis,TRADE SUPPLIER,3303-Taxi Hire,"£3,195.20"
08-DEC-2022,Environment & Transport (P),A Zoom Taxis,TRADE SUPPLIER,3303-Taxi Hire,"£2,240.00"
08-DEC-2022,Environment & Transport (P),A Zoom Taxis,TRADE SUPPLIER,3303-Taxi Hire,"£1,696.00"
08-DEC-2022,Environment & Transport (P),A Zoom Taxis,TRADE SUPPLIER,3303-Taxi Hire,"£2,369.92"
08-DEC-2022,Environment & Transport (P),A Zoom Taxis,TRADE SUPPLIER,3303-Taxi Hire,"£1,656.00"
08-DEC-2022,Environment & Transport (P),A Zoom Taxis,TRADE SUPPLIER,3303-Taxi Hire,"£2,604.80"
08-DEC-2022,Environment & Transport (P),A Zoom Taxis,TRADE SUPPLIER,3303-Taxi Hire,"£1,402.50"
08-DEC-2022,Environment & Transport (P),A Zoom Taxis,TRADE SUPPLIER,3303-Taxi Hire,"£1,193.00"
08-DEC-2022,Environment & Transport (P),A Zoom Taxis,TRADE SUPPLIER,3303-Taxi Hire,"£2,800.00"
08-DEC-2022,Environment & Transport (P),A Zoom Taxis,TRADE SUPPLIER,3303-Taxi Hire,"£2,604.80"
08-DEC-2022,Environment & Transport (P),A Zoom Taxis,TRADE SUPPLIER,3303-Taxi Hire,"£2,652.36"
08-DEC-2022,Environment & Transport (P),A Zoom Taxis,TRADE SUPPLIER,3303-Taxi Hire,"£2,800.00"
08-DEC-2022,Environment & Transport (P),A Zoom Taxis,TRADE SUPPLIER,3303-Taxi Hire,"£1,696.32"
08-DEC-2022,Environment & Transport (P),A Zoom Taxis,TRADE SUPPLIER,3303-Taxi Hire,£827.40
08-DEC-2022,Environment & Transport (P),A Zoom Taxis,TRADE SUPPLIER,3303-Taxi Hire,"£1,644.80"
08-DEC-2022,Environment & Transport (P),A Zoom Taxis,TRADE SUPPLIER,3303-Taxi Hire,"£2,984.00"
08-DEC-2022,Environment & Transport (P),A Zoom Taxis,TRADE SUPPLIER,3303-Taxi Hire,"£1,432.64"
08-DEC-2022,Environment & Transport (P),A Zoom Taxis,TRADE SUPPLIER,3303-Taxi Hire,"£1,754.40"
08-DEC-2022,Environment & Transport (P),A Zoom Taxis,TRADE SUPPLIER,3303-Taxi Hire,"£2,212.60"
08-DEC-2022,Environment & Transport (P),A Zoom Taxis,TRADE SUPPLIER,3303-Taxi Hire,"£1,800.00"
08-DEC-2022,Environment & Transport (P),A Zoom Taxis,TRADE SUPPLIER,3303-Taxi Hire,"£1,788.00"
08-DEC-2022,Environment & Transport (P),A Zoom Taxis,TRADE SUPPLIER,3201-Pooled Transport Recharge Inhouse,£553.41
08-DEC-2022,Environment & Transport (P),A Zoom Taxis,TRADE SUPPLIER,3201-Pooled Transport Recharge Inhouse,"£2,632.50"
08-DEC-2022,Environment & Transport (P),A Zoom Taxis,TRADE SUPPLIER,3303-Taxi Hire,"£2,299.20"
08-DEC-2022,Environment & Transport (P),A Zoom Taxis,TRADE SUPPLIER,3303-Taxi Hire,"£1,995.00"
08-DEC-2022,Environment & Transport (P),A Zoom Taxis,TRADE SUPPLIER,3303-Taxi Hire,"£1,491.20"
08-DEC-2022,Environment & Transport (P),A Zoom Taxis,TRADE SUPPLIER,3303-Taxi Hire,"£1,840.00"
08-DEC-2022,Environment & Transport (P),A Zoom Taxis,TRADE SUPPLIER,3201-Pooled Transport Recharge Inhouse,"£2,725.80"
08-DEC-2022,Environment & Transport (P),Aggregate Industries UK Ltd,SUBCONTRACTOR,4109-Materials,£926.90
08-DEC-2022,Environment & Transport (P),Aggregate Industries UK Ltd,SUBCONTRACTOR,4109-Materials,"£1,516.47"
08-DEC-2022,Environment & Transport (P),Aggregate Industries UK Ltd,SUBCONTRACTOR,4109-Materials,£851.00
08-DEC-2022,Environment & Transport (P),Aggregate Industries UK Ltd,SUBCONTRACTOR,4109-Materials,"£1,297.59"
08-DEC-2022,Environment & Transport (P),Aggregate Industries UK Ltd,SUBCONTRACTOR,4109-Materials,"£1,046.36"
08-DEC-2022,Environment & Transport (P),Aggregate Industries UK Ltd,SUBCONTRACTOR,4109-Materials,£528.36
08-DEC-2022,Environment & Transport (P),Aggregate Industries UK Ltd,SUBCONTRACTOR,4109-Materials,£979.02
08-DEC-2022,Environment & Transport (P),Aggregate Industries UK Ltd,SUBCONTRACTOR,4109-Materials,"£1,041.90"
08-DEC-2022,Environment & Transport (P),Aggregate Industries UK Ltd,SUBCONTRACTOR,4109-Materials,"£1,168.09"
08-DEC-2022,C&FS (P),Aspire Lifeskills Ltd,TRADE SUPPLIER,5323-External SEN Providers Independent Sch,"£14,000.00"
08-DEC-2022,Corporate Resources (CR) (P),B I Catering Equipment Services,TRADE SUPPLIER,4102-General Equipment - Purchase & Repairs,£756.67
08-DEC-2022,Environment & Transport (P),Beaver Bus,TRADE SUPPLIER,3114-Home to Sch Trans Contract Buses Special,"£83,373.00"
08-DEC-2022,Adults & Communities (P),Blaby District Council,OTHER LOCAL AUTHORITIES,5211-Other Local Authorities,"£22,110.00"
08-DEC-2022,Balance Sheet Cost Centres (P),Certas Energy UK Ltd,TRADE SUPPLIER,"9634-Inventories - LHD Fuel White, Diesel","£4,410.60"
08-DEC-2022,Balance Sheet Cost Centres (P),Certas Energy UK Ltd,TRADE SUPPLIER,"9634-Inventories - LHD Fuel White, Diesel","£32,338.52"
08-DEC-2022,Balance Sheet Cost Centres (P),Certas Energy UK Ltd,TRADE SUPPLIER,"9634-Inventories - LHD Fuel White, Diesel","£24,346.51"
08-DEC-2022,C&FS (P),REDACTED PERSONAL DATA,GENERAL,4901-Other Expenditure,£500.00
08-DEC-2022,Environment & Transport (P),Circle Taxis Ltd,TRADE SUPPLIER,3303-Taxi Hire,"£1,870.00"
08-DEC-2022,Environment & Transport (P),Circle Taxis Ltd,TRADE SUPPLIER,3303-Taxi Hire,"£1,582.40"
08-DEC-2022,Environment & Transport (P),Circle Taxis Ltd,TRADE SUPPLIER,3303-Taxi Hire,"£1,375.50"
08-DEC-2022,Environment & Transport (P),Circle Taxis Ltd,TRADE SUPPLIER,3303-Taxi Hire,"£1,276.00"
08-DEC-2022,Balance Sheet Cost Centres (P),Circle Taxis Ltd,TRADE SUPPLIER,9722-Reserved Creditors - Non Public Sector,"£1,352.40"
08-DEC-2022,Environment & Transport (P),Circle Taxis Ltd,TRADE SUPPLIER,3303-Taxi Hire,£741.75
08-DEC-2022,Environment & Transport (P),Circle Taxis Ltd,TRADE SUPPLIER,3303-Taxi Hire,"£1,705.00"
08-DEC-2022,Environment & Transport (P),Circle Taxis Ltd,TRADE SUPPLIER,3303-Taxi Hire,"£2,240.00"
08-DEC-2022,Environment & Transport (P),Circle Taxis Ltd,TRADE SUPPLIER,3303-Taxi Hire,"£1,724.80"
08-DEC-2022,Environment & Transport (P),Circle Taxis Ltd,TRADE SUPPLIER,3303-Taxi Hire,"£1,870.00"
08-DEC-2022,Environment & Transport (P),Clockwork Cars Coalville Ltd,TRADE SUPPLIER,3113-Home to Sch Trans Contract Buses Sec,£600.00
08-DEC-2022,C&FS (P),Clovelly House School,TRADE SUPPLIER,5323-External SEN Providers Independent Sch,"£1,362.00"
08-DEC-2022,Environment & Transport (P),Colas Ltd,SUBCONTRACTOR,5411-Private Contractors - General,"£2,013.50"
08-DEC-2022,Environment & Transport (P),Colas Ltd,SUBCONTRACTOR,3301-Vehicle & Plant Hire,"£1,690.88"
08-DEC-2022,Environment & Transport (P),Colas Ltd,SUBCONTRACTOR,5411-Private Contractors - General,"£9,314.20"
08-DEC-2022,Environment & Transport (P),Colas Ltd,SUBCONTRACTOR,5411-Private Contractors - General,"£7,464.91"
08-DEC-2022,Environment & Transport (P),Coltman Brothers Ltd     1,TRADE SUPPLIER,4109-Materials,£915.80
08-DEC-2022,Corporate Resources (CR) (P),Consam International Ltd,TRADE SUPPLIER,4601-IT Equipment Hardware,"£1,353.50"
08-DEC-2022,C&FS (P),Crick Primary School,TRADE SUPPLIER,5212-OLEA Recoupment,"£1,740.00"
08-DEC-2022,C&FS (P),Crick Primary School,TRADE SUPPLIER,5212-OLEA Recoupment,"£1,740.00"
08-DEC-2022,Balance Sheet Cost Centres (P),Crystal Purchasing Ltd T/A ICL UK (Sales) Ltd,TRADE SUPPLIER,9631-Inventories - General,"£9,074.16"
08-DEC-2022,Public Health (P),Cyber Media Solutions Ltd,TRADE SUPPLIER,4109-Materials,£690.00
08-DEC-2022,Capital - In Year Spend (P),DAKO Construction Ltd,TRADE SUPPLIER,941D-L&B - Building Costs,"£57,471.27"
08-DEC-2022,Balance Sheet Cost Centres (P),Denham Procurement & Sourcing Solutions Ltd,TRADE SUPPLIER,9631-Inventories - General,£992.00
08-DEC-2022,Environment & Transport (P),Denham Procurement & Sourcing Solutions Ltd,TRADE SUPPLIER,4109-Materials,"£1,566.55"
08-DEC-2022,Balance Sheet Cost Centres (P),Denham Procurement & Sourcing Solutions Ltd,TRADE SUPPLIER,9631-Inventories - General,"£4,768.20"
08-DEC-2022,C&FS (P),DFD Care and Support Services Ltd,TRADE SUPPLIER,5451-LCT/LAC (Not Fostered),"£6,409.50"
08-DEC-2022,C&FS (P),DFD Care and Support Services Ltd,TRADE SUPPLIER,5451-LCT/LAC (Not Fostered),"£6,424.29"
08-DEC-2022,C&FS (P),DFD Care and Support Services Ltd,TRADE SUPPLIER,5411-Private Contractors - General,"£6,023.10"
